"Body","BodyName","InvoiceDate","ClearanceDate","UniqueReference","SupplierName","SupplierRefNo","Amount","DepartmentExpenseArea","ExpenseType","ExpenseCode","ExtendedDescription","AccountHolder","MerchantCategory"
"http://statistics.data.gov.uk/id/local-authority/43UM","WOKING BOROUGH COUNCIL","22/12/2021","01/04/2022","0000472921/001","PENNA PLC","40087400","5,220.00 ","FINANCIAL SERVICES - FINANCIAL SERVICES","TEMPORARY STAFF","A110","TEMPORARY STAFF","FINANCIAL SERVICES","HUMAN RESOURCES"
"http://statistics.data.gov.uk/id/local-authority/43UM","WOKING BOROUGH COUNCIL","09/03/2022","01/04/2022","0000475606/001","OYSTER PARTNERSHIP","40443300","2,155.51 ","ASSET MANAGEMENT - VALUATION SERVICES","TEMPORARY STAFF","A110","TEMPORARY STAFF","ASSET MANAGEMENT","HUMAN RESOURCES"
"http://statistics.data.gov.uk/id/local-authority/43UM","WOKING BOROUGH COUNCIL","02/03/2022","01/04/2022","0000475268/001","OYSTER PARTNERSHIP","40443300","1,987.50 ","ASSET MANAGEMENT - VALUATION SERVICES","TEMPORARY STAFF","A110","TEMPORARY STAFF","ASSET MANAGEMENT","HUMAN RESOURCES"
"http://statistics.data.gov.uk/id/local-authority/43UM","WOKING BOROUGH COUNCIL","16/03/2022","01/04/2022","0030003381/001","OYSTER PARTNERSHIP","40443300","1,987.50 ","ASSET MANAGEMENT - VALUATION SERVICES","TEMPORARY STAFF","A110","TEMPORARY STAFF","ASSET MANAGEMENT","HUMAN RESOURCES"
"http://statistics.data.gov.uk/id/local-authority/43UM","WOKING BOROUGH COUNCIL","23/03/2022","01/04/2022","0000476061/001","OYSTER PARTNERSHIP","40443300","1,987.50 ","ASSET MANAGEMENT - VALUATION SERVICES","TEMPORARY STAFF","A110","TEMPORARY STAFF","ASSET MANAGEMENT","HUMAN RESOURCES"
"http://statistics.data.gov.uk/id/local-authority/43UM","WOKING BOROUGH COUNCIL","30/03/2022","01/04/2022","0000476355/001","OYSTER PARTNERSHIP","40443300","1,987.50 ","ASSET MANAGEMENT - VALUATION SERVICES","TEMPORARY STAFF","A110","TEMPORARY STAFF","ASSET MANAGEMENT","HUMAN RESOURCES"
"http://statistics.data.gov.uk/id/local-authority/43UM","WOKING BOROUGH COUNCIL","23/03/2022","01/04/2022","0000476058/001","VIVID RESOURCING","40463200","1,909.32 ","PLANNING SERVICES - DEVELOPMENT CONTROL","TEMPORARY STAFF","A110","TEMPORARY STAFF","PLANNING SERVICES","HUMAN RESOURCES"
"http://statistics.data.gov.uk/id/local-authority/43UM","WOKING BOROUGH COUNCIL","16/03/2022","01/04/2022","0000475853/001","VIVID RESOURCING","40463200","1,890.68 ","PLANNING SERVICES - DEVELOPMENT CONTROL","TEMPORARY STAFF","A110","TEMPORARY STAFF","PLANNING SERVICES","HUMAN RESOURCES"
"http://statistics.data.gov.uk/id/local-authority/43UM","WOKING BOROUGH COUNCIL","09/03/2022","01/04/2022","0000475568/001","VIVID RESOURCING","40463200","1,890.23 ","PLANNING SERVICES - DEVELOPMENT CONTROL","TEMPORARY STAFF","A110","TEMPORARY STAFF","PLANNING SERVICES","HUMAN RESOURCES"
"http://statistics.data.gov.uk/id/local-authority/43UM","WOKING BOROUGH COUNCIL","02/03/2022","01/04/2022","0000475232/001","VIVID RESOURCING","40463200","1,826.13 ","PLANNING SERVICES - DEVELOPMENT CONTROL","TEMPORARY STAFF","A110","TEMPORARY STAFF","PLANNING SERVICES","HUMAN RESOURCES"
"http://statistics.data.gov.uk/id/local-authority/43UM","WOKING BOROUGH COUNCIL","30/03/2022","01/04/2022","0000476311/001","VIVID RESOURCING","40463200","1,742.94 ","PLANNING SERVICES - DEVELOPMENT CONTROL","TEMPORARY STAFF","A110","TEMPORARY STAFF","PLANNING SERVICES","HUMAN RESOURCES"
"http://statistics.data.gov.uk/id/local-authority/43UM","WOKING BOROUGH COUNCIL","16/03/2022","01/04/2022","0000476284/001","OYSTER PARTNERSHIP","40443300","1,734.84 ","PLANNING SERVICES - DEVELOPMENT CONTROL","TEMPORARY STAFF","A110","TEMPORARY STAFF","PLANNING SERVICES","HUMAN RESOURCES"
"http://statistics.data.gov.uk/id/local-authority/43UM","WOKING BOROUGH COUNCIL","13/03/2022","01/04/2022","0000475894/001","UNITY RECRUITMENT LTD","40160500","1,732.50 ","NEIGHBOURHOOD SERVICES - PARKING SERVICES","TEMPORARY STAFF","A110","TEMPORARY STAFF","NEIGHBOURHOOD SERVICES","HUMAN RESOURCES"
"http://statistics.data.gov.uk/id/local-authority/43UM","WOKING BOROUGH COUNCIL","09/03/2022","01/04/2022","0000475605/001","OYSTER PARTNERSHIP","40443300","1,711.54 ","PLANNING SERVICES - DEVELOPMENT CONTROL","TEMPORARY STAFF","A110","TEMPORARY STAFF","PLANNING SERVICES","HUMAN RESOURCES"
"http://statistics.data.gov.uk/id/local-authority/43UM","WOKING BOROUGH COUNCIL","23/03/2022","01/04/2022","0000476059/001","OYSTER PARTNERSHIP","40443300","1,711.54 ","PLANNING SERVICES - DEVELOPMENT CONTROL","TEMPORARY STAFF","A110","TEMPORARY STAFF","PLANNING SERVICES","HUMAN RESOURCES"
"http://statistics.data.gov.uk/id/local-authority/43UM","WOKING BOROUGH COUNCIL","02/03/2022","01/04/2022","0000475267/001","OYSTER PARTNERSHIP","40443300","1,708.38 ","PLANNING SERVICES - DEVELOPMENT CONTROL","TEMPORARY STAFF","A110","TEMPORARY STAFF","PLANNING SERVICES","HUMAN RESOURCES"
"http://statistics.data.gov.uk/id/local-authority/43UM","WOKING BOROUGH COUNCIL","02/03/2022","01/04/2022","0000475229/001","VIVID RESOURCING","40463200","1,258.00 ","HOUSING SERVICES - HOUSING NEEDS & ALLOCATIONS","TEMPORARY STAFF","A110","TEMPORARY STAFF","HOUSING SERVICES","HUMAN RESOURCES"
"http://statistics.data.gov.uk/id/local-authority/43UM","WOKING BOROUGH COUNCIL","09/03/2022","01/04/2022","0000475569/001","VIVID RESOURCING","40463200","1,258.00 ","HOUSING SERVICES - HOUSING NEEDS & ALLOCATIONS","TEMPORARY STAFF","A110","TEMPORARY STAFF","HOUSING SERVICES","HUMAN RESOURCES"
"http://statistics.data.gov.uk/id/local-authority/43UM","WOKING BOROUGH COUNCIL","16/03/2022","01/04/2022","0000475852/001","VIVID RESOURCING","40463200","1,258.00 ","HOUSING SERVICES - HOUSING NEEDS & ALLOCATIONS","TEMPORARY STAFF","A110","TEMPORARY STAFF","HOUSING SERVICES","HUMAN RESOURCES"
"http://statistics.data.gov.uk/id/local-authority/43UM","WOKING BOROUGH COUNCIL","28/03/2022","01/04/2022","0000476188/001","THE UMBRELLA AGENCY LIMITED","40983300","1,000.00 ","REVENUES AND BENEFITS - COUNCIL TAX","TEMPORARY STAFF","A110","TEMPORARY STAFF","REVENUES AND BENEFITS","CONSULTANCY"
"http://statistics.data.gov.uk/id/local-authority/43UM","WOKING BOROUGH COUNCIL","13/03/2022","01/04/2022","0000475871/001","MORGAN HUNT UK LIMITED","01768500","968.75 ","REVENUES AND BENEFITS - COUNCIL TAX","TEMPORARY STAFF","A110","TEMPORARY STAFF","REVENUES AND BENEFITS","HUMAN RESOURCES"
"http://statistics.data.gov.uk/id/local-authority/43UM","WOKING BOROUGH COUNCIL","06/03/2022","01/04/2022","0000475788/002","UNITY RECRUITMENT LTD","40160500","866.25 ","NEIGHBOURHOOD SERVICES - PARKING SERVICES","TEMPORARY STAFF","A110","TEMPORARY STAFF","NEIGHBOURHOOD SERVICES","HUMAN RESOURCES"
"http://statistics.data.gov.uk/id/local-authority/43UM","WOKING BOROUGH COUNCIL","20/03/2022","01/04/2022","0000476108/001","UNITY RECRUITMENT LTD","40160500","866.25 ","NEIGHBOURHOOD SERVICES - PARKING SERVICES","TEMPORARY STAFF","A110","TEMPORARY STAFF","NEIGHBOURHOOD SERVICES","HUMAN RESOURCES"
"http://statistics.data.gov.uk/id/local-authority/43UM","WOKING BOROUGH COUNCIL","02/03/2022","01/04/2022","0000475515/001","VENN GROUP LIMITED","40383900","800.00 ","REVENUES AND BENEFITS - BENEFIT SERVICES","TEMPORARY STAFF","A110","TEMPORARY STAFF","REVENUES AND BENEFITS","HUMAN RESOURCES"
"http://statistics.data.gov.uk/id/local-authority/43UM","WOKING BOROUGH COUNCIL","09/03/2022","01/04/2022","0000475872/001","VENN GROUP LIMITED","40383900","800.00 ","REVENUES AND BENEFITS - BENEFIT SERVICES","TEMPORARY STAFF","A110","TEMPORARY STAFF","REVENUES AND BENEFITS","HUMAN RESOURCES"
"http://statistics.data.gov.uk/id/local-authority/43UM","WOKING BOROUGH COUNCIL","16/03/2022","01/04/2022","0000476078/001","VENN GROUP LIMITED","40383900","800.00 ","REVENUES AND BENEFITS - BENEFIT SERVICES","TEMPORARY STAFF","A110","TEMPORARY STAFF","REVENUES AND BENEFITS","HUMAN RESOURCES"
"http://statistics.data.gov.uk/id/local-authority/43UM","WOKING BOROUGH COUNCIL","24/03/2022","01/04/2022","0000476189/001","VENN GROUP LIMITED","40383900","800.00 ","REVENUES AND BENEFITS - BENEFIT SERVICES","TEMPORARY STAFF","A110","TEMPORARY STAFF","REVENUES AND BENEFITS","HUMAN RESOURCES"
"http://statistics.data.gov.uk/id/local-authority/43UM","WOKING BOROUGH COUNCIL","23/03/2022","01/04/2022","0000476150/001","BROOK STREET (UK) LTD","01049600","774.00 ","HOUSING SERVICES - HOUSING STANDARDS & LICENSING","TEMPORARY STAFF","A110","TEMPORARY STAFF","HOUSING SERVICES","HUMAN RESOURCES"
"http://statistics.data.gov.uk/id/local-authority/43UM","WOKING BOROUGH COUNCIL","25/03/2022","01/04/2022","0000475265/001","BROOK STREET (UK) LTD","01049600","774.00 ","HOUSING SERVICES - HOUSING STANDARDS & LICENSING","TEMPORARY STAFF","A110","TEMPORARY STAFF","HOUSING SERVICES","HUMAN RESOURCES"
"http://statistics.data.gov.uk/id/local-authority/43UM","WOKING BOROUGH COUNCIL","18/03/2022","01/04/2022","0000476095/001","FAITH RECRUITMENT","01709500","621.75 ","NEIGHBOURHOOD SERVICES - PARKING SERVICES","TEMPORARY STAFF","A110","TEMPORARY STAFF","NEIGHBOURHOOD SERVICES","HUMAN RESOURCES"
"http://statistics.data.gov.uk/id/local-authority/43UM","WOKING BOROUGH COUNCIL","18/03/2022","01/04/2022","0000476097/001","FAITH RECRUITMENT","01709500","613.50 ","NEIGHBOURHOOD SERVICES - PARKING SERVICES","TEMPORARY STAFF","A110","TEMPORARY STAFF","NEIGHBOURHOOD SERVICES","HUMAN RESOURCES"
"http://statistics.data.gov.uk/id/local-authority/43UM","WOKING BOROUGH COUNCIL","06/03/2022","01/04/2022","0000475788/001","UNITY RECRUITMENT LTD","40160500","433.13 ","NEIGHBOURHOOD SERVICES - PARKING SERVICES","TEMPORARY STAFF","A110","TEMPORARY STAFF","NEIGHBOURHOOD SERVICES","HUMAN RESOURCES"
"http://statistics.data.gov.uk/id/local-authority/43UM","WOKING BOROUGH COUNCIL","20/03/2022","01/04/2022","0000476108/002","UNITY RECRUITMENT LTD","40160500","433.13 ","NEIGHBOURHOOD SERVICES - PARKING SERVICES","TEMPORARY STAFF","A110","TEMPORARY STAFF","NEIGHBOURHOOD SERVICES","HUMAN RESOURCES"
"http://statistics.data.gov.uk/id/local-authority/43UM","WOKING BOROUGH COUNCIL","18/03/2022","01/04/2022","0000476091/001","FAITH RECRUITMENT","01709500","332.33 ","PLANNING SERVICES - DEVELOPMENT CONTROL","TEMPORARY STAFF","A110","TEMPORARY STAFF","PLANNING SERVICES","HUMAN RESOURCES"
"http://statistics.data.gov.uk/id/local-authority/43UM","WOKING BOROUGH COUNCIL","25/02/2022","01/04/2022","0000476273/001","FAITH RECRUITMENT","01709500","220.86 ","NEIGHBOURHOOD SERVICES - PARKING SERVICES","TEMPORARY STAFF","A110","TEMPORARY STAFF","NEIGHBOURHOOD SERVICES","HUMAN RESOURCES"
"http://statistics.data.gov.uk/id/local-authority/43UM","WOKING BOROUGH COUNCIL","18/03/2022","01/04/2022","0000476093/001","FAITH RECRUITMENT","01709500","131.33 ","NEIGHBOURHOOD SERVICES - PARKING SERVICES","TEMPORARY STAFF","A110","TEMPORARY STAFF","NEIGHBOURHOOD SERVICES","HUMAN RESOURCES"
"http://statistics.data.gov.uk/id/local-authority/43UM","WOKING BOROUGH COUNCIL","18/03/2022","01/04/2022","0000476098/001","FAITH RECRUITMENT","01709500","98.16 ","NEIGHBOURHOOD SERVICES - PARKING SERVICES","TEMPORARY STAFF","A110","TEMPORARY STAFF","NEIGHBOURHOOD SERVICES","HUMAN RESOURCES"
"http://statistics.data.gov.uk/id/local-authority/43UM","WOKING BOROUGH COUNCIL","18/03/2022","01/04/2022","0000476094/001","FAITH RECRUITMENT","01709500","40.93 ","NEIGHBOURHOOD SERVICES - PARKING SERVICES","TEMPORARY STAFF","A110","TEMPORARY STAFF","NEIGHBOURHOOD SERVICES","HUMAN RESOURCES"
"http://statistics.data.gov.uk/id/local-authority/43UM","WOKING BOROUGH COUNCIL","18/03/2022","01/04/2022","0000476096/001","FAITH RECRUITMENT","01709500","40.93 ","NEIGHBOURHOOD SERVICES - PARKING SERVICES","TEMPORARY STAFF","A110","TEMPORARY STAFF","NEIGHBOURHOOD SERVICES","HUMAN RESOURCES"
"http://statistics.data.gov.uk/id/local-authority/43UM","WOKING BOROUGH COUNCIL","18/03/2022","01/04/2022","0000476092/001","FAITH RECRUITMENT","01709500","40.93 ","PLANNING SERVICES - DEVELOPMENT CONTROL","TEMPORARY STAFF","A110","TEMPORARY STAFF","PLANNING SERVICES","HUMAN RESOURCES"
"http://statistics.data.gov.uk/id/local-authority/43UM","WOKING BOROUGH COUNCIL","02/03/2022","05/04/2022","0000475221/001","JAMES POTTER","40849300","1,980.00 ","ASSET MANAGEMENT - VALUATION SERVICES","TEMPORARY STAFF","A110","TEMPORARY STAFF","ASSET MANAGEMENT","ENVIRONMENTAL SERVICES"
"http://statistics.data.gov.uk/id/local-authority/43UM","WOKING BOROUGH COUNCIL","30/03/2022","05/04/2022","0000476354/001","OYSTER PARTNERSHIP","40443300","1,741.16 ","PLANNING SERVICES - DEVELOPMENT CONTROL","TEMPORARY STAFF","A110","TEMPORARY STAFF","PLANNING SERVICES","HUMAN RESOURCES"
"http://statistics.data.gov.uk/id/local-authority/43UM","WOKING BOROUGH COUNCIL","31/03/2022","05/04/2022","0000476331/001","GREENWICH CONTRACTS LIMITED","40656500","1,000.00 ","REVENUES AND BENEFITS - BENEFIT SERVICES","TEMPORARY STAFF","A110","TEMPORARY STAFF","REVENUES AND BENEFITS","CONSULTANCY"
"http://statistics.data.gov.uk/id/local-authority/43UM","WOKING BOROUGH COUNCIL","01/04/2022","05/04/2022","0000476392/001","GREENWICH CONTRACTS LIMITED","40656500","1,000.00 ","REVENUES AND BENEFITS - BENEFIT SERVICES","TEMPORARY STAFF","A110","TEMPORARY STAFF","REVENUES AND BENEFITS","CONSULTANCY"
"http://statistics.data.gov.uk/id/local-authority/43UM","WOKING BOROUGH COUNCIL","25/03/2022","05/04/2022","0000476405/001","FAITH RECRUITMENT","01709500","339.71 ","PLANNING SERVICES - DEVELOPMENT CONTROL","TEMPORARY STAFF","A110","TEMPORARY STAFF","PLANNING SERVICES","HUMAN RESOURCES"
"http://statistics.data.gov.uk/id/local-authority/43UM","WOKING BOROUGH COUNCIL","25/03/2022","05/04/2022","0000476406/001","FAITH RECRUITMENT","01709500","40.93 ","PLANNING SERVICES - DEVELOPMENT CONTROL","TEMPORARY STAFF","A110","TEMPORARY STAFF","PLANNING SERVICES","HUMAN RESOURCES"
"http://statistics.data.gov.uk/id/local-authority/43UM","WOKING BOROUGH COUNCIL","12/04/2022","13/04/2022","0000476799/001","OYSTER PARTNERSHIP","40443300","2,005.21 ","ASSET MANAGEMENT - VALUATION SERVICES","TEMPORARY STAFF","A110","TEMPORARY STAFF","ASSET MANAGEMENT","HUMAN RESOURCES"
"http://statistics.data.gov.uk/id/local-authority/43UM","WOKING BOROUGH COUNCIL","07/04/2022","13/04/2022","0000476619/001","OYSTER PARTNERSHIP","40443300","1,987.50 ","ASSET MANAGEMENT - VALUATION SERVICES","TEMPORARY STAFF","A110","TEMPORARY STAFF","ASSET MANAGEMENT","HUMAN RESOURCES"
"http://statistics.data.gov.uk/id/local-authority/43UM","WOKING BOROUGH COUNCIL","03/04/2022","13/04/2022","0000476647/001","UNITY RECRUITMENT LTD","40160500","1,732.50 ","NEIGHBOURHOOD SERVICES - PARKING SERVICES","TEMPORARY STAFF","A110","TEMPORARY STAFF","NEIGHBOURHOOD SERVICES","HUMAN RESOURCES"
"http://statistics.data.gov.uk/id/local-authority/43UM","WOKING BOROUGH COUNCIL","07/04/2022","13/04/2022","0000476620/001","OYSTER PARTNERSHIP","40443300","1,701.66 ","PLANNING SERVICES - DEVELOPMENT CONTROL","TEMPORARY STAFF","A110","TEMPORARY STAFF","PLANNING SERVICES","HUMAN RESOURCES"
"http://statistics.data.gov.uk/id/local-authority/43UM","WOKING BOROUGH COUNCIL","23/03/2022","13/04/2022","0000476062/001","VIVID RESOURCING","40463200","1,258.00 ","HOUSING SERVICES - HOUSING NEEDS & ALLOCATIONS","TEMPORARY STAFF","A110","TEMPORARY STAFF","HOUSING SERVICES","HUMAN RESOURCES"
"http://statistics.data.gov.uk/id/local-authority/43UM","WOKING BOROUGH COUNCIL","30/03/2022","13/04/2022","0000476313/001","VIVID RESOURCING","40463200","1,258.00 ","HOUSING SERVICES - HOUSING NEEDS & ALLOCATIONS","TEMPORARY STAFF","A110","TEMPORARY STAFF","HOUSING SERVICES","HUMAN RESOURCES"
"http://statistics.data.gov.uk/id/local-authority/43UM","WOKING BOROUGH COUNCIL","06/04/2022","13/04/2022","0000476571/001","VIVID RESOURCING","40463200","1,258.00 ","HOUSING SERVICES - HOUSING NEEDS & ALLOCATIONS","TEMPORARY STAFF","A110","TEMPORARY STAFF","HOUSING SERVICES","HUMAN RESOURCES"
"http://statistics.data.gov.uk/id/local-authority/43UM","WOKING BOROUGH COUNCIL","07/04/2022","13/04/2022","0000476578/001","GREENWICH CONTRACTS LIMITED","40656500","1,000.00 ","REVENUES AND BENEFITS - BENEFIT SERVICES","TEMPORARY STAFF","A110","TEMPORARY STAFF","REVENUES AND BENEFITS","CONSULTANCY"
"http://statistics.data.gov.uk/id/local-authority/43UM","WOKING BOROUGH COUNCIL","08/04/2022","13/04/2022","0000476640/001","GREENWICH CONTRACTS LIMITED","40656500","1,000.00 ","REVENUES AND BENEFITS - BENEFIT SERVICES","TEMPORARY STAFF","A110","TEMPORARY STAFF","REVENUES AND BENEFITS","CONSULTANCY"
"http://statistics.data.gov.uk/id/local-authority/43UM","WOKING BOROUGH COUNCIL","04/04/2022","13/04/2022","0000476494/001","THE UMBRELLA AGENCY LIMITED","40983300","981.25 ","REVENUES AND BENEFITS - COUNCIL TAX","TEMPORARY STAFF","A110","TEMPORARY STAFF","REVENUES AND BENEFITS","CONSULTANCY"
"http://statistics.data.gov.uk/id/local-authority/43UM","WOKING BOROUGH COUNCIL","27/03/2022","13/04/2022","0000476419/001","UNITY RECRUITMENT LTD","40160500","866.25 ","NEIGHBOURHOOD SERVICES - PARKING SERVICES","TEMPORARY STAFF","A110","TEMPORARY STAFF","NEIGHBOURHOOD SERVICES","HUMAN RESOURCES"
"http://statistics.data.gov.uk/id/local-authority/43UM","WOKING BOROUGH COUNCIL","27/03/2022","13/04/2022","0000476419/002","UNITY RECRUITMENT LTD","40160500","866.25 ","NEIGHBOURHOOD SERVICES - PARKING SERVICES","TEMPORARY STAFF","A110","TEMPORARY STAFF","NEIGHBOURHOOD SERVICES","HUMAN RESOURCES"
"http://statistics.data.gov.uk/id/local-authority/43UM","WOKING BOROUGH COUNCIL","30/03/2022","13/04/2022","0000476540/001","VENN GROUP LIMITED","40383900","800.00 ","REVENUES AND BENEFITS - BENEFIT SERVICES","TEMPORARY STAFF","A110","TEMPORARY STAFF","REVENUES AND BENEFITS","HUMAN RESOURCES"
"http://statistics.data.gov.uk/id/local-authority/43UM","WOKING BOROUGH COUNCIL","30/03/2022","13/04/2022","0000476328/001","BROOK STREET (UK) LTD","01049600","774.00 ","HOUSING SERVICES - HOUSING STANDARDS & LICENSING","TEMPORARY STAFF","A110","TEMPORARY STAFF","HOUSING SERVICES","HUMAN RESOURCES"
"http://statistics.data.gov.uk/id/local-authority/43UM","WOKING BOROUGH COUNCIL","27/03/2022","13/04/2022","0000476335/001","MORGAN HUNT UK LIMITED","01768500","726.56 ","REVENUES AND BENEFITS - COUNCIL TAX","TEMPORARY STAFF","A110","TEMPORARY STAFF","REVENUES AND BENEFITS","HUMAN RESOURCES"
"http://statistics.data.gov.uk/id/local-authority/43UM","WOKING BOROUGH COUNCIL","25/03/2022","13/04/2022","0000476391/001","FAITH RECRUITMENT","01709500","656.63 ","NEIGHBOURHOOD SERVICES - PARKING SERVICES","TEMPORARY STAFF","A110","TEMPORARY STAFF","NEIGHBOURHOOD SERVICES","HUMAN RESOURCES"
"http://statistics.data.gov.uk/id/local-authority/43UM","WOKING BOROUGH COUNCIL","25/03/2022","13/04/2022","0000476395/001","FAITH RECRUITMENT","01709500","621.75 ","NEIGHBOURHOOD SERVICES - PARKING SERVICES","TEMPORARY STAFF","A110","TEMPORARY STAFF","NEIGHBOURHOOD SERVICES","HUMAN RESOURCES"
"http://statistics.data.gov.uk/id/local-authority/43UM","WOKING BOROUGH COUNCIL","25/03/2022","13/04/2022","0000476402/001","FAITH RECRUITMENT","01709500","613.50 ","NEIGHBOURHOOD SERVICES - PARKING SERVICES","TEMPORARY STAFF","A110","TEMPORARY STAFF","NEIGHBOURHOOD SERVICES","HUMAN RESOURCES"
"http://statistics.data.gov.uk/id/local-authority/43UM","WOKING BOROUGH COUNCIL","01/04/2022","13/04/2022","0000476657/001","FAITH RECRUITMENT","01709500","547.14 ","NEIGHBOURHOOD SERVICES - PARKING SERVICES","TEMPORARY STAFF","A110","TEMPORARY STAFF","NEIGHBOURHOOD SERVICES","HUMAN RESOURCES"
"http://statistics.data.gov.uk/id/local-authority/43UM","WOKING BOROUGH COUNCIL","01/04/2022","13/04/2022","0000476660/001","FAITH RECRUITMENT","01709500","490.80 ","NEIGHBOURHOOD SERVICES - PARKING SERVICES","TEMPORARY STAFF","A110","TEMPORARY STAFF","NEIGHBOURHOOD SERVICES","HUMAN RESOURCES"
"http://statistics.data.gov.uk/id/local-authority/43UM","WOKING BOROUGH COUNCIL","01/04/2022","13/04/2022","0000476654/001","FAITH RECRUITMENT","01709500","393.98 ","NEIGHBOURHOOD SERVICES - PARKING SERVICES","TEMPORARY STAFF","A110","TEMPORARY STAFF","NEIGHBOURHOOD SERVICES","HUMAN RESOURCES"
"http://statistics.data.gov.uk/id/local-authority/43UM","WOKING BOROUGH COUNCIL","27/03/2022","13/04/2022","0000476336/001","MORGAN HUNT UK LIMITED","01768500","375.00 ","REVENUES AND BENEFITS - COUNCIL TAX","TEMPORARY STAFF","A110","TEMPORARY STAFF","REVENUES AND BENEFITS","HUMAN RESOURCES"
"http://statistics.data.gov.uk/id/local-authority/43UM","WOKING BOROUGH COUNCIL","27/03/2022","13/04/2022","0000476334/001","MORGAN HUNT UK LIMITED","01768500","335.94 ","REVENUES AND BENEFITS - COUNCIL TAX","TEMPORARY STAFF","A110","TEMPORARY STAFF","REVENUES AND BENEFITS","HUMAN RESOURCES"
"http://statistics.data.gov.uk/id/local-authority/43UM","WOKING BOROUGH COUNCIL","01/04/2022","13/04/2022","0000476651/001","FAITH RECRUITMENT","01709500","280.63 ","PLANNING SERVICES - DEVELOPMENT CONTROL","TEMPORARY STAFF","A110","TEMPORARY STAFF","PLANNING SERVICES","HUMAN RESOURCES"
"http://statistics.data.gov.uk/id/local-authority/43UM","WOKING BOROUGH COUNCIL","01/04/2022","13/04/2022","0000476662/001","FAITH RECRUITMENT","01709500","272.85 ","CORPORATE STRATEGY - CUSTOMER SERVICES","TEMPORARY STAFF","A110","TEMPORARY STAFF","CORPORATE STRATEGY","HUMAN RESOURCES"
"http://statistics.data.gov.uk/id/local-authority/43UM","WOKING BOROUGH COUNCIL","01/04/2022","13/04/2022","0000476655/001","FAITH RECRUITMENT","01709500","265.35 ","NEIGHBOURHOOD SERVICES - PARKING SERVICES","TEMPORARY STAFF","A110","TEMPORARY STAFF","NEIGHBOURHOOD SERVICES","HUMAN RESOURCES"
"http://statistics.data.gov.uk/id/local-authority/43UM","WOKING BOROUGH COUNCIL","27/03/2022","13/04/2022","0000476337/001","MORGAN HUNT UK LIMITED","01768500","195.31 ","REVENUES AND BENEFITS - COUNCIL TAX","TEMPORARY STAFF","A110","TEMPORARY STAFF","REVENUES AND BENEFITS","HUMAN RESOURCES"
"http://statistics.data.gov.uk/id/local-authority/43UM","WOKING BOROUGH COUNCIL","25/03/2022","13/04/2022","0000476397/001","FAITH RECRUITMENT","01709500","149.22 ","NEIGHBOURHOOD SERVICES - PARKING SERVICES","TEMPORARY STAFF","A110","TEMPORARY STAFF","NEIGHBOURHOOD SERVICES","HUMAN RESOURCES"
"http://statistics.data.gov.uk/id/local-authority/43UM","WOKING BOROUGH COUNCIL","01/04/2022","13/04/2022","0000476658/001","FAITH RECRUITMENT","01709500","125.63 ","NEIGHBOURHOOD SERVICES - PARKING SERVICES","TEMPORARY STAFF","A110","TEMPORARY STAFF","NEIGHBOURHOOD SERVICES","HUMAN RESOURCES"
"http://statistics.data.gov.uk/id/local-authority/43UM","WOKING BOROUGH COUNCIL","01/04/2022","13/04/2022","0000476661/001","FAITH RECRUITMENT","01709500","124.05 ","NEIGHBOURHOOD SERVICES - PARKING SERVICES","TEMPORARY STAFF","A110","TEMPORARY STAFF","NEIGHBOURHOOD SERVICES","HUMAN RESOURCES"
"http://statistics.data.gov.uk/id/local-authority/43UM","WOKING BOROUGH COUNCIL","27/03/2022","13/04/2022","0000476338/001","MORGAN HUNT UK LIMITED","01768500","109.38 ","REVENUES AND BENEFITS - COUNCIL TAX","TEMPORARY STAFF","A110","TEMPORARY STAFF","REVENUES AND BENEFITS","HUMAN RESOURCES"
"http://statistics.data.gov.uk/id/local-authority/43UM","WOKING BOROUGH COUNCIL","01/04/2022","13/04/2022","0000476652/001","FAITH RECRUITMENT","01709500","103.48 ","PLANNING SERVICES - DEVELOPMENT CONTROL","TEMPORARY STAFF","A110","TEMPORARY STAFF","PLANNING SERVICES","HUMAN RESOURCES"
"http://statistics.data.gov.uk/id/local-authority/43UM","WOKING BOROUGH COUNCIL","25/03/2022","13/04/2022","0000476394/001","FAITH RECRUITMENT","01709500","40.93 ","NEIGHBOURHOOD SERVICES - PARKING SERVICES","TEMPORARY STAFF","A110","TEMPORARY STAFF","NEIGHBOURHOOD SERVICES","HUMAN RESOURCES"
"http://statistics.data.gov.uk/id/local-authority/43UM","WOKING BOROUGH COUNCIL","25/03/2022","13/04/2022","0000476399/001","FAITH RECRUITMENT","01709500","40.93 ","NEIGHBOURHOOD SERVICES - PARKING SERVICES","TEMPORARY STAFF","A110","TEMPORARY STAFF","NEIGHBOURHOOD SERVICES","HUMAN RESOURCES"
"http://statistics.data.gov.uk/id/local-authority/43UM","WOKING BOROUGH COUNCIL","01/04/2022","13/04/2022","0000476656/001","FAITH RECRUITMENT","01709500","40.93 ","NEIGHBOURHOOD SERVICES - PARKING SERVICES","TEMPORARY STAFF","A110","TEMPORARY STAFF","NEIGHBOURHOOD SERVICES","HUMAN RESOURCES"
"http://statistics.data.gov.uk/id/local-authority/43UM","WOKING BOROUGH COUNCIL","01/04/2022","13/04/2022","0000476659/001","FAITH RECRUITMENT","01709500","40.93 ","NEIGHBOURHOOD SERVICES - PARKING SERVICES","TEMPORARY STAFF","A110","TEMPORARY STAFF","NEIGHBOURHOOD SERVICES","HUMAN RESOURCES"
"http://statistics.data.gov.uk/id/local-authority/43UM","WOKING BOROUGH COUNCIL","01/04/2022","13/04/2022","0000476653/001","FAITH RECRUITMENT","01709500","40.93 ","PLANNING SERVICES - DEVELOPMENT CONTROL","TEMPORARY STAFF","A110","TEMPORARY STAFF","PLANNING SERVICES","HUMAN RESOURCES"
"http://statistics.data.gov.uk/id/local-authority/43UM","WOKING BOROUGH COUNCIL","12/04/2022","20/04/2022","0000476796/001","VIVID RESOURCING","40463200","1,909.32 ","PLANNING SERVICES - DEVELOPMENT CONTROL","TEMPORARY STAFF","A110","TEMPORARY STAFF","PLANNING SERVICES","HUMAN RESOURCES"
"http://statistics.data.gov.uk/id/local-authority/43UM","WOKING BOROUGH COUNCIL","12/04/2022","20/04/2022","0000476798/001","OYSTER PARTNERSHIP","40443300","1,768.55 ","PLANNING SERVICES - DEVELOPMENT CONTROL","TEMPORARY STAFF","A110","TEMPORARY STAFF","PLANNING SERVICES","HUMAN RESOURCES"
"http://statistics.data.gov.uk/id/local-authority/43UM","WOKING BOROUGH COUNCIL","18/04/2022","20/04/2022","0000476778/001","THE UMBRELLA AGENCY LIMITED","40983300","1,000.00 ","REVENUES AND BENEFITS - BENEFIT SERVICES","TEMPORARY STAFF","A110","TEMPORARY STAFF","REVENUES AND BENEFITS","CONSULTANCY"
"http://statistics.data.gov.uk/id/local-authority/43UM","WOKING BOROUGH COUNCIL","06/04/2022","20/04/2022","0000476590/001","BROOK STREET (UK) LTD","01049600","804.75 ","HOUSING SERVICES - HOUSING STANDARDS & LICENSING","TEMPORARY STAFF","A110","TEMPORARY STAFF","HOUSING SERVICES","HUMAN RESOURCES"
"http://statistics.data.gov.uk/id/local-authority/43UM","WOKING BOROUGH COUNCIL","13/04/2022","20/04/2022","0000476828/001","GREENWICH CONTRACTS LIMITED","40656500","725.00 ","REVENUES AND BENEFITS - BENEFIT SERVICES","TEMPORARY STAFF","A110","TEMPORARY STAFF","REVENUES AND BENEFITS","CONSULTANCY"
"http://statistics.data.gov.uk/id/local-authority/43UM","WOKING BOROUGH COUNCIL","08/04/2022","20/04/2022","0000476872/001","FAITH RECRUITMENT","01709500","541.15 ","CORPORATE STRATEGY - CUSTOMER SERVICES","TEMPORARY STAFF","A110","TEMPORARY STAFF","CORPORATE STRATEGY","HUMAN RESOURCES"
"http://statistics.data.gov.uk/id/local-authority/43UM","WOKING BOROUGH COUNCIL","08/04/2022","20/04/2022","0000476862/001","FAITH RECRUITMENT","01709500","501.48 ","PLANNING SERVICES - DEVELOPMENT CONTROL","TEMPORARY STAFF","A110","TEMPORARY STAFF","PLANNING SERVICES","HUMAN RESOURCES"
"http://statistics.data.gov.uk/id/local-authority/43UM","WOKING BOROUGH COUNCIL","08/04/2022","20/04/2022","0000476863/001","FAITH RECRUITMENT","01709500","41.37 ","PLANNING SERVICES - DEVELOPMENT CONTROL","TEMPORARY STAFF","A110","TEMPORARY STAFF","PLANNING SERVICES","HUMAN RESOURCES"
"http://statistics.data.gov.uk/id/local-authority/43UM","WOKING BOROUGH COUNCIL","01/04/2022","27/04/2022","0000476378/001","JAMES POTTER","40849300","2,447.50 ","ASSET MANAGEMENT - VALUATION SERVICES","TEMPORARY STAFF","A110","TEMPORARY STAFF","ASSET MANAGEMENT","ENVIRONMENTAL SERVICES"
"http://statistics.data.gov.uk/id/local-authority/43UM","WOKING BOROUGH COUNCIL","06/04/2022","27/04/2022","0000476586/001","VIVID RESOURCING","40463200","1,913.41 ","PLANNING SERVICES - DEVELOPMENT CONTROL","TEMPORARY STAFF","A110","TEMPORARY STAFF","PLANNING SERVICES","HUMAN RESOURCES"
"http://statistics.data.gov.uk/id/local-authority/43UM","WOKING BOROUGH COUNCIL","20/04/2022","27/04/2022","0000476978/001","VIVID RESOURCING","40463200","1,810.67 ","PLANNING SERVICES - DEVELOPMENT CONTROL","TEMPORARY STAFF","A110","TEMPORARY STAFF","PLANNING SERVICES","HUMAN RESOURCES"
"http://statistics.data.gov.uk/id/local-authority/43UM","WOKING BOROUGH COUNCIL","21/04/2022","27/04/2022","0000477069/001","OYSTER PARTNERSHIP","40443300","1,496.71 ","PLANNING SERVICES - DEVELOPMENT CONTROL","TEMPORARY STAFF","A110","TEMPORARY STAFF","PLANNING SERVICES","HUMAN RESOURCES"
"http://statistics.data.gov.uk/id/local-authority/43UM","WOKING BOROUGH COUNCIL","12/04/2022","27/04/2022","0000476797/001","VIVID RESOURCING","40463200","1,258.00 ","HOUSING SERVICES - HOUSING NEEDS & ALLOCATIONS","TEMPORARY STAFF","A110","TEMPORARY STAFF","HOUSING SERVICES","HUMAN RESOURCES"
"http://statistics.data.gov.uk/id/local-authority/43UM","WOKING BOROUGH COUNCIL","20/04/2022","27/04/2022","0000476973/001","VIVID RESOURCING","40463200","1,006.40 ","HOUSING SERVICES - HOUSING NEEDS & ALLOCATIONS","TEMPORARY STAFF","A110","TEMPORARY STAFF","HOUSING SERVICES","HUMAN RESOURCES"
"http://statistics.data.gov.uk/id/local-authority/43UM","WOKING BOROUGH COUNCIL","31/03/2022","27/04/2022","0000476436/001","POINT THIRTEEN MEDIA LIMITED","40637500","865.00 ","FINANCIAL SERVICES - FINANCIAL SERVICES","TEMPORARY STAFF","A110","TEMPORARY STAFF","FINANCIAL SERVICES","HUMAN RESOURCES"
"http://statistics.data.gov.uk/id/local-authority/43UM","WOKING BOROUGH COUNCIL","06/04/2022","27/04/2022","0000476963/001","VENN GROUP LIMITED","40383900","807.00 ","REVENUES AND BENEFITS - BENEFIT SERVICES","TEMPORARY STAFF","A110","TEMPORARY STAFF","REVENUES AND BENEFITS","HUMAN RESOURCES"
"http://statistics.data.gov.uk/id/local-authority/43UM","WOKING BOROUGH COUNCIL","13/04/2022","27/04/2022","0000476858/001","BROOK STREET (UK) LTD","01049600","804.75 ","HOUSING SERVICES - HOUSING STANDARDS & LICENSING","TEMPORARY STAFF","A110","TEMPORARY STAFF","HOUSING SERVICES","HUMAN RESOURCES"
"http://statistics.data.gov.uk/id/local-authority/43UM","WOKING BOROUGH COUNCIL","14/04/2022","27/04/2022","0000476877/001","FLYING UMBRELLA","41022200","800.00 ","REVENUES AND BENEFITS - BENEFIT SERVICES","TEMPORARY STAFF","A110","TEMPORARY STAFF","REVENUES AND BENEFITS","HUMAN RESOURCES"
"http://statistics.data.gov.uk/id/local-authority/43UM","WOKING BOROUGH COUNCIL","08/04/2022","27/04/2022","0000476865/001","FAITH RECRUITMENT","01709500","663.38 ","NEIGHBOURHOOD SERVICES - PARKING SERVICES","TEMPORARY STAFF","A110","TEMPORARY STAFF","NEIGHBOURHOOD SERVICES","HUMAN RESOURCES"
"http://statistics.data.gov.uk/id/local-authority/43UM","WOKING BOROUGH COUNCIL","20/04/2022","27/04/2022","0000477003/001","BROOK STREET (UK) LTD","01049600","643.80 ","HOUSING SERVICES - HOUSING STANDARDS & LICENSING","TEMPORARY STAFF","A110","TEMPORARY STAFF","HOUSING SERVICES","HUMAN RESOURCES"
"http://statistics.data.gov.uk/id/local-authority/43UM","WOKING BOROUGH COUNCIL","08/04/2022","27/04/2022","0000476867/001","FAITH RECRUITMENT","01709500","628.13 ","NEIGHBOURHOOD SERVICES - PARKING SERVICES","TEMPORARY STAFF","A110","TEMPORARY STAFF","NEIGHBOURHOOD SERVICES","HUMAN RESOURCES"
"http://statistics.data.gov.uk/id/local-authority/43UM","WOKING BOROUGH COUNCIL","08/04/2022","27/04/2022","0000476869/001","FAITH RECRUITMENT","01709500","620.25 ","NEIGHBOURHOOD SERVICES - PARKING SERVICES","TEMPORARY STAFF","A110","TEMPORARY STAFF","NEIGHBOURHOOD SERVICES","HUMAN RESOURCES"
"http://statistics.data.gov.uk/id/local-authority/43UM","WOKING BOROUGH COUNCIL","22/04/2022","27/04/2022","0000477035/001","FLYING UMBRELLA","41022200","537.50 ","REVENUES AND BENEFITS - BENEFIT SERVICES","TEMPORARY STAFF","A110","TEMPORARY STAFF","REVENUES AND BENEFITS","HUMAN RESOURCES"
"http://statistics.data.gov.uk/id/local-authority/43UM","WOKING BOROUGH COUNCIL","15/04/2022","27/04/2022","0000477059/001","FAITH RECRUITMENT","01709500","310.44 ","PLANNING SERVICES - DEVELOPMENT CONTROL","TEMPORARY STAFF","A110","TEMPORARY STAFF","PLANNING SERVICES","HUMAN RESOURCES"
"http://statistics.data.gov.uk/id/local-authority/43UM","WOKING BOROUGH COUNCIL","08/04/2022","27/04/2022","0000476870/001","FAITH RECRUITMENT","01709500","49.62 ","NEIGHBOURHOOD SERVICES - PARKING SERVICES","TEMPORARY STAFF","A110","TEMPORARY STAFF","NEIGHBOURHOOD SERVICES","HUMAN RESOURCES"
"http://statistics.data.gov.uk/id/local-authority/43UM","WOKING BOROUGH COUNCIL","08/04/2022","27/04/2022","0000476866/001","FAITH RECRUITMENT","01709500","41.37 ","NEIGHBOURHOOD SERVICES - PARKING SERVICES","TEMPORARY STAFF","A110","TEMPORARY STAFF","NEIGHBOURHOOD SERVICES","HUMAN RESOURCES"
"http://statistics.data.gov.uk/id/local-authority/43UM","WOKING BOROUGH COUNCIL","08/04/2022","27/04/2022","0000476868/001","FAITH RECRUITMENT","01709500","41.37 ","NEIGHBOURHOOD SERVICES - PARKING SERVICES","TEMPORARY STAFF","A110","TEMPORARY STAFF","NEIGHBOURHOOD SERVICES","HUMAN RESOURCES"
"http://statistics.data.gov.uk/id/local-authority/43UM","WOKING BOROUGH COUNCIL","15/04/2022","27/04/2022","0000477060/001","FAITH RECRUITMENT","01709500","41.37 ","PLANNING SERVICES - DEVELOPMENT CONTROL","TEMPORARY STAFF","A110","TEMPORARY STAFF","PLANNING SERVICES","HUMAN RESOURCES"
"http://statistics.data.gov.uk/id/local-authority/43UM","WOKING BOROUGH COUNCIL","04/04/2022","04/05/2022","0000476525/001","PENNA PLC","40087400","11,890.00 ","FINANCIAL SERVICES - FINANCIAL SERVICES","TEMPORARY STAFF","A110","TEMPORARY STAFF","FINANCIAL SERVICES","HUMAN RESOURCES"
"http://statistics.data.gov.uk/id/local-authority/43UM","WOKING BOROUGH COUNCIL","28/04/2022","04/05/2022","0000477194/001","OYSTER PARTNERSHIP","40443300","1,878.03 ","ASSET MANAGEMENT - VALUATION SERVICES","TEMPORARY STAFF","A110","TEMPORARY STAFF","ASSET MANAGEMENT","HUMAN RESOURCES"
"http://statistics.data.gov.uk/id/local-authority/43UM","WOKING BOROUGH COUNCIL","21/04/2022","04/05/2022","0000477068/001","OYSTER PARTNERSHIP","40443300","1,860.24 ","ASSET MANAGEMENT - VALUATION SERVICES","TEMPORARY STAFF","A110","TEMPORARY STAFF","ASSET MANAGEMENT","HUMAN RESOURCES"
"http://statistics.data.gov.uk/id/local-authority/43UM","WOKING BOROUGH COUNCIL","27/04/2022","04/05/2022","0000477176/001","VIVID RESOURCING","40463200","1,848.40 ","PLANNING SERVICES - DEVELOPMENT CONTROL","TEMPORARY STAFF","A110","TEMPORARY STAFF","PLANNING SERVICES","HUMAN RESOURCES"
"http://statistics.data.gov.uk/id/local-authority/43UM","WOKING BOROUGH COUNCIL","28/04/2022","04/05/2022","0000477193/001","OYSTER PARTNERSHIP","40443300","1,567.83 ","PLANNING SERVICES - DEVELOPMENT CONTROL","TEMPORARY STAFF","A110","TEMPORARY STAFF","PLANNING SERVICES","HUMAN RESOURCES"
"http://statistics.data.gov.uk/id/local-authority/43UM","WOKING BOROUGH COUNCIL","17/04/2022","04/05/2022","0000477076/001","UNITY RECRUITMENT LTD","40160500","1,010.63 ","NEIGHBOURHOOD SERVICES - PARKING SERVICES","TEMPORARY STAFF","A110","TEMPORARY STAFF","NEIGHBOURHOOD SERVICES","HUMAN RESOURCES"
"http://statistics.data.gov.uk/id/local-authority/43UM","WOKING BOROUGH COUNCIL","17/04/2022","04/05/2022","0000477076/002","UNITY RECRUITMENT LTD","40160500","1,010.63 ","NEIGHBOURHOOD SERVICES - PARKING SERVICES","TEMPORARY STAFF","A110","TEMPORARY STAFF","NEIGHBOURHOOD SERVICES","HUMAN RESOURCES"
"http://statistics.data.gov.uk/id/local-authority/43UM","WOKING BOROUGH COUNCIL","28/04/2022","04/05/2022","0000477195/001","FLYING UMBRELLA","41022200","1,000.00 ","REVENUES AND BENEFITS - BENEFIT SERVICES","TEMPORARY STAFF","A110","TEMPORARY STAFF","REVENUES AND BENEFITS","HUMAN RESOURCES"
"http://statistics.data.gov.uk/id/local-authority/43UM","WOKING BOROUGH COUNCIL","10/04/2022","04/05/2022","0000476969/001","UNITY RECRUITMENT LTD","40160500","981.75 ","NEIGHBOURHOOD SERVICES - PARKING SERVICES","TEMPORARY STAFF","A110","TEMPORARY STAFF","NEIGHBOURHOOD SERVICES","HUMAN RESOURCES"
"http://statistics.data.gov.uk/id/local-authority/43UM","WOKING BOROUGH COUNCIL","24/04/2022","04/05/2022","0000477185/001","MORGAN HUNT UK LIMITED","01768500","937.50 ","REVENUES AND BENEFITS - COUNCIL TAX","TEMPORARY STAFF","A110","TEMPORARY STAFF","REVENUES AND BENEFITS","HUMAN RESOURCES"
"http://statistics.data.gov.uk/id/local-authority/43UM","WOKING BOROUGH COUNCIL","25/04/2022","04/05/2022","0000477107/001","THE UMBRELLA AGENCY LIMITED","40983300","925.00 ","REVENUES AND BENEFITS - COUNCIL TAX","TEMPORARY STAFF","A110","TEMPORARY STAFF","REVENUES AND BENEFITS","CONSULTANCY"
"http://statistics.data.gov.uk/id/local-authority/43UM","WOKING BOROUGH COUNCIL","10/04/2022","04/05/2022","0000476969/003","UNITY RECRUITMENT LTD","40160500","866.25 ","NEIGHBOURHOOD SERVICES - PARKING SERVICES","TEMPORARY STAFF","A110","TEMPORARY STAFF","NEIGHBOURHOOD SERVICES","HUMAN RESOURCES"
"http://statistics.data.gov.uk/id/local-authority/43UM","WOKING BOROUGH COUNCIL","24/04/2022","04/05/2022","0000477282/002","UNITY RECRUITMENT LTD","40160500","866.25 ","NEIGHBOURHOOD SERVICES - PARKING SERVICES","TEMPORARY STAFF","A110","TEMPORARY STAFF","NEIGHBOURHOOD SERVICES","HUMAN RESOURCES"
"http://statistics.data.gov.uk/id/local-authority/43UM","WOKING BOROUGH COUNCIL","14/04/2022","04/05/2022","0000477210/001","VENN GROUP LIMITED","40383900","807.00 ","REVENUES AND BENEFITS - BENEFIT SERVICES","TEMPORARY STAFF","A110","TEMPORARY STAFF","REVENUES AND BENEFITS","HUMAN RESOURCES"
"http://statistics.data.gov.uk/id/local-authority/43UM","WOKING BOROUGH COUNCIL","24/04/2022","04/05/2022","0000477282/001","UNITY RECRUITMENT LTD","40160500","577.50 ","NEIGHBOURHOOD SERVICES - PARKING SERVICES","TEMPORARY STAFF","A110","TEMPORARY STAFF","NEIGHBOURHOOD SERVICES","HUMAN RESOURCES"
"http://statistics.data.gov.uk/id/local-authority/43UM","WOKING BOROUGH COUNCIL","15/04/2022","04/05/2022","0000477057/001","FAITH RECRUITMENT","01709500","532.06 ","CORPORATE STRATEGY - CUSTOMER SERVICES","TEMPORARY STAFF","A110","TEMPORARY STAFF","CORPORATE STRATEGY","HUMAN RESOURCES"
"http://statistics.data.gov.uk/id/local-authority/43UM","WOKING BOROUGH COUNCIL","22/04/2022","04/05/2022","0000477221/001","FAITH RECRUITMENT","01709500","532.06 ","CORPORATE STRATEGY - CUSTOMER SERVICES","TEMPORARY STAFF","A110","TEMPORARY STAFF","CORPORATE STRATEGY","HUMAN RESOURCES"
"http://statistics.data.gov.uk/id/local-authority/43UM","WOKING BOROUGH COUNCIL","15/04/2022","04/05/2022","0000477053/001","FAITH RECRUITMENT","01709500","502.50 ","NEIGHBOURHOOD SERVICES - PARKING SERVICES","TEMPORARY STAFF","A110","TEMPORARY STAFF","NEIGHBOURHOOD SERVICES","HUMAN RESOURCES"
"http://statistics.data.gov.uk/id/local-authority/43UM","WOKING BOROUGH COUNCIL","22/04/2022","04/05/2022","0000477218/001","FAITH RECRUITMENT","01709500","502.50 ","NEIGHBOURHOOD SERVICES - PARKING SERVICES","TEMPORARY STAFF","A110","TEMPORARY STAFF","NEIGHBOURHOOD SERVICES","HUMAN RESOURCES"
"http://statistics.data.gov.uk/id/local-authority/43UM","WOKING BOROUGH COUNCIL","10/04/2022","04/05/2022","0000476969/002","UNITY RECRUITMENT LTD","40160500","129.94 ","NEIGHBOURHOOD SERVICES - PARKING SERVICES","TEMPORARY STAFF","A110","TEMPORARY STAFF","NEIGHBOURHOOD SERVICES","HUMAN RESOURCES"
"http://statistics.data.gov.uk/id/local-authority/43UM","WOKING BOROUGH COUNCIL","22/04/2022","04/05/2022","0000477222/001","FAITH RECRUITMENT","01709500","41.37 ","PLANNING SERVICES - DEVELOPMENT CONTROL","TEMPORARY STAFF","A110","TEMPORARY STAFF","PLANNING SERVICES","HUMAN RESOURCES"
"http://statistics.data.gov.uk/id/local-authority/43UM","WOKING BOROUGH COUNCIL","04/05/2022","11/05/2022","0000477438/001","VIVID RESOURCING","40463200","1,940.82 ","PLANNING SERVICES - DEVELOPMENT CONTROL","TEMPORARY STAFF","A110","TEMPORARY STAFF","PLANNING SERVICES","HUMAN RESOURCES"
"http://statistics.data.gov.uk/id/local-authority/43UM","WOKING BOROUGH COUNCIL","04/05/2022","11/05/2022","0000477400/001","OYSTER PARTNERSHIP","40443300","1,880.38 ","PLANNING SERVICES - DEVELOPMENT CONTROL","TEMPORARY STAFF","A110","TEMPORARY STAFF","PLANNING SERVICES","HUMAN RESOURCES"
"http://statistics.data.gov.uk/id/local-authority/43UM","WOKING BOROUGH COUNCIL","04/05/2022","11/05/2022","0000477401/001","OYSTER PARTNERSHIP","40443300","1,284.91 ","ASSET MANAGEMENT - VALUATION SERVICES","TEMPORARY STAFF","A110","TEMPORARY STAFF","ASSET MANAGEMENT","HUMAN RESOURCES"
"http://statistics.data.gov.uk/id/local-authority/43UM","WOKING BOROUGH COUNCIL","04/05/2022","11/05/2022","0000477439/001","VIVID RESOURCING","40463200","1,258.00 ","HOUSING SERVICES - HOUSING NEEDS & ALLOCATIONS","TEMPORARY STAFF","A110","TEMPORARY STAFF","HOUSING SERVICES","HUMAN RESOURCES"
"http://statistics.data.gov.uk/id/local-authority/43UM","WOKING BOROUGH COUNCIL","01/05/2022","11/05/2022","0000477433/001","MORGAN HUNT UK LIMITED","01768500","1,125.00 ","REVENUES AND BENEFITS - COUNCIL TAX","TEMPORARY STAFF","A110","TEMPORARY STAFF","REVENUES AND BENEFITS","HUMAN RESOURCES"
"http://statistics.data.gov.uk/id/local-authority/43UM","WOKING BOROUGH COUNCIL","27/04/2022","11/05/2022","0000477177/001","VIVID RESOURCING","40463200","1,006.40 ","HOUSING SERVICES - HOUSING NEEDS & ALLOCATIONS","TEMPORARY STAFF","A110","TEMPORARY STAFF","HOUSING SERVICES","HUMAN RESOURCES"
"http://statistics.data.gov.uk/id/local-authority/43UM","WOKING BOROUGH COUNCIL","06/05/2022","11/05/2022","0000477457/001","FLYING UMBRELLA","41022200","1,000.00 ","REVENUES AND BENEFITS - BENEFIT SERVICES","TEMPORARY STAFF","A110","TEMPORARY STAFF","REVENUES AND BENEFITS","HUMAN RESOURCES"
"http://statistics.data.gov.uk/id/local-authority/43UM","WOKING BOROUGH COUNCIL","06/05/2022","11/05/2022","0000477544/001","FLYING UMBRELLA","41022200","1,000.00 ","REVENUES AND BENEFITS - BENEFIT SERVICES","TEMPORARY STAFF","A110","TEMPORARY STAFF","REVENUES AND BENEFITS","HUMAN RESOURCES"
"http://statistics.data.gov.uk/id/local-authority/43UM","WOKING BOROUGH COUNCIL","20/04/2022","11/05/2022","0000477436/001","VENN GROUP LIMITED","40383900","807.00 ","REVENUES AND BENEFITS - BENEFIT SERVICES","TEMPORARY STAFF","A110","TEMPORARY STAFF","REVENUES AND BENEFITS","HUMAN RESOURCES"
"http://statistics.data.gov.uk/id/local-authority/43UM","WOKING BOROUGH COUNCIL","04/05/2022","11/05/2022","0000477448/001","BROOK STREET (UK) LTD","01049600","804.75 ","HOUSING SERVICES - HOUSING STANDARDS & LICENSING","TEMPORARY STAFF","A110","TEMPORARY STAFF","HOUSING SERVICES","HUMAN RESOURCES"
"http://statistics.data.gov.uk/id/local-authority/43UM","WOKING BOROUGH COUNCIL","29/04/2022","11/05/2022","0000477540/001","FAITH RECRUITMENT","01709500","663.38 ","NEIGHBOURHOOD SERVICES - PARKING SERVICES","TEMPORARY STAFF","A110","TEMPORARY STAFF","NEIGHBOURHOOD SERVICES","HUMAN RESOURCES"
"http://statistics.data.gov.uk/id/local-authority/43UM","WOKING BOROUGH COUNCIL","15/04/2022","11/05/2022","0000477061/001","FAITH RECRUITMENT","01709500","530.70 ","NEIGHBOURHOOD SERVICES - PARKING SERVICES","TEMPORARY STAFF","A110","TEMPORARY STAFF","NEIGHBOURHOOD SERVICES","HUMAN RESOURCES"
"http://statistics.data.gov.uk/id/local-authority/43UM","WOKING BOROUGH COUNCIL","22/04/2022","11/05/2022","0000477223/001","FAITH RECRUITMENT","01709500","530.70 ","NEIGHBOURHOOD SERVICES - PARKING SERVICES","TEMPORARY STAFF","A110","TEMPORARY STAFF","NEIGHBOURHOOD SERVICES","HUMAN RESOURCES"
"http://statistics.data.gov.uk/id/local-authority/43UM","WOKING BOROUGH COUNCIL","15/04/2022","11/05/2022","0000477055/001","FAITH RECRUITMENT","01709500","496.20 ","NEIGHBOURHOOD SERVICES - PARKING SERVICES","TEMPORARY STAFF","A110","TEMPORARY STAFF","NEIGHBOURHOOD SERVICES","HUMAN RESOURCES"
"http://statistics.data.gov.uk/id/local-authority/43UM","WOKING BOROUGH COUNCIL","22/04/2022","11/05/2022","0000477220/001","FAITH RECRUITMENT","01709500","496.20 ","NEIGHBOURHOOD SERVICES - PARKING SERVICES","TEMPORARY STAFF","A110","TEMPORARY STAFF","NEIGHBOURHOOD SERVICES","HUMAN RESOURCES"
"http://statistics.data.gov.uk/id/local-authority/43UM","WOKING BOROUGH COUNCIL","29/04/2022","11/05/2022","0000477538/001","FAITH RECRUITMENT","01709500","453.72 ","PLANNING SERVICES - DEVELOPMENT CONTROL","TEMPORARY STAFF","A110","TEMPORARY STAFF","PLANNING SERVICES","HUMAN RESOURCES"
"http://statistics.data.gov.uk/id/local-authority/43UM","WOKING BOROUGH COUNCIL","29/04/2022","11/05/2022","0000477536/001","FAITH RECRUITMENT","01709500","124.05 ","NEIGHBOURHOOD SERVICES - PARKING SERVICES","TEMPORARY STAFF","A110","TEMPORARY STAFF","NEIGHBOURHOOD SERVICES","HUMAN RESOURCES"
"http://statistics.data.gov.uk/id/local-authority/43UM","WOKING BOROUGH COUNCIL","15/04/2022","11/05/2022","0000477054/001","FAITH RECRUITMENT","01709500","41.37 ","NEIGHBOURHOOD SERVICES - PARKING SERVICES","TEMPORARY STAFF","A110","TEMPORARY STAFF","NEIGHBOURHOOD SERVICES","HUMAN RESOURCES"
"http://statistics.data.gov.uk/id/local-authority/43UM","WOKING BOROUGH COUNCIL","15/04/2022","11/05/2022","0000477062/001","FAITH RECRUITMENT","01709500","41.37 ","NEIGHBOURHOOD SERVICES - PARKING SERVICES","TEMPORARY STAFF","A110","TEMPORARY STAFF","NEIGHBOURHOOD SERVICES","HUMAN RESOURCES"
"http://statistics.data.gov.uk/id/local-authority/43UM","WOKING BOROUGH COUNCIL","22/04/2022","11/05/2022","0000477219/001","FAITH RECRUITMENT","01709500","41.37 ","NEIGHBOURHOOD SERVICES - PARKING SERVICES","TEMPORARY STAFF","A110","TEMPORARY STAFF","NEIGHBOURHOOD SERVICES","HUMAN RESOURCES"
"http://statistics.data.gov.uk/id/local-authority/43UM","WOKING BOROUGH COUNCIL","22/04/2022","11/05/2022","0000477224/001","FAITH RECRUITMENT","01709500","41.37 ","NEIGHBOURHOOD SERVICES - PARKING SERVICES","TEMPORARY STAFF","A110","TEMPORARY STAFF","NEIGHBOURHOOD SERVICES","HUMAN RESOURCES"
"http://statistics.data.gov.uk/id/local-authority/43UM","WOKING BOROUGH COUNCIL","29/04/2022","11/05/2022","0000477535/001","FAITH RECRUITMENT","01709500","41.37 ","NEIGHBOURHOOD SERVICES - PARKING SERVICES","TEMPORARY STAFF","A110","TEMPORARY STAFF","NEIGHBOURHOOD SERVICES","HUMAN RESOURCES"
"http://statistics.data.gov.uk/id/local-authority/43UM","WOKING BOROUGH COUNCIL","29/04/2022","11/05/2022","0000477537/001","FAITH RECRUITMENT","01709500","41.37 ","NEIGHBOURHOOD SERVICES - PARKING SERVICES","TEMPORARY STAFF","A110","TEMPORARY STAFF","NEIGHBOURHOOD SERVICES","HUMAN RESOURCES"
"http://statistics.data.gov.uk/id/local-authority/43UM","WOKING BOROUGH COUNCIL","29/04/2022","11/05/2022","0000477539/001","FAITH RECRUITMENT","01709500","41.37 ","PLANNING SERVICES - DEVELOPMENT CONTROL","TEMPORARY STAFF","A110","TEMPORARY STAFF","PLANNING SERVICES","HUMAN RESOURCES"
"http://statistics.data.gov.uk/id/local-authority/43UM","WOKING BOROUGH COUNCIL","08/05/2022","18/05/2022","0000477800/001","UNITY RECRUITMENT LTD","40160500","3,104.07 ","NEIGHBOURHOOD SERVICES - PARKING SERVICES","TEMPORARY STAFF","A110","TEMPORARY STAFF","NEIGHBOURHOOD SERVICES","HUMAN RESOURCES"
"http://statistics.data.gov.uk/id/local-authority/43UM","WOKING BOROUGH COUNCIL","01/05/2022","18/05/2022","0000477546/001","UNITY RECRUITMENT LTD","40160500","2,358.13 ","NEIGHBOURHOOD SERVICES - PARKING SERVICES","TEMPORARY STAFF","A110","TEMPORARY STAFF","NEIGHBOURHOOD SERVICES","HUMAN RESOURCES"
"http://statistics.data.gov.uk/id/local-authority/43UM","WOKING BOROUGH COUNCIL","11/05/2022","18/05/2022","0000477748/001","OYSTER PARTNERSHIP","40443300","1,968.08 ","ASSET MANAGEMENT - BUILDING SERVICES","TEMPORARY STAFF","A110","TEMPORARY STAFF","ASSET MANAGEMENT","HUMAN RESOURCES"
"http://statistics.data.gov.uk/id/local-authority/43UM","WOKING BOROUGH COUNCIL","11/05/2022","18/05/2022","0000477728/001","VIVID RESOURCING","40463200","1,852.10 ","PLANNING SERVICES - DEVELOPMENT CONTROL","TEMPORARY STAFF","A110","TEMPORARY STAFF","PLANNING SERVICES","HUMAN RESOURCES"
"http://statistics.data.gov.uk/id/local-authority/43UM","WOKING BOROUGH COUNCIL","11/05/2022","18/05/2022","0000477746/001","OYSTER PARTNERSHIP","40443300","1,588.92 ","PLANNING SERVICES - DEVELOPMENT CONTROL","TEMPORARY STAFF","A110","TEMPORARY STAFF","PLANNING SERVICES","HUMAN RESOURCES"
"http://statistics.data.gov.uk/id/local-authority/43UM","WOKING BOROUGH COUNCIL","11/05/2022","18/05/2022","0000477727/001","VIVID RESOURCING","40463200","1,258.00 ","HOUSING SERVICES - HOUSING NEEDS & ALLOCATIONS","TEMPORARY STAFF","A110","TEMPORARY STAFF","HOUSING SERVICES","HUMAN RESOURCES"
"http://statistics.data.gov.uk/id/local-authority/43UM","WOKING BOROUGH COUNCIL","12/05/2022","18/05/2022","0000477763/001","FLYING UMBRELLA","41022200","1,000.00 ","REVENUES AND BENEFITS - BENEFIT SERVICES","TEMPORARY STAFF","A110","TEMPORARY STAFF","REVENUES AND BENEFITS","HUMAN RESOURCES"
"http://statistics.data.gov.uk/id/local-authority/43UM","WOKING BOROUGH COUNCIL","08/05/2022","18/05/2022","0000477722/001","MORGAN HUNT UK LIMITED","01768500","953.13 ","REVENUES AND BENEFITS - COUNCIL TAX","TEMPORARY STAFF","A110","TEMPORARY STAFF","REVENUES AND BENEFITS","HUMAN RESOURCES"
"http://statistics.data.gov.uk/id/local-authority/43UM","WOKING BOROUGH COUNCIL","27/04/2022","18/05/2022","0000477565/001","VENN GROUP LIMITED","40383900","807.00 ","REVENUES AND BENEFITS - BENEFIT SERVICES","TEMPORARY STAFF","A110","TEMPORARY STAFF","REVENUES AND BENEFITS","HUMAN RESOURCES"
"http://statistics.data.gov.uk/id/local-authority/43UM","WOKING BOROUGH COUNCIL","04/05/2022","18/05/2022","0000477750/001","VENN GROUP LIMITED","40383900","807.00 ","REVENUES AND BENEFITS - BENEFIT SERVICES","TEMPORARY STAFF","A110","TEMPORARY STAFF","REVENUES AND BENEFITS","HUMAN RESOURCES"
"http://statistics.data.gov.uk/id/local-authority/43UM","WOKING BOROUGH COUNCIL","06/05/2022","18/05/2022","0000477793/001","FAITH RECRUITMENT","01709500","668.48 ","CORPORATE STRATEGY - CUSTOMER SERVICES","TEMPORARY STAFF","A110","TEMPORARY STAFF","CORPORATE STRATEGY","HUMAN RESOURCES"
"http://statistics.data.gov.uk/id/local-authority/43UM","WOKING BOROUGH COUNCIL","06/05/2022","18/05/2022","0000477742/001","BROOK STREET (UK) LTD","01049600","643.80 ","HOUSING SERVICES - HOUSING STANDARDS & LICENSING","TEMPORARY STAFF","A110","TEMPORARY STAFF","HOUSING SERVICES","HUMAN RESOURCES"
"http://statistics.data.gov.uk/id/local-authority/43UM","WOKING BOROUGH COUNCIL","06/05/2022","18/05/2022","0000477791/001","FAITH RECRUITMENT","01709500","530.70 ","NEIGHBOURHOOD SERVICES - PARKING SERVICES","TEMPORARY STAFF","A110","TEMPORARY STAFF","NEIGHBOURHOOD SERVICES","HUMAN RESOURCES"
"http://statistics.data.gov.uk/id/local-authority/43UM","WOKING BOROUGH COUNCIL","06/05/2022","18/05/2022","0000477796/001","FAITH RECRUITMENT","01709500","530.70 ","NEIGHBOURHOOD SERVICES - PARKING SERVICES","TEMPORARY STAFF","A110","TEMPORARY STAFF","NEIGHBOURHOOD SERVICES","HUMAN RESOURCES"
"http://statistics.data.gov.uk/id/local-authority/43UM","WOKING BOROUGH COUNCIL","06/05/2022","18/05/2022","0000477794/001","FAITH RECRUITMENT","01709500","400.18 ","CORPORATE STRATEGY - CUSTOMER SERVICES","TEMPORARY STAFF","A110","TEMPORARY STAFF","CORPORATE STRATEGY","HUMAN RESOURCES"
"http://statistics.data.gov.uk/id/local-authority/43UM","WOKING BOROUGH COUNCIL","06/05/2022","18/05/2022","0000477792/001","FAITH RECRUITMENT","01709500","41.37 ","NEIGHBOURHOOD SERVICES - PARKING SERVICES","TEMPORARY STAFF","A110","TEMPORARY STAFF","NEIGHBOURHOOD SERVICES","HUMAN RESOURCES"
"http://statistics.data.gov.uk/id/local-authority/43UM","WOKING BOROUGH COUNCIL","06/05/2022","18/05/2022","0000477797/001","FAITH RECRUITMENT","01709500","41.37 ","NEIGHBOURHOOD SERVICES - PARKING SERVICES","TEMPORARY STAFF","A110","TEMPORARY STAFF","NEIGHBOURHOOD SERVICES","HUMAN RESOURCES"
"http://statistics.data.gov.uk/id/local-authority/43UM","WOKING BOROUGH COUNCIL","06/05/2022","18/05/2022","0000477795/001","FAITH RECRUITMENT","01709500","41.37 ","PLANNING SERVICES - DEVELOPMENT CONTROL","TEMPORARY STAFF","A110","TEMPORARY STAFF","PLANNING SERVICES","HUMAN RESOURCES"
"http://statistics.data.gov.uk/id/local-authority/43UM","WOKING BOROUGH COUNCIL","03/05/2022","25/05/2022","0000477970/001","SURREY CARE TRUST","00061500","9,000.00 ","INDEPENDENT LIVING SERVICES - SYRIAN REFUGEE FAMILIES","TEMPORARY STAFF","A110","TEMPORARY STAFF","INDEPENDENT LIVING SERVICES","FINANCIAL SERVICES"
"http://statistics.data.gov.uk/id/local-authority/43UM","WOKING BOROUGH COUNCIL","18/05/2022","25/05/2022","0000477947/001","OYSTER PARTNERSHIP","40443300","2,022.00 ","ASSET MANAGEMENT - BUILDING SERVICES","TEMPORARY STAFF","A110","TEMPORARY STAFF","ASSET MANAGEMENT","HUMAN RESOURCES"
"http://statistics.data.gov.uk/id/local-authority/43UM","WOKING BOROUGH COUNCIL","18/05/2022","25/05/2022","0000477972/001","VIVID RESOURCING","40463200","1,944.52 ","PLANNING SERVICES - DEVELOPMENT CONTROL","TEMPORARY STAFF","A110","TEMPORARY STAFF","PLANNING SERVICES","HUMAN RESOURCES"
"http://statistics.data.gov.uk/id/local-authority/43UM","WOKING BOROUGH COUNCIL","18/05/2022","25/05/2022","0000477948/001","OYSTER PARTNERSHIP","40443300","1,880.38 ","PLANNING SERVICES - DEVELOPMENT CONTROL","TEMPORARY STAFF","A110","TEMPORARY STAFF","PLANNING SERVICES","HUMAN RESOURCES"
"http://statistics.data.gov.uk/id/local-authority/43UM","WOKING BOROUGH COUNCIL","15/05/2022","25/05/2022","0000477981/001","MORGAN HUNT UK LIMITED","01768500","1,062.50 ","REVENUES AND BENEFITS - COUNCIL TAX","TEMPORARY STAFF","A110","TEMPORARY STAFF","REVENUES AND BENEFITS","HUMAN RESOURCES"
"http://statistics.data.gov.uk/id/local-authority/43UM","WOKING BOROUGH COUNCIL","17/05/2022","25/05/2022","0000477904/001","FLYING UMBRELLA","41022200","1,000.00 ","REVENUES AND BENEFITS - BENEFIT SERVICES","TEMPORARY STAFF","A110","TEMPORARY STAFF","REVENUES AND BENEFITS","HUMAN RESOURCES"
"http://statistics.data.gov.uk/id/local-authority/43UM","WOKING BOROUGH COUNCIL","19/05/2022","25/05/2022","0000477964/001","FLYING UMBRELLA","41022200","1,000.00 ","REVENUES AND BENEFITS - BENEFIT SERVICES","TEMPORARY STAFF","A110","TEMPORARY STAFF","REVENUES AND BENEFITS","HUMAN RESOURCES"
"http://statistics.data.gov.uk/id/local-authority/43UM","WOKING BOROUGH COUNCIL","20/05/2022","25/05/2022","0000478013/001","FLYING UMBRELLA","41022200","1,000.00 ","REVENUES AND BENEFITS - BENEFIT SERVICES","TEMPORARY STAFF","A110","TEMPORARY STAFF","REVENUES AND BENEFITS","HUMAN RESOURCES"
"http://statistics.data.gov.uk/id/local-authority/43UM","WOKING BOROUGH COUNCIL","20/05/2022","25/05/2022","0000477898/001","THE UMBRELLA AGENCY LIMITED","40983300","1,000.00 ","REVENUES AND BENEFITS - COUNCIL TAX","TEMPORARY STAFF","A110","TEMPORARY STAFF","REVENUES AND BENEFITS","CONSULTANCY"
"http://statistics.data.gov.uk/id/local-authority/43UM","WOKING BOROUGH COUNCIL","11/05/2022","25/05/2022","0000477956/001","VENN GROUP LIMITED","40383900","807.00 ","REVENUES AND BENEFITS - BENEFIT SERVICES","TEMPORARY STAFF","A110","TEMPORARY STAFF","REVENUES AND BENEFITS","HUMAN RESOURCES"
"http://statistics.data.gov.uk/id/local-authority/43UM","WOKING BOROUGH COUNCIL","18/05/2022","25/05/2022","0000477946/001","BROOK STREET (UK) LTD","01049600","804.75 ","HOUSING SERVICES - HOUSING STANDARDS & LICENSING","TEMPORARY STAFF","A110","TEMPORARY STAFF","HOUSING SERVICES","HUMAN RESOURCES"
"http://statistics.data.gov.uk/id/local-authority/43UM","WOKING BOROUGH COUNCIL","13/05/2022","25/05/2022","0000477993/001","FAITH RECRUITMENT","01709500","413.92 ","PLANNING SERVICES - DEVELOPMENT CONTROL","TEMPORARY STAFF","A110","TEMPORARY STAFF","PLANNING SERVICES","HUMAN RESOURCES"
"http://statistics.data.gov.uk/id/local-authority/43UM","WOKING BOROUGH COUNCIL","13/05/2022","25/05/2022","0000477994/001","FAITH RECRUITMENT","01709500","41.37 ","PLANNING SERVICES - DEVELOPMENT CONTROL","TEMPORARY STAFF","A110","TEMPORARY STAFF","PLANNING SERVICES","HUMAN RESOURCES"
"http://statistics.data.gov.uk/id/local-authority/43UM","WOKING BOROUGH COUNCIL","25/05/2022","31/05/2022","0000478113/001","VIVID RESOURCING","40463200","1,944.52 ","HOUSING SERVICES - HOUSING NEEDS & ALLOCATIONS","TEMPORARY STAFF","A110","TEMPORARY STAFF","HOUSING SERVICES","HUMAN RESOURCES"
"http://statistics.data.gov.uk/id/local-authority/43UM","WOKING BOROUGH COUNCIL","18/05/2022","31/05/2022","0000477973/001","VIVID RESOURCING","40463200","1,258.00 ","HOUSING SERVICES - HOUSING NEEDS & ALLOCATIONS","TEMPORARY STAFF","A110","TEMPORARY STAFF","HOUSING SERVICES","HUMAN RESOURCES"
"http://statistics.data.gov.uk/id/local-authority/43UM","WOKING BOROUGH COUNCIL","25/05/2022","31/05/2022","0000478112/001","VIVID RESOURCING","40463200","1,258.00 ","HOUSING SERVICES - HOUSING NEEDS & ALLOCATIONS","TEMPORARY STAFF","A110","TEMPORARY STAFF","HOUSING SERVICES","HUMAN RESOURCES"
"http://statistics.data.gov.uk/id/local-authority/43UM","WOKING BOROUGH COUNCIL","26/05/2022","31/05/2022","0000478172/001","FLYING UMBRELLA","41022200","1,000.00 ","REVENUES AND BENEFITS - BENEFIT SERVICES","TEMPORARY STAFF","A110","TEMPORARY STAFF","REVENUES AND BENEFITS","HUMAN RESOURCES"
"http://statistics.data.gov.uk/id/local-authority/43UM","WOKING BOROUGH COUNCIL","27/05/2022","31/05/2022","0000478194/001","FLYING UMBRELLA","41022200","1,000.00 ","REVENUES AND BENEFITS - BENEFIT SERVICES","TEMPORARY STAFF","A110","TEMPORARY STAFF","REVENUES AND BENEFITS","HUMAN RESOURCES"
"http://statistics.data.gov.uk/id/local-authority/43UM","WOKING BOROUGH COUNCIL","23/05/2022","31/05/2022","0000478052/001","THE UMBRELLA AGENCY LIMITED","40983300","1,000.00 ","REVENUES AND BENEFITS - COUNCIL TAX","TEMPORARY STAFF","A110","TEMPORARY STAFF","REVENUES AND BENEFITS","CONSULTANCY"
"http://statistics.data.gov.uk/id/local-authority/43UM","WOKING BOROUGH COUNCIL","23/05/2022","31/05/2022","0000478055/001","THE UMBRELLA AGENCY LIMITED","40983300","1,000.00 ","REVENUES AND BENEFITS - COUNCIL TAX","TEMPORARY STAFF","A110","TEMPORARY STAFF","REVENUES AND BENEFITS","CONSULTANCY"
"http://statistics.data.gov.uk/id/local-authority/43UM","WOKING BOROUGH COUNCIL","23/05/2022","31/05/2022","0000478056/001","THE UMBRELLA AGENCY LIMITED","40983300","1,000.00 ","REVENUES AND BENEFITS - COUNCIL TAX","TEMPORARY STAFF","A110","TEMPORARY STAFF","REVENUES AND BENEFITS","CONSULTANCY"
"http://statistics.data.gov.uk/id/local-authority/43UM","WOKING BOROUGH COUNCIL","23/05/2022","31/05/2022","0000478053/001","THE UMBRELLA AGENCY LIMITED","40983300","931.25 ","REVENUES AND BENEFITS - COUNCIL TAX","TEMPORARY STAFF","A110","TEMPORARY STAFF","REVENUES AND BENEFITS","CONSULTANCY"
"http://statistics.data.gov.uk/id/local-authority/43UM","WOKING BOROUGH COUNCIL","18/05/2022","31/05/2022","0000478111/001","VENN GROUP LIMITED","40383900","807.00 ","REVENUES AND BENEFITS - BENEFIT SERVICES","TEMPORARY STAFF","A110","TEMPORARY STAFF","REVENUES AND BENEFITS","HUMAN RESOURCES"
"http://statistics.data.gov.uk/id/local-authority/43UM","WOKING BOROUGH COUNCIL","22/05/2022","08/06/2022","0000478191/001","UNITY RECRUITMENT LTD","40160500","2,444.75 ","NEIGHBOURHOOD SERVICES - PARKING SERVICES","TEMPORARY STAFF","A110","TEMPORARY STAFF","NEIGHBOURHOOD SERVICES","HUMAN RESOURCES"
"http://statistics.data.gov.uk/id/local-authority/43UM","WOKING BOROUGH COUNCIL","15/05/2022","08/06/2022","0000478070/001","UNITY RECRUITMENT LTD","40160500","2,156.01 ","NEIGHBOURHOOD SERVICES - PARKING SERVICES","TEMPORARY STAFF","A110","TEMPORARY STAFF","NEIGHBOURHOOD SERVICES","HUMAN RESOURCES"
"http://statistics.data.gov.uk/id/local-authority/43UM","WOKING BOROUGH COUNCIL","29/05/2022","08/06/2022","0000478348/001","UNITY RECRUITMENT LTD","40160500","2,045.32 ","NEIGHBOURHOOD SERVICES - PARKING SERVICES","TEMPORARY STAFF","A110","TEMPORARY STAFF","NEIGHBOURHOOD SERVICES","HUMAN RESOURCES"
"http://statistics.data.gov.uk/id/local-authority/43UM","WOKING BOROUGH COUNCIL","30/05/2022","08/06/2022","0000478339/001","VIVID RESOURCING","40463200","1,940.82 ","PLANNING SERVICES - DEVELOPMENT CONTROL","TEMPORARY STAFF","A110","TEMPORARY STAFF","PLANNING SERVICES","HUMAN RESOURCES"
"http://statistics.data.gov.uk/id/local-authority/43UM","WOKING BOROUGH COUNCIL","31/05/2022","08/06/2022","0000478426/001","OYSTER PARTNERSHIP","40443300","1,898.10 ","PLANNING SERVICES - DEVELOPMENT CONTROL","TEMPORARY STAFF","A110","TEMPORARY STAFF","PLANNING SERVICES","HUMAN RESOURCES"
"http://statistics.data.gov.uk/id/local-authority/43UM","WOKING BOROUGH COUNCIL","25/05/2022","08/06/2022","0000478362/001","OYSTER PARTNERSHIP","40443300","1,877.01 ","PLANNING SERVICES - DEVELOPMENT CONTROL","TEMPORARY STAFF","A110","TEMPORARY STAFF","PLANNING SERVICES","HUMAN RESOURCES"
"http://statistics.data.gov.uk/id/local-authority/43UM","WOKING BOROUGH COUNCIL","30/05/2022","08/06/2022","0000478340/001","VIVID RESOURCING","40463200","1,258.00 ","HOUSING SERVICES - HOUSING NEEDS & ALLOCATIONS","TEMPORARY STAFF","A110","TEMPORARY STAFF","HOUSING SERVICES","HUMAN RESOURCES"
"http://statistics.data.gov.uk/id/local-authority/43UM","WOKING BOROUGH COUNCIL","22/05/2022","08/06/2022","0000478160/001","MORGAN HUNT UK LIMITED","01768500","1,093.75 ","REVENUES AND BENEFITS - COUNCIL TAX","TEMPORARY STAFF","A110","TEMPORARY STAFF","REVENUES AND BENEFITS","HUMAN RESOURCES"
"http://statistics.data.gov.uk/id/local-authority/43UM","WOKING BOROUGH COUNCIL","29/05/2022","08/06/2022","0000478343/001","MORGAN HUNT UK LIMITED","01768500","968.75 ","REVENUES AND BENEFITS - COUNCIL TAX","TEMPORARY STAFF","A110","TEMPORARY STAFF","REVENUES AND BENEFITS","HUMAN RESOURCES"
"http://statistics.data.gov.uk/id/local-authority/43UM","WOKING BOROUGH COUNCIL","27/05/2022","08/06/2022","0000478264/001","ABC UMBRELLA LTD","41031700","937.50 ","REVENUES AND BENEFITS - COUNCIL TAX","TEMPORARY STAFF","A110","TEMPORARY STAFF","REVENUES AND BENEFITS","HUMAN RESOURCES"
"http://statistics.data.gov.uk/id/local-authority/43UM","WOKING BOROUGH COUNCIL","01/06/2022","08/06/2022","0000478388/001","FLYING UMBRELLA","41022200","800.00 ","REVENUES AND BENEFITS - BENEFIT SERVICES","TEMPORARY STAFF","A110","TEMPORARY STAFF","REVENUES AND BENEFITS","HUMAN RESOURCES"
"http://statistics.data.gov.uk/id/local-authority/43UM","WOKING BOROUGH COUNCIL","20/05/2022","08/06/2022","0000478206/001","FAITH RECRUITMENT","01709500","668.48 ","CORPORATE STRATEGY - CUSTOMER SERVICES","TEMPORARY STAFF","A110","TEMPORARY STAFF","CORPORATE STRATEGY","HUMAN RESOURCES"
"http://statistics.data.gov.uk/id/local-authority/43UM","WOKING BOROUGH COUNCIL","20/05/2022","08/06/2022","0000478207/001","FAITH RECRUITMENT","01709500","668.48 ","CORPORATE STRATEGY - CUSTOMER SERVICES","TEMPORARY STAFF","A110","TEMPORARY STAFF","CORPORATE STRATEGY","HUMAN RESOURCES"
"http://statistics.data.gov.uk/id/local-authority/43UM","WOKING BOROUGH COUNCIL","27/05/2022","08/06/2022","0000478411/001","FAITH RECRUITMENT","01709500","668.48 ","CORPORATE STRATEGY - CUSTOMER SERVICES","TEMPORARY STAFF","A110","TEMPORARY STAFF","CORPORATE STRATEGY","HUMAN RESOURCES"
"http://statistics.data.gov.uk/id/local-authority/43UM","WOKING BOROUGH COUNCIL","13/05/2022","08/06/2022","0000477991/001","FAITH RECRUITMENT","01709500","663.38 ","NEIGHBOURHOOD SERVICES - PARKING SERVICES","TEMPORARY STAFF","A110","TEMPORARY STAFF","NEIGHBOURHOOD SERVICES","HUMAN RESOURCES"
"http://statistics.data.gov.uk/id/local-authority/43UM","WOKING BOROUGH COUNCIL","13/05/2022","08/06/2022","0000477997/001","FAITH RECRUITMENT","01709500","663.38 ","NEIGHBOURHOOD SERVICES - PARKING SERVICES","TEMPORARY STAFF","A110","TEMPORARY STAFF","NEIGHBOURHOOD SERVICES","HUMAN RESOURCES"
"http://statistics.data.gov.uk/id/local-authority/43UM","WOKING BOROUGH COUNCIL","20/05/2022","08/06/2022","0000478204/001","FAITH RECRUITMENT","01709500","663.38 ","NEIGHBOURHOOD SERVICES - PARKING SERVICES","TEMPORARY STAFF","A110","TEMPORARY STAFF","NEIGHBOURHOOD SERVICES","HUMAN RESOURCES"
"http://statistics.data.gov.uk/id/local-authority/43UM","WOKING BOROUGH COUNCIL","20/05/2022","08/06/2022","0000478210/001","FAITH RECRUITMENT","01709500","663.38 ","NEIGHBOURHOOD SERVICES - PARKING SERVICES","TEMPORARY STAFF","A110","TEMPORARY STAFF","NEIGHBOURHOOD SERVICES","HUMAN RESOURCES"
"http://statistics.data.gov.uk/id/local-authority/43UM","WOKING BOROUGH COUNCIL","20/05/2022","08/06/2022","0000478208/001","FAITH RECRUITMENT","01709500","509.44 ","PLANNING SERVICES - DEVELOPMENT CONTROL","TEMPORARY STAFF","A110","TEMPORARY STAFF","PLANNING SERVICES","HUMAN RESOURCES"
"http://statistics.data.gov.uk/id/local-authority/43UM","WOKING BOROUGH COUNCIL","25/05/2022","08/06/2022","0000478417/001","VENN GROUP LIMITED","40383900","484.20 ","REVENUES AND BENEFITS - BENEFIT SERVICES","TEMPORARY STAFF","A110","TEMPORARY STAFF","REVENUES AND BENEFITS","HUMAN RESOURCES"
"http://statistics.data.gov.uk/id/local-authority/43UM","WOKING BOROUGH COUNCIL","13/05/2022","08/06/2022","0000477990/001","FAITH RECRUITMENT","01709500","41.37 ","NEIGHBOURHOOD SERVICES - PARKING SERVICES","TEMPORARY STAFF","A110","TEMPORARY STAFF","NEIGHBOURHOOD SERVICES","HUMAN RESOURCES"
"http://statistics.data.gov.uk/id/local-authority/43UM","WOKING BOROUGH COUNCIL","13/05/2022","08/06/2022","0000477992/001","FAITH RECRUITMENT","01709500","41.37 ","NEIGHBOURHOOD SERVICES - PARKING SERVICES","TEMPORARY STAFF","A110","TEMPORARY STAFF","NEIGHBOURHOOD SERVICES","HUMAN RESOURCES"
"http://statistics.data.gov.uk/id/local-authority/43UM","WOKING BOROUGH COUNCIL","20/05/2022","08/06/2022","0000478205/001","FAITH RECRUITMENT","01709500","41.37 ","NEIGHBOURHOOD SERVICES - PARKING SERVICES","TEMPORARY STAFF","A110","TEMPORARY STAFF","NEIGHBOURHOOD SERVICES","HUMAN RESOURCES"
"http://statistics.data.gov.uk/id/local-authority/43UM","WOKING BOROUGH COUNCIL","20/05/2022","08/06/2022","0000478211/001","FAITH RECRUITMENT","01709500","41.37 ","NEIGHBOURHOOD SERVICES - PARKING SERVICES","TEMPORARY STAFF","A110","TEMPORARY STAFF","NEIGHBOURHOOD SERVICES","HUMAN RESOURCES"
"http://statistics.data.gov.uk/id/local-authority/43UM","WOKING BOROUGH COUNCIL","20/05/2022","08/06/2022","0000478209/001","FAITH RECRUITMENT","01709500","41.37 ","PLANNING SERVICES - DEVELOPMENT CONTROL","TEMPORARY STAFF","A110","TEMPORARY STAFF","PLANNING SERVICES","HUMAN RESOURCES"
"http://statistics.data.gov.uk/id/local-authority/43UM","WOKING BOROUGH COUNCIL","27/05/2022","08/06/2022","0000478412/001","FAITH RECRUITMENT","01709500","41.37 ","PLANNING SERVICES - DEVELOPMENT CONTROL","TEMPORARY STAFF","A110","TEMPORARY STAFF","PLANNING SERVICES","HUMAN RESOURCES"
"http://statistics.data.gov.uk/id/local-authority/43UM","WOKING BOROUGH COUNCIL","02/03/2022","15/06/2022","0000475293/001","PENNA PLC","40087400","8,700.00 ","FINANCIAL SERVICES - FINANCIAL SERVICES","TEMPORARY STAFF","A110","TEMPORARY STAFF","FINANCIAL SERVICES","HUMAN RESOURCES"
"http://statistics.data.gov.uk/id/local-authority/43UM","WOKING BOROUGH COUNCIL","12/05/2022","15/06/2022","0000477799/001","PENNA PLC","40087400","7,540.00 ","FINANCIAL SERVICES - FINANCIAL SERVICES","TEMPORARY STAFF","A110","TEMPORARY STAFF","FINANCIAL SERVICES","HUMAN RESOURCES"
"http://statistics.data.gov.uk/id/local-authority/43UM","WOKING BOROUGH COUNCIL","25/05/2022","15/06/2022","0000478353/001","OYSTER PARTNERSHIP","40443300","2,075.92 ","ASSET MANAGEMENT - BUILDING SERVICES","TEMPORARY STAFF","A110","TEMPORARY STAFF","ASSET MANAGEMENT","HUMAN RESOURCES"
"http://statistics.data.gov.uk/id/local-authority/43UM","WOKING BOROUGH COUNCIL","31/05/2022","15/06/2022","0000478427/001","OYSTER PARTNERSHIP","40443300","2,022.00 ","ASSET MANAGEMENT - BUILDING SERVICES","TEMPORARY STAFF","A110","TEMPORARY STAFF","ASSET MANAGEMENT","HUMAN RESOURCES"
"http://statistics.data.gov.uk/id/local-authority/43UM","WOKING BOROUGH COUNCIL","08/06/2022","15/06/2022","0000478613/001","OYSTER PARTNERSHIP","40443300","1,473.63 ","ASSET MANAGEMENT - BUILDING SERVICES","TEMPORARY STAFF","A110","TEMPORARY STAFF","ASSET MANAGEMENT","HUMAN RESOURCES"
"http://statistics.data.gov.uk/id/local-authority/43UM","WOKING BOROUGH COUNCIL","08/06/2022","15/06/2022","0000478610/001","VIVID RESOURCING","40463200","1,436.21 ","PLANNING SERVICES - DEVELOPMENT CONTROL","TEMPORARY STAFF","A110","TEMPORARY STAFF","PLANNING SERVICES","HUMAN RESOURCES"
"http://statistics.data.gov.uk/id/local-authority/43UM","WOKING BOROUGH COUNCIL","05/05/2022","15/06/2022","0000477455/001","JAMES POTTER","40849300","1,045.00 ","ASSET MANAGEMENT - VALUATION SERVICES","TEMPORARY STAFF","A110","TEMPORARY STAFF","ASSET MANAGEMENT","ENVIRONMENTAL SERVICES"
"http://statistics.data.gov.uk/id/local-authority/43UM","WOKING BOROUGH COUNCIL","06/06/2022","15/06/2022","0000478487/001","ABC UMBRELLA LTD","41031700","1,000.00 ","REVENUES AND BENEFITS - COUNCIL TAX","TEMPORARY STAFF","A110","TEMPORARY STAFF","REVENUES AND BENEFITS","HUMAN RESOURCES"
"http://statistics.data.gov.uk/id/local-authority/43UM","WOKING BOROUGH COUNCIL","09/06/2022","15/06/2022","0000478615/001","FLYING UMBRELLA","41022200","1,000.00 ","REVENUES AND BENEFITS - BENEFIT SERVICES","TEMPORARY STAFF","A110","TEMPORARY STAFF","REVENUES AND BENEFITS","HUMAN RESOURCES"
"http://statistics.data.gov.uk/id/local-authority/43UM","WOKING BOROUGH COUNCIL","10/06/2022","15/06/2022","0000478675/001","FLYING UMBRELLA","41022200","1,000.00 ","REVENUES AND BENEFITS - BENEFIT SERVICES","TEMPORARY STAFF","A110","TEMPORARY STAFF","REVENUES AND BENEFITS","HUMAN RESOURCES"
"http://statistics.data.gov.uk/id/local-authority/43UM","WOKING BOROUGH COUNCIL","01/06/2022","15/06/2022","0000478472/001","BROOK STREET (UK) LTD","01049600","804.75 ","HOUSING SERVICES - HOUSING STANDARDS & LICENSING","TEMPORARY STAFF","A110","TEMPORARY STAFF","HOUSING SERVICES","HUMAN RESOURCES"
"http://statistics.data.gov.uk/id/local-authority/43UM","WOKING BOROUGH COUNCIL","06/06/2022","15/06/2022","0000478501/001","FLYING UMBRELLA","41022200","750.00 ","REVENUES AND BENEFITS - BENEFIT SERVICES","TEMPORARY STAFF","A110","TEMPORARY STAFF","REVENUES AND BENEFITS","HUMAN RESOURCES"
"http://statistics.data.gov.uk/id/local-authority/43UM","WOKING BOROUGH COUNCIL","03/06/2022","15/06/2022","0000478684/001","FAITH RECRUITMENT","01709500","509.44 ","PLANNING SERVICES - DEVELOPMENT CONTROL","TEMPORARY STAFF","A110","TEMPORARY STAFF","PLANNING SERVICES","HUMAN RESOURCES"
"http://statistics.data.gov.uk/id/local-authority/43UM","WOKING BOROUGH COUNCIL","05/06/2022","15/06/2022","0000478626/001","MORGAN HUNT UK LIMITED","01768500","508.00 ","REVENUES AND BENEFITS - COUNCIL TAX","TEMPORARY STAFF","A110","TEMPORARY STAFF","REVENUES AND BENEFITS","HUMAN RESOURCES"
"http://statistics.data.gov.uk/id/local-authority/43UM","WOKING BOROUGH COUNCIL","31/05/2022","15/06/2022","0000478468/001","VENN GROUP LIMITED","40383900","484.20 ","REVENUES AND BENEFITS - BENEFIT SERVICES","TEMPORARY STAFF","A110","TEMPORARY STAFF","REVENUES AND BENEFITS","HUMAN RESOURCES"
"http://statistics.data.gov.uk/id/local-authority/43UM","WOKING BOROUGH COUNCIL","03/06/2022","15/06/2022","0000478631/001","BROOK STREET (UK) LTD","01049600","482.85 ","HOUSING SERVICES - HOUSING STANDARDS & LICENSING","TEMPORARY STAFF","A110","TEMPORARY STAFF","HOUSING SERVICES","HUMAN RESOURCES"
"http://statistics.data.gov.uk/id/local-authority/43UM","WOKING BOROUGH COUNCIL","08/06/2022","15/06/2022","0000478612/001","OYSTER PARTNERSHIP","40443300","397.34 ","PLANNING SERVICES - DEVELOPMENT CONTROL","TEMPORARY STAFF","A110","TEMPORARY STAFF","PLANNING SERVICES","HUMAN RESOURCES"
"http://statistics.data.gov.uk/id/local-authority/43UM","WOKING BOROUGH COUNCIL","24/05/2022","15/06/2022","0000478718/103","SKANSKA RASHLEIGH WEATHERFOIL LTD","40413600","303.70 ","NEIGHBOURHOOD SERVICES - PARKING SERVICES","TEMPORARY STAFF","A110","TEMPORARY STAFF","NEIGHBOURHOOD SERVICES","FACILITIES & MANAGEMENT SERVICES"
"http://statistics.data.gov.uk/id/local-authority/43UM","WOKING BOROUGH COUNCIL","03/06/2022","15/06/2022","0000478685/001","FAITH RECRUITMENT","01709500","254.72 ","PLANNING SERVICES - DEVELOPMENT CONTROL","TEMPORARY STAFF","A110","TEMPORARY STAFF","PLANNING SERVICES","HUMAN RESOURCES"
"http://statistics.data.gov.uk/id/local-authority/43UM","WOKING BOROUGH COUNCIL","24/05/2022","15/06/2022","0000478718/108","SKANSKA RASHLEIGH WEATHERFOIL LTD","40413600","121.53 ","NEIGHBOURHOOD SERVICES - PARKING SERVICES","TEMPORARY STAFF","A110","TEMPORARY STAFF","NEIGHBOURHOOD SERVICES","FACILITIES & MANAGEMENT SERVICES"
"http://statistics.data.gov.uk/id/local-authority/43UM","WOKING BOROUGH COUNCIL","03/06/2022","15/06/2022","0000478686/001","FAITH RECRUITMENT","01709500","41.37 ","PLANNING SERVICES - DEVELOPMENT CONTROL","TEMPORARY STAFF","A110","TEMPORARY STAFF","PLANNING SERVICES","HUMAN RESOURCES"
"http://statistics.data.gov.uk/id/local-authority/43UM","WOKING BOROUGH COUNCIL","05/06/2022","22/06/2022","0000478715/001","UNITY RECRUITMENT LTD","40160500","2,521.75 ","NEIGHBOURHOOD SERVICES - PARKING SERVICES","TEMPORARY STAFF","A110","TEMPORARY STAFF","NEIGHBOURHOOD SERVICES","HUMAN RESOURCES"
"http://statistics.data.gov.uk/id/local-authority/43UM","WOKING BOROUGH COUNCIL","15/06/2022","22/06/2022","0000478778/001","VIVID RESOURCING","40463200","2,090.54 ","PLANNING SERVICES - DEVELOPMENT CONTROL","TEMPORARY STAFF","A110","TEMPORARY STAFF","PLANNING SERVICES","HUMAN RESOURCES"
"http://statistics.data.gov.uk/id/local-authority/43UM","WOKING BOROUGH COUNCIL","15/06/2022","22/06/2022","0000478871/001","OYSTER PARTNERSHIP","40443300","2,022.00 ","ASSET MANAGEMENT - BUILDING SERVICES","TEMPORARY STAFF","A110","TEMPORARY STAFF","ASSET MANAGEMENT","HUMAN RESOURCES"
"http://statistics.data.gov.uk/id/local-authority/43UM","WOKING BOROUGH COUNCIL","08/06/2022","22/06/2022","0000478577/001","JAMES POTTER","40849300","1,842.50 ","ASSET MANAGEMENT - VALUATION SERVICES","TEMPORARY STAFF","A110","TEMPORARY STAFF","ASSET MANAGEMENT","ENVIRONMENTAL SERVICES"
"http://statistics.data.gov.uk/id/local-authority/43UM","WOKING BOROUGH COUNCIL","15/06/2022","22/06/2022","0000478779/001","VIVID RESOURCING","40463200","1,258.00 ","HOUSING SERVICES - HOUSING NEEDS & ALLOCATIONS","TEMPORARY STAFF","A110","TEMPORARY STAFF","HOUSING SERVICES","HUMAN RESOURCES"
"http://statistics.data.gov.uk/id/local-authority/43UM","WOKING BOROUGH COUNCIL","12/06/2022","22/06/2022","0000478806/001","MORGAN HUNT UK LIMITED","01768500","1,174.75 ","REVENUES AND BENEFITS - COUNCIL TAX","TEMPORARY STAFF","A110","TEMPORARY STAFF","REVENUES AND BENEFITS","HUMAN RESOURCES"
"http://statistics.data.gov.uk/id/local-authority/43UM","WOKING BOROUGH COUNCIL","13/06/2022","22/06/2022","0000478741/001","ABC UMBRELLA LTD","41031700","1,000.00 ","REVENUES AND BENEFITS - COUNCIL TAX","TEMPORARY STAFF","A110","TEMPORARY STAFF","REVENUES AND BENEFITS","HUMAN RESOURCES"
"http://statistics.data.gov.uk/id/local-authority/43UM","WOKING BOROUGH COUNCIL","16/06/2022","22/06/2022","0000478822/001","FLYING UMBRELLA","41022200","1,000.00 ","REVENUES AND BENEFITS - BENEFIT SERVICES","TEMPORARY STAFF","A110","TEMPORARY STAFF","REVENUES AND BENEFITS","HUMAN RESOURCES"
"http://statistics.data.gov.uk/id/local-authority/43UM","WOKING BOROUGH COUNCIL","17/06/2022","22/06/2022","0000478870/001","FLYING UMBRELLA","41022200","1,000.00 ","REVENUES AND BENEFITS - BENEFIT SERVICES","TEMPORARY STAFF","A110","TEMPORARY STAFF","REVENUES AND BENEFITS","HUMAN RESOURCES"
"http://statistics.data.gov.uk/id/local-authority/43UM","WOKING BOROUGH COUNCIL","15/06/2022","22/06/2022","0000478792/001","BROOK STREET (UK) LTD","01049600","804.75 ","HOUSING SERVICES - HOUSING STANDARDS & LICENSING","TEMPORARY STAFF","A110","TEMPORARY STAFF","HOUSING SERVICES","HUMAN RESOURCES"
"http://statistics.data.gov.uk/id/local-authority/43UM","WOKING BOROUGH COUNCIL","08/06/2022","22/06/2022","0000478614/001","VIVID RESOURCING","40463200","754.80 ","HOUSING SERVICES - HOUSING NEEDS & ALLOCATIONS","TEMPORARY STAFF","A110","TEMPORARY STAFF","HOUSING SERVICES","HUMAN RESOURCES"
"http://statistics.data.gov.uk/id/local-authority/43UM","WOKING BOROUGH COUNCIL","27/05/2022","22/06/2022","0000478408/001","FAITH RECRUITMENT","01709500","663.38 ","NEIGHBOURHOOD SERVICES - PARKING SERVICES","TEMPORARY STAFF","A110","TEMPORARY STAFF","NEIGHBOURHOOD SERVICES","HUMAN RESOURCES"
"http://statistics.data.gov.uk/id/local-authority/43UM","WOKING BOROUGH COUNCIL","27/05/2022","22/06/2022","0000478413/001","FAITH RECRUITMENT","01709500","663.38 ","NEIGHBOURHOOD SERVICES - PARKING SERVICES","TEMPORARY STAFF","A110","TEMPORARY STAFF","NEIGHBOURHOOD SERVICES","HUMAN RESOURCES"
"http://statistics.data.gov.uk/id/local-authority/43UM","WOKING BOROUGH COUNCIL","10/06/2022","22/06/2022","0000478921/001","FAITH RECRUITMENT","01709500","501.48 ","PLANNING SERVICES - DEVELOPMENT CONTROL","TEMPORARY STAFF","A110","TEMPORARY STAFF","PLANNING SERVICES","HUMAN RESOURCES"
"http://statistics.data.gov.uk/id/local-authority/43UM","WOKING BOROUGH COUNCIL","03/06/2022","22/06/2022","0000478678/001","FAITH RECRUITMENT","01709500","398.03 ","NEIGHBOURHOOD SERVICES - PARKING SERVICES","TEMPORARY STAFF","A110","TEMPORARY STAFF","NEIGHBOURHOOD SERVICES","HUMAN RESOURCES"
"http://statistics.data.gov.uk/id/local-authority/43UM","WOKING BOROUGH COUNCIL","03/06/2022","22/06/2022","0000478680/001","FAITH RECRUITMENT","01709500","398.03 ","NEIGHBOURHOOD SERVICES - PARKING SERVICES","TEMPORARY STAFF","A110","TEMPORARY STAFF","NEIGHBOURHOOD SERVICES","HUMAN RESOURCES"
"http://statistics.data.gov.uk/id/local-authority/43UM","WOKING BOROUGH COUNCIL","31/05/2022","22/06/2022","0000478774/103","SKANSKA RASHLEIGH WEATHERFOIL LTD","40413600","303.70 ","NEIGHBOURHOOD SERVICES - PARKING SERVICES","TEMPORARY STAFF","A110","TEMPORARY STAFF","NEIGHBOURHOOD SERVICES","FACILITIES & MANAGEMENT SERVICES"
"http://statistics.data.gov.uk/id/local-authority/43UM","WOKING BOROUGH COUNCIL","08/06/2022","22/06/2022","0000478817/001","VENN GROUP LIMITED","40383900","258.24 ","REVENUES AND BENEFITS - BENEFIT SERVICES","TEMPORARY STAFF","A110","TEMPORARY STAFF","REVENUES AND BENEFITS","HUMAN RESOURCES"
"http://statistics.data.gov.uk/id/local-authority/43UM","WOKING BOROUGH COUNCIL","31/05/2022","22/06/2022","0000478774/108","SKANSKA RASHLEIGH WEATHERFOIL LTD","40413600","121.53 ","NEIGHBOURHOOD SERVICES - PARKING SERVICES","TEMPORARY STAFF","A110","TEMPORARY STAFF","NEIGHBOURHOOD SERVICES","FACILITIES & MANAGEMENT SERVICES"
"http://statistics.data.gov.uk/id/local-authority/43UM","WOKING BOROUGH COUNCIL","27/05/2022","22/06/2022","0000478407/001","FAITH RECRUITMENT","01709500","41.37 ","NEIGHBOURHOOD SERVICES - PARKING SERVICES","TEMPORARY STAFF","A110","TEMPORARY STAFF","NEIGHBOURHOOD SERVICES","HUMAN RESOURCES"
"http://statistics.data.gov.uk/id/local-authority/43UM","WOKING BOROUGH COUNCIL","27/05/2022","22/06/2022","0000478409/001","FAITH RECRUITMENT","01709500","41.37 ","NEIGHBOURHOOD SERVICES - PARKING SERVICES","TEMPORARY STAFF","A110","TEMPORARY STAFF","NEIGHBOURHOOD SERVICES","HUMAN RESOURCES"
"http://statistics.data.gov.uk/id/local-authority/43UM","WOKING BOROUGH COUNCIL","03/06/2022","22/06/2022","0000478679/001","FAITH RECRUITMENT","01709500","41.37 ","NEIGHBOURHOOD SERVICES - PARKING SERVICES","TEMPORARY STAFF","A110","TEMPORARY STAFF","NEIGHBOURHOOD SERVICES","HUMAN RESOURCES"
"http://statistics.data.gov.uk/id/local-authority/43UM","WOKING BOROUGH COUNCIL","03/06/2022","22/06/2022","0000478681/001","FAITH RECRUITMENT","01709500","41.37 ","NEIGHBOURHOOD SERVICES - PARKING SERVICES","TEMPORARY STAFF","A110","TEMPORARY STAFF","NEIGHBOURHOOD SERVICES","HUMAN RESOURCES"
"http://statistics.data.gov.uk/id/local-authority/43UM","WOKING BOROUGH COUNCIL","10/06/2022","22/06/2022","0000478923/001","FAITH RECRUITMENT","01709500","41.37 ","PLANNING SERVICES - DEVELOPMENT CONTROL","TEMPORARY STAFF","A110","TEMPORARY STAFF","PLANNING SERVICES","HUMAN RESOURCES"
"http://statistics.data.gov.uk/id/local-authority/43UM","WOKING BOROUGH COUNCIL","12/06/2022","29/06/2022","0000478961/001","UNITY RECRUITMENT LTD","40160500","2,733.50 ","NEIGHBOURHOOD SERVICES - PARKING SERVICES","TEMPORARY STAFF","A110","TEMPORARY STAFF","NEIGHBOURHOOD SERVICES","HUMAN RESOURCES"
"http://statistics.data.gov.uk/id/local-authority/43UM","WOKING BOROUGH COUNCIL","22/06/2022","29/06/2022","0000479080/001","OYSTER PARTNERSHIP","40443300","2,022.00 ","ASSET MANAGEMENT - BUILDING SERVICES","TEMPORARY STAFF","A110","TEMPORARY STAFF","ASSET MANAGEMENT","HUMAN RESOURCES"
"http://statistics.data.gov.uk/id/local-authority/43UM","WOKING BOROUGH COUNCIL","22/06/2022","29/06/2022","0000479081/001","OYSTER PARTNERSHIP","40443300","1,610.01 ","PLANNING SERVICES - DEVELOPMENT CONTROL","TEMPORARY STAFF","A110","TEMPORARY STAFF","PLANNING SERVICES","HUMAN RESOURCES"
"http://statistics.data.gov.uk/id/local-authority/43UM","WOKING BOROUGH COUNCIL","22/06/2022","29/06/2022","0000479049/001","VIVID RESOURCING","40463200","1,258.00 ","HOUSING SERVICES - HOUSING NEEDS & ALLOCATIONS","TEMPORARY STAFF","A110","TEMPORARY STAFF","HOUSING SERVICES","HUMAN RESOURCES"
"http://statistics.data.gov.uk/id/local-authority/43UM","WOKING BOROUGH COUNCIL","19/06/2022","29/06/2022","0000479076/001","MORGAN HUNT UK LIMITED","01768500","1,143.00 ","REVENUES AND BENEFITS - COUNCIL TAX","TEMPORARY STAFF","A110","TEMPORARY STAFF","REVENUES AND BENEFITS","HUMAN RESOURCES"
"http://statistics.data.gov.uk/id/local-authority/43UM","WOKING BOROUGH COUNCIL","23/06/2022","29/06/2022","0000479085/001","FLYING UMBRELLA","41022200","1,000.00 ","REVENUES AND BENEFITS - BENEFIT SERVICES","TEMPORARY STAFF","A110","TEMPORARY STAFF","REVENUES AND BENEFITS","HUMAN RESOURCES"
"http://statistics.data.gov.uk/id/local-authority/43UM","WOKING BOROUGH COUNCIL","24/06/2022","29/06/2022","0000479150/001","FLYING UMBRELLA","41022200","1,000.00 ","REVENUES AND BENEFITS - BENEFIT SERVICES","TEMPORARY STAFF","A110","TEMPORARY STAFF","REVENUES AND BENEFITS","HUMAN RESOURCES"
"http://statistics.data.gov.uk/id/local-authority/43UM","WOKING BOROUGH COUNCIL","20/06/2022","29/06/2022","0000478963/001","ABC UMBRELLA LTD","41031700","993.75 ","REVENUES AND BENEFITS - COUNCIL TAX","TEMPORARY STAFF","A110","TEMPORARY STAFF","REVENUES AND BENEFITS","HUMAN RESOURCES"
"http://statistics.data.gov.uk/id/local-authority/43UM","WOKING BOROUGH COUNCIL","10/06/2022","29/06/2022","0000478915/001","FAITH RECRUITMENT","01709500","663.38 ","NEIGHBOURHOOD SERVICES - PARKING SERVICES","TEMPORARY STAFF","A110","TEMPORARY STAFF","NEIGHBOURHOOD SERVICES","HUMAN RESOURCES"
"http://statistics.data.gov.uk/id/local-authority/43UM","WOKING BOROUGH COUNCIL","10/06/2022","29/06/2022","0000478919/001","FAITH RECRUITMENT","01709500","532.06 ","CORPORATE STRATEGY - CUSTOMER SERVICES","TEMPORARY STAFF","A110","TEMPORARY STAFF","CORPORATE STRATEGY","HUMAN RESOURCES"
"http://statistics.data.gov.uk/id/local-authority/43UM","WOKING BOROUGH COUNCIL","17/06/2022","29/06/2022","0000479103/001","FAITH RECRUITMENT","01709500","509.44 ","PLANNING SERVICES - DEVELOPMENT CONTROL","TEMPORARY STAFF","A110","TEMPORARY STAFF","PLANNING SERVICES","HUMAN RESOURCES"
"http://statistics.data.gov.uk/id/local-authority/43UM","WOKING BOROUGH COUNCIL","22/06/2022","29/06/2022","0000479091/001","BROOK STREET (UK) LTD","01049600","482.85 ","HOUSING SERVICES - HOUSING STANDARDS & LICENSING","TEMPORARY STAFF","A110","TEMPORARY STAFF","HOUSING SERVICES","HUMAN RESOURCES"
"http://statistics.data.gov.uk/id/local-authority/43UM","WOKING BOROUGH COUNCIL","10/06/2022","29/06/2022","0000478918/001","FAITH RECRUITMENT","01709500","400.18 ","CORPORATE STRATEGY - CUSTOMER SERVICES","TEMPORARY STAFF","A110","TEMPORARY STAFF","CORPORATE STRATEGY","HUMAN RESOURCES"
"http://statistics.data.gov.uk/id/local-authority/43UM","WOKING BOROUGH COUNCIL","17/06/2022","29/06/2022","0000479108/001","FAITH RECRUITMENT","01709500","400.18 ","CORPORATE STRATEGY - CUSTOMER SERVICES","TEMPORARY STAFF","A110","TEMPORARY STAFF","CORPORATE STRATEGY","HUMAN RESOURCES"
"http://statistics.data.gov.uk/id/local-authority/43UM","WOKING BOROUGH COUNCIL","03/06/2022","29/06/2022","0000478682/001","FAITH RECRUITMENT","01709500","390.60 ","NEIGHBOURHOOD SERVICES - PARKING SERVICES","TEMPORARY STAFF","A110","TEMPORARY STAFF","NEIGHBOURHOOD SERVICES","HUMAN RESOURCES"
"http://statistics.data.gov.uk/id/local-authority/43UM","WOKING BOROUGH COUNCIL","10/06/2022","29/06/2022","0000478916/001","FAITH RECRUITMENT","01709500","41.37 ","NEIGHBOURHOOD SERVICES - PARKING SERVICES","TEMPORARY STAFF","A110","TEMPORARY STAFF","NEIGHBOURHOOD SERVICES","HUMAN RESOURCES"
"http://statistics.data.gov.uk/id/local-authority/43UM","WOKING BOROUGH COUNCIL","10/06/2022","29/06/2022","0000478929/001","FAITH RECRUITMENT","01709500","41.37 ","NEIGHBOURHOOD SERVICES - PARKING SERVICES","TEMPORARY STAFF","A110","TEMPORARY STAFF","NEIGHBOURHOOD SERVICES","HUMAN RESOURCES"
"http://statistics.data.gov.uk/id/local-authority/43UM","WOKING BOROUGH COUNCIL","17/06/2022","29/06/2022","0000479104/001","FAITH RECRUITMENT","01709500","41.37 ","PLANNING SERVICES - DEVELOPMENT CONTROL","TEMPORARY STAFF","A110","TEMPORARY STAFF","PLANNING SERVICES","HUMAN RESOURCES"
"http://statistics.data.gov.uk/id/local-authority/43UM","WOKING BOROUGH COUNCIL","29/06/2022","06/07/2022","0000479306/001","VIVID RESOURCING","40463200","1,898.31 ","PLANNING SERVICES - DEVELOPMENT CONTROL","TEMPORARY STAFF","A110","TEMPORARY STAFF","PLANNING SERVICES","HUMAN RESOURCES"
"http://statistics.data.gov.uk/id/local-authority/43UM","WOKING BOROUGH COUNCIL","29/06/2022","06/07/2022","0000479302/001","OYSTER PARTNERSHIP","40443300","1,887.56 ","PLANNING SERVICES - DEVELOPMENT CONTROL","TEMPORARY STAFF","A110","TEMPORARY STAFF","PLANNING SERVICES","HUMAN RESOURCES"
"http://statistics.data.gov.uk/id/local-authority/43UM","WOKING BOROUGH COUNCIL","29/06/2022","06/07/2022","0000479303/001","OYSTER PARTNERSHIP","40443300","1,478.49 ","ASSET MANAGEMENT - BUILDING SERVICES","TEMPORARY STAFF","A110","TEMPORARY STAFF","ASSET MANAGEMENT","HUMAN RESOURCES"
"http://statistics.data.gov.uk/id/local-authority/43UM","WOKING BOROUGH COUNCIL","29/06/2022","06/07/2022","0000479305/001","VIVID RESOURCING","40463200","1,258.00 ","HOUSING SERVICES - HOUSING NEEDS & ALLOCATIONS","TEMPORARY STAFF","A110","TEMPORARY STAFF","HOUSING SERVICES","HUMAN RESOURCES"
"http://statistics.data.gov.uk/id/local-authority/43UM","WOKING BOROUGH COUNCIL","26/06/2022","06/07/2022","0000479354/001","MORGAN HUNT UK LIMITED","01768500","1,111.25 ","REVENUES AND BENEFITS - COUNCIL TAX","TEMPORARY STAFF","A110","TEMPORARY STAFF","REVENUES AND BENEFITS","HUMAN RESOURCES"
"http://statistics.data.gov.uk/id/local-authority/43UM","WOKING BOROUGH COUNCIL","27/06/2022","06/07/2022","0000479171/001","ABC UMBRELLA LTD","41031700","1,000.00 ","REVENUES AND BENEFITS - COUNCIL TAX","TEMPORARY STAFF","A110","TEMPORARY STAFF","REVENUES AND BENEFITS","HUMAN RESOURCES"
"http://statistics.data.gov.uk/id/local-authority/43UM","WOKING BOROUGH COUNCIL","30/06/2022","06/07/2022","0000479328/001","FLYING UMBRELLA","41022200","1,000.00 ","REVENUES AND BENEFITS - BENEFIT SERVICES","TEMPORARY STAFF","A110","TEMPORARY STAFF","REVENUES AND BENEFITS","HUMAN RESOURCES"
"http://statistics.data.gov.uk/id/local-authority/43UM","WOKING BOROUGH COUNCIL","01/07/2022","06/07/2022","0000479371/001","FLYING UMBRELLA","41022200","1,000.00 ","REVENUES AND BENEFITS - BENEFIT SERVICES","TEMPORARY STAFF","A110","TEMPORARY STAFF","REVENUES AND BENEFITS","HUMAN RESOURCES"
"http://statistics.data.gov.uk/id/local-authority/43UM","WOKING BOROUGH COUNCIL","29/06/2022","06/07/2022","0000479324/001","BROOK STREET (UK) LTD","01049600","804.75 ","HOUSING SERVICES - HOUSING STANDARDS & LICENSING","TEMPORARY STAFF","A110","TEMPORARY STAFF","HOUSING SERVICES","HUMAN RESOURCES"
"http://statistics.data.gov.uk/id/local-authority/43UM","WOKING BOROUGH COUNCIL","24/06/2022","06/07/2022","0000479383/001","FAITH RECRUITMENT","01709500","509.44 ","PLANNING SERVICES - BUILDING CONTROL","TEMPORARY STAFF","A110","TEMPORARY STAFF","PLANNING SERVICES","HUMAN RESOURCES"
"http://statistics.data.gov.uk/id/local-authority/43UM","WOKING BOROUGH COUNCIL","15/06/2022","06/07/2022","0000479216/001","VENN GROUP LIMITED","40383900","484.20 ","REVENUES AND BENEFITS - BENEFIT SERVICES","TEMPORARY STAFF","A110","TEMPORARY STAFF","REVENUES AND BENEFITS","HUMAN RESOURCES"
"http://statistics.data.gov.uk/id/local-authority/43UM","WOKING BOROUGH COUNCIL","22/06/2022","06/07/2022","0000479351/001","VENN GROUP LIMITED","40383900","484.20 ","REVENUES AND BENEFITS - BENEFIT SERVICES","TEMPORARY STAFF","A110","TEMPORARY STAFF","REVENUES AND BENEFITS","HUMAN RESOURCES"
"http://statistics.data.gov.uk/id/local-authority/43UM","WOKING BOROUGH COUNCIL","24/06/2022","06/07/2022","0000479392/001","FAITH RECRUITMENT","01709500","268.30 ","CORPORATE STRATEGY - CUSTOMER SERVICES","TEMPORARY STAFF","A110","TEMPORARY STAFF","CORPORATE STRATEGY","HUMAN RESOURCES"
"http://statistics.data.gov.uk/id/local-authority/43UM","WOKING BOROUGH COUNCIL","24/06/2022","06/07/2022","0000479393/001","FAITH RECRUITMENT","01709500","46.88 ","CORPORATE STRATEGY - CUSTOMER SERVICES","TEMPORARY STAFF","A110","TEMPORARY STAFF","CORPORATE STRATEGY","HUMAN RESOURCES"
"http://statistics.data.gov.uk/id/local-authority/43UM","WOKING BOROUGH COUNCIL","24/06/2022","06/07/2022","0000479386/001","FAITH RECRUITMENT","01709500","41.37 ","PLANNING SERVICES - BUILDING CONTROL","TEMPORARY STAFF","A110","TEMPORARY STAFF","PLANNING SERVICES","HUMAN RESOURCES"
"http://statistics.data.gov.uk/id/local-authority/43UM","WOKING BOROUGH COUNCIL","06/07/2022","13/07/2022","0000479573/001","OYSTER PARTNERSHIP","40443300","2,022.00 ","ASSET MANAGEMENT - BUILDING SERVICES","TEMPORARY STAFF","A110","TEMPORARY STAFF","ASSET MANAGEMENT","HUMAN RESOURCES"
"http://statistics.data.gov.uk/id/local-authority/43UM","WOKING BOROUGH COUNCIL","06/07/2022","13/07/2022","0000479597/001","VIVID RESOURCING","40463200","2,013.83 ","PLANNING SERVICES - DEVELOPMENT CONTROL","TEMPORARY STAFF","A110","TEMPORARY STAFF","PLANNING SERVICES","HUMAN RESOURCES"
"http://statistics.data.gov.uk/id/local-authority/43UM","WOKING BOROUGH COUNCIL","06/07/2022","13/07/2022","0000479575/001","OYSTER PARTNERSHIP","40443300","1,890.93 ","PLANNING SERVICES - DEVELOPMENT CONTROL","TEMPORARY STAFF","A110","TEMPORARY STAFF","PLANNING SERVICES","HUMAN RESOURCES"
"http://statistics.data.gov.uk/id/local-authority/43UM","WOKING BOROUGH COUNCIL","26/06/2022","13/07/2022","0000479469/001","UNITY RECRUITMENT LTD","40160500","1,684.38 ","NEIGHBOURHOOD SERVICES - PARKING SERVICES","TEMPORARY STAFF","A110","TEMPORARY STAFF","NEIGHBOURHOOD SERVICES","HUMAN RESOURCES"
"http://statistics.data.gov.uk/id/local-authority/43UM","WOKING BOROUGH COUNCIL","06/07/2022","13/07/2022","0000479596/001","VIVID RESOURCING","40463200","1,258.00 ","HOUSING SERVICES - HOUSING NEEDS & ALLOCATIONS","TEMPORARY STAFF","A110","TEMPORARY STAFF","HOUSING SERVICES","HUMAN RESOURCES"
"http://statistics.data.gov.uk/id/local-authority/43UM","WOKING BOROUGH COUNCIL","07/07/2022","13/07/2022","0000479631/001","FLYING UMBRELLA","41022200","1,000.00 ","REVENUES AND BENEFITS - BENEFIT SERVICES","TEMPORARY STAFF","A110","TEMPORARY STAFF","REVENUES AND BENEFITS","HUMAN RESOURCES"
"http://statistics.data.gov.uk/id/local-authority/43UM","WOKING BOROUGH COUNCIL","08/07/2022","13/07/2022","0000479665/001","FLYING UMBRELLA","41022200","1,000.00 ","REVENUES AND BENEFITS - BENEFIT SERVICES","TEMPORARY STAFF","A110","TEMPORARY STAFF","REVENUES AND BENEFITS","HUMAN RESOURCES"
"http://statistics.data.gov.uk/id/local-authority/43UM","WOKING BOROUGH COUNCIL","04/07/2022","13/07/2022","0000479473/001","ABC UMBRELLA LTD","41031700","993.75 ","REVENUES AND BENEFITS - COUNCIL TAX","TEMPORARY STAFF","A110","TEMPORARY STAFF","REVENUES AND BENEFITS","HUMAN RESOURCES"
"http://statistics.data.gov.uk/id/local-authority/43UM","WOKING BOROUGH COUNCIL","03/07/2022","13/07/2022","0000479603/001","MORGAN HUNT UK LIMITED","01768500","984.25 ","REVENUES AND BENEFITS - COUNCIL TAX","TEMPORARY STAFF","A110","TEMPORARY STAFF","REVENUES AND BENEFITS","HUMAN RESOURCES"
"http://statistics.data.gov.uk/id/local-authority/43UM","WOKING BOROUGH COUNCIL","11/07/2022","13/07/2022","0000479703/001","ABC UMBRELLA LTD","41031700","912.50 ","REVENUES AND BENEFITS - COUNCIL TAX","TEMPORARY STAFF","A110","TEMPORARY STAFF","REVENUES AND BENEFITS","HUMAN RESOURCES"
"http://statistics.data.gov.uk/id/local-authority/43UM","WOKING BOROUGH COUNCIL","17/06/2022","13/07/2022","0000479106/001","FAITH RECRUITMENT","01709500","663.38 ","NEIGHBOURHOOD SERVICES - PARKING SERVICES","TEMPORARY STAFF","A110","TEMPORARY STAFF","NEIGHBOURHOOD SERVICES","HUMAN RESOURCES"
"http://statistics.data.gov.uk/id/local-authority/43UM","WOKING BOROUGH COUNCIL","24/06/2022","13/07/2022","0000479387/001","FAITH RECRUITMENT","01709500","663.38 ","NEIGHBOURHOOD SERVICES - PARKING SERVICES","TEMPORARY STAFF","A110","TEMPORARY STAFF","NEIGHBOURHOOD SERVICES","HUMAN RESOURCES"
"http://statistics.data.gov.uk/id/local-authority/43UM","WOKING BOROUGH COUNCIL","24/06/2022","13/07/2022","0000479390/001","FAITH RECRUITMENT","01709500","663.38 ","NEIGHBOURHOOD SERVICES - PARKING SERVICES","TEMPORARY STAFF","A110","TEMPORARY STAFF","NEIGHBOURHOOD SERVICES","HUMAN RESOURCES"
"http://statistics.data.gov.uk/id/local-authority/43UM","WOKING BOROUGH COUNCIL","01/07/2022","13/07/2022","0000479622/001","FAITH RECRUITMENT","01709500","509.44 ","PLANNING SERVICES - DEVELOPMENT CONTROL","TEMPORARY STAFF","A110","TEMPORARY STAFF","PLANNING SERVICES","HUMAN RESOURCES"
"http://statistics.data.gov.uk/id/local-authority/43UM","WOKING BOROUGH COUNCIL","17/06/2022","13/07/2022","0000479105/001","FAITH RECRUITMENT","01709500","41.37 ","NEIGHBOURHOOD SERVICES - PARKING SERVICES","TEMPORARY STAFF","A110","TEMPORARY STAFF","NEIGHBOURHOOD SERVICES","HUMAN RESOURCES"
"http://statistics.data.gov.uk/id/local-authority/43UM","WOKING BOROUGH COUNCIL","17/06/2022","13/07/2022","0000479107/001","FAITH RECRUITMENT","01709500","41.37 ","NEIGHBOURHOOD SERVICES - PARKING SERVICES","TEMPORARY STAFF","A110","TEMPORARY STAFF","NEIGHBOURHOOD SERVICES","HUMAN RESOURCES"
"http://statistics.data.gov.uk/id/local-authority/43UM","WOKING BOROUGH COUNCIL","24/06/2022","13/07/2022","0000479389/001","FAITH RECRUITMENT","01709500","41.37 ","NEIGHBOURHOOD SERVICES - PARKING SERVICES","TEMPORARY STAFF","A110","TEMPORARY STAFF","NEIGHBOURHOOD SERVICES","HUMAN RESOURCES"
"http://statistics.data.gov.uk/id/local-authority/43UM","WOKING BOROUGH COUNCIL","24/06/2022","13/07/2022","0000479391/001","FAITH RECRUITMENT","01709500","41.37 ","NEIGHBOURHOOD SERVICES - PARKING SERVICES","TEMPORARY STAFF","A110","TEMPORARY STAFF","NEIGHBOURHOOD SERVICES","HUMAN RESOURCES"
"http://statistics.data.gov.uk/id/local-authority/43UM","WOKING BOROUGH COUNCIL","01/07/2022","13/07/2022","0000479621/001","FAITH RECRUITMENT","01709500","41.37 ","PLANNING SERVICES - DEVELOPMENT CONTROL","TEMPORARY STAFF","A110","TEMPORARY STAFF","PLANNING SERVICES","HUMAN RESOURCES"
"http://statistics.data.gov.uk/id/local-authority/43UM","WOKING BOROUGH COUNCIL","13/07/2022","20/07/2022","0000479862/001","VIVID RESOURCING","40463200","2,126.12 ","PLANNING SERVICES - DEVELOPMENT CONTROL","TEMPORARY STAFF","A110","TEMPORARY STAFF","PLANNING SERVICES","HUMAN RESOURCES"
"http://statistics.data.gov.uk/id/local-authority/43UM","WOKING BOROUGH COUNCIL","13/07/2022","20/07/2022","0000479907/001","OYSTER PARTNERSHIP","40443300","1,972.39 ","ASSET MANAGEMENT - BUILDING SERVICES","TEMPORARY STAFF","A110","TEMPORARY STAFF","ASSET MANAGEMENT","HUMAN RESOURCES"
"http://statistics.data.gov.uk/id/local-authority/43UM","WOKING BOROUGH COUNCIL","13/07/2022","20/07/2022","0000479908/001","OYSTER PARTNERSHIP","40443300","1,869.84 ","PLANNING SERVICES - DEVELOPMENT CONTROL","TEMPORARY STAFF","A110","TEMPORARY STAFF","PLANNING SERVICES","HUMAN RESOURCES"
"http://statistics.data.gov.uk/id/local-authority/43UM","WOKING BOROUGH COUNCIL","19/06/2022","20/07/2022","0000479151/001","UNITY RECRUITMENT LTD","40160500","1,588.13 ","NEIGHBOURHOOD SERVICES - PARKING SERVICES","TEMPORARY STAFF","A110","TEMPORARY STAFF","NEIGHBOURHOOD SERVICES","HUMAN RESOURCES"
"http://statistics.data.gov.uk/id/local-authority/43UM","WOKING BOROUGH COUNCIL","03/07/2022","20/07/2022","0000479711/001","UNITY RECRUITMENT LTD","40160500","1,443.75 ","NEIGHBOURHOOD SERVICES - PARKING SERVICES","TEMPORARY STAFF","A110","TEMPORARY STAFF","NEIGHBOURHOOD SERVICES","HUMAN RESOURCES"
"http://statistics.data.gov.uk/id/local-authority/43UM","WOKING BOROUGH COUNCIL","13/07/2022","20/07/2022","0000479861/001","VIVID RESOURCING","40463200","1,258.00 ","HOUSING SERVICES - HOUSING NEEDS & ALLOCATIONS","TEMPORARY STAFF","A110","TEMPORARY STAFF","HOUSING SERVICES","HUMAN RESOURCES"
"http://statistics.data.gov.uk/id/local-authority/43UM","WOKING BOROUGH COUNCIL","10/07/2022","20/07/2022","0000479853/001","MORGAN HUNT UK LIMITED","01768500","1,143.00 ","REVENUES AND BENEFITS - COUNCIL TAX","TEMPORARY STAFF","A110","TEMPORARY STAFF","REVENUES AND BENEFITS","HUMAN RESOURCES"
"http://statistics.data.gov.uk/id/local-authority/43UM","WOKING BOROUGH COUNCIL","14/07/2022","20/07/2022","0000479914/001","FLYING UMBRELLA","41022200","812.50 ","REVENUES AND BENEFITS - BENEFIT SERVICES","TEMPORARY STAFF","A110","TEMPORARY STAFF","REVENUES AND BENEFITS","HUMAN RESOURCES"
"http://statistics.data.gov.uk/id/local-authority/43UM","WOKING BOROUGH COUNCIL","13/07/2022","20/07/2022","0000479912/001","BROOK STREET (UK) LTD","01049600","804.75 ","HOUSING SERVICES - HOUSING STANDARDS & LICENSING","TEMPORARY STAFF","A110","TEMPORARY STAFF","HOUSING SERVICES","HUMAN RESOURCES"
"http://statistics.data.gov.uk/id/local-authority/43UM","WOKING BOROUGH COUNCIL","01/07/2022","20/07/2022","0000479628/001","FAITH RECRUITMENT","01709500","677.30 ","CORPORATE STRATEGY - CUSTOMER SERVICES","TEMPORARY STAFF","A110","TEMPORARY STAFF","CORPORATE STRATEGY","HUMAN RESOURCES"
"http://statistics.data.gov.uk/id/local-authority/43UM","WOKING BOROUGH COUNCIL","08/07/2022","20/07/2022","0000479927/001","FAITH RECRUITMENT","01709500","677.30 ","CORPORATE STRATEGY - CUSTOMER SERVICES","TEMPORARY STAFF","A110","TEMPORARY STAFF","CORPORATE STRATEGY","HUMAN RESOURCES"
"http://statistics.data.gov.uk/id/local-authority/43UM","WOKING BOROUGH COUNCIL","01/07/2022","20/07/2022","0000479626/001","FAITH RECRUITMENT","01709500","663.38 ","NEIGHBOURHOOD SERVICES - PARKING SERVICES","TEMPORARY STAFF","A110","TEMPORARY STAFF","NEIGHBOURHOOD SERVICES","HUMAN RESOURCES"
"http://statistics.data.gov.uk/id/local-authority/43UM","WOKING BOROUGH COUNCIL","08/07/2022","20/07/2022","0000479925/001","FAITH RECRUITMENT","01709500","663.38 ","NEIGHBOURHOOD SERVICES - PARKING SERVICES","TEMPORARY STAFF","A110","TEMPORARY STAFF","NEIGHBOURHOOD SERVICES","HUMAN RESOURCES"
"http://statistics.data.gov.uk/id/local-authority/43UM","WOKING BOROUGH COUNCIL","10/06/2022","20/07/2022","0000478920/001","FAITH RECRUITMENT","01709500","651.00 ","HOUSING SERVICES - TEAM 2 PRIVATE SECT HSG & ENAB","TEMPORARY STAFF","A110","TEMPORARY STAFF","HOUSING SERVICES","HUMAN RESOURCES"
"http://statistics.data.gov.uk/id/local-authority/43UM","WOKING BOROUGH COUNCIL","17/06/2022","20/07/2022","0000479109/001","FAITH RECRUITMENT","01709500","651.00 ","HOUSING SERVICES - TEAM 2 PRIVATE SECT HSG & ENAB","TEMPORARY STAFF","A110","TEMPORARY STAFF","HOUSING SERVICES","HUMAN RESOURCES"
"http://statistics.data.gov.uk/id/local-authority/43UM","WOKING BOROUGH COUNCIL","01/07/2022","20/07/2022","0000479623/001","FAITH RECRUITMENT","01709500","530.70 ","NEIGHBOURHOOD SERVICES - PARKING SERVICES","TEMPORARY STAFF","A110","TEMPORARY STAFF","NEIGHBOURHOOD SERVICES","HUMAN RESOURCES"
"http://statistics.data.gov.uk/id/local-authority/43UM","WOKING BOROUGH COUNCIL","08/07/2022","20/07/2022","0000479923/001","FAITH RECRUITMENT","01709500","461.68 ","PLANNING SERVICES - DEVELOPMENT CONTROL","TEMPORARY STAFF","A110","TEMPORARY STAFF","PLANNING SERVICES","HUMAN RESOURCES"
"http://statistics.data.gov.uk/id/local-authority/43UM","WOKING BOROUGH COUNCIL","13/07/2022","20/07/2022","0000479910/001","OYSTER PARTNERSHIP","40443300","130.50 ","PLANNING SERVICES - DEVELOPMENT CONTROL","TEMPORARY STAFF","A110","TEMPORARY STAFF","PLANNING SERVICES","HUMAN RESOURCES"
"http://statistics.data.gov.uk/id/local-authority/43UM","WOKING BOROUGH COUNCIL","01/07/2022","20/07/2022","0000479629/001","FAITH RECRUITMENT","01709500","46.88 ","CORPORATE STRATEGY - CUSTOMER SERVICES","TEMPORARY STAFF","A110","TEMPORARY STAFF","CORPORATE STRATEGY","HUMAN RESOURCES"
"http://statistics.data.gov.uk/id/local-authority/43UM","WOKING BOROUGH COUNCIL","08/07/2022","20/07/2022","0000479930/001","FAITH RECRUITMENT","01709500","46.88 ","CORPORATE STRATEGY - CUSTOMER SERVICES","TEMPORARY STAFF","A110","TEMPORARY STAFF","CORPORATE STRATEGY","HUMAN RESOURCES"
"http://statistics.data.gov.uk/id/local-authority/43UM","WOKING BOROUGH COUNCIL","01/07/2022","20/07/2022","0000479625/001","FAITH RECRUITMENT","01709500","41.37 ","NEIGHBOURHOOD SERVICES - PARKING SERVICES","TEMPORARY STAFF","A110","TEMPORARY STAFF","NEIGHBOURHOOD SERVICES","HUMAN RESOURCES"
"http://statistics.data.gov.uk/id/local-authority/43UM","WOKING BOROUGH COUNCIL","01/07/2022","20/07/2022","0000479627/001","FAITH RECRUITMENT","01709500","41.37 ","NEIGHBOURHOOD SERVICES - PARKING SERVICES","TEMPORARY STAFF","A110","TEMPORARY STAFF","NEIGHBOURHOOD SERVICES","HUMAN RESOURCES"
"http://statistics.data.gov.uk/id/local-authority/43UM","WOKING BOROUGH COUNCIL","08/07/2022","20/07/2022","0000479926/001","FAITH RECRUITMENT","01709500","41.37 ","NEIGHBOURHOOD SERVICES - PARKING SERVICES","TEMPORARY STAFF","A110","TEMPORARY STAFF","NEIGHBOURHOOD SERVICES","HUMAN RESOURCES"
"http://statistics.data.gov.uk/id/local-authority/43UM","WOKING BOROUGH COUNCIL","08/07/2022","20/07/2022","0000479924/001","FAITH RECRUITMENT","01709500","41.37 ","PLANNING SERVICES - DEVELOPMENT CONTROL","TEMPORARY STAFF","A110","TEMPORARY STAFF","PLANNING SERVICES","HUMAN RESOURCES"
"http://statistics.data.gov.uk/id/local-authority/43UM","WOKING BOROUGH COUNCIL","21/06/2022","27/07/2022","0000480244/001","MOYALLEN WOKING LIMITED","40285600","14,440.44 ","ASSET MANAGEMENT - BUILDING SERVICES","TEMPORARY STAFF","A110","TEMPORARY STAFF","ASSET MANAGEMENT","FACILITIES & MANAGEMENT SERVICES"
"http://statistics.data.gov.uk/id/local-authority/43UM","WOKING BOROUGH COUNCIL","30/06/2022","27/07/2022","0000480243/001","MOYALLEN DEVELOPMENTS LIMITED","40267000","3,500.00 ","ASSET MANAGEMENT - BUILDING SERVICES","TEMPORARY STAFF","A110","TEMPORARY STAFF","ASSET MANAGEMENT","CONSULTANCY"
"http://statistics.data.gov.uk/id/local-authority/43UM","WOKING BOROUGH COUNCIL","20/07/2022","27/07/2022","0000480061/001","OYSTER PARTNERSHIP","40443300","2,022.00 ","ASSET MANAGEMENT - BUILDING SERVICES","TEMPORARY STAFF","A110","TEMPORARY STAFF","ASSET MANAGEMENT","HUMAN RESOURCES"
"http://statistics.data.gov.uk/id/local-authority/43UM","WOKING BOROUGH COUNCIL","20/07/2022","27/07/2022","0000480052/001","OYSTER PARTNERSHIP","40443300","1,813.74 ","PLANNING SERVICES - DEVELOPMENT CONTROL","TEMPORARY STAFF","A110","TEMPORARY STAFF","PLANNING SERVICES","HUMAN RESOURCES"
"http://statistics.data.gov.uk/id/local-authority/43UM","WOKING BOROUGH COUNCIL","01/07/2022","27/07/2022","0000479372/001","JAMES POTTER","40849300","1,705.00 ","ASSET MANAGEMENT - BUILDING SERVICES","TEMPORARY STAFF","A110","TEMPORARY STAFF","ASSET MANAGEMENT","ENVIRONMENTAL SERVICES"
"http://statistics.data.gov.uk/id/local-authority/43UM","WOKING BOROUGH COUNCIL","20/07/2022","27/07/2022","0000480074/001","VIVID RESOURCING","40463200","1,258.00 ","HOUSING SERVICES - HOUSING NEEDS & ALLOCATIONS","TEMPORARY STAFF","A110","TEMPORARY STAFF","HOUSING SERVICES","HUMAN RESOURCES"
"http://statistics.data.gov.uk/id/local-authority/43UM","WOKING BOROUGH COUNCIL","17/07/2022","27/07/2022","0000480069/001","MORGAN HUNT UK LIMITED","01768500","1,111.25 ","REVENUES AND BENEFITS - COUNCIL TAX","TEMPORARY STAFF","A110","TEMPORARY STAFF","REVENUES AND BENEFITS","HUMAN RESOURCES"
"http://statistics.data.gov.uk/id/local-authority/43UM","WOKING BOROUGH COUNCIL","25/07/2022","27/07/2022","0000480179/001","ABC UMBRELLA LTD","41031700","1,000.00 ","REVENUES AND BENEFITS - COUNCIL TAX","TEMPORARY STAFF","A110","TEMPORARY STAFF","REVENUES AND BENEFITS","HUMAN RESOURCES"
"http://statistics.data.gov.uk/id/local-authority/43UM","WOKING BOROUGH COUNCIL","22/07/2022","27/07/2022","0000480143/001","FLYING UMBRELLA","41022200","1,000.00 ","REVENUES AND BENEFITS - BENEFIT SERVICES","TEMPORARY STAFF","A110","TEMPORARY STAFF","REVENUES AND BENEFITS","HUMAN RESOURCES"
"http://statistics.data.gov.uk/id/local-authority/43UM","WOKING BOROUGH COUNCIL","15/07/2022","27/07/2022","0000480152/001","FAITH RECRUITMENT","01709500","677.30 ","CORPORATE STRATEGY - CUSTOMER SERVICES","TEMPORARY STAFF","A110","TEMPORARY STAFF","CORPORATE STRATEGY","HUMAN RESOURCES"
"http://statistics.data.gov.uk/id/local-authority/43UM","WOKING BOROUGH COUNCIL","15/07/2022","27/07/2022","0000480150/001","FAITH RECRUITMENT","01709500","663.38 ","NEIGHBOURHOOD SERVICES - PARKING SERVICES","TEMPORARY STAFF","A110","TEMPORARY STAFF","NEIGHBOURHOOD SERVICES","HUMAN RESOURCES"
"http://statistics.data.gov.uk/id/local-authority/43UM","WOKING BOROUGH COUNCIL","29/04/2022","27/07/2022","0000480125/001","FAITH RECRUITMENT","01709500","530.70 ","NEIGHBOURHOOD SERVICES - PARKING SERVICES","TEMPORARY STAFF","A110","TEMPORARY STAFF","NEIGHBOURHOOD SERVICES","HUMAN RESOURCES"
"http://statistics.data.gov.uk/id/local-authority/43UM","WOKING BOROUGH COUNCIL","15/07/2022","27/07/2022","0000480148/001","FAITH RECRUITMENT","01709500","501.48 ","PLANNING SERVICES - DEVELOPMENT CONTROL","TEMPORARY STAFF","A110","TEMPORARY STAFF","PLANNING SERVICES","HUMAN RESOURCES"
"http://statistics.data.gov.uk/id/local-authority/43UM","WOKING BOROUGH COUNCIL","03/06/2022","27/07/2022","0000480123/001","FAITH RECRUITMENT","01709500","495.32 ","NEIGHBOURHOOD SERVICES - PARKING SERVICES","TEMPORARY STAFF","A110","TEMPORARY STAFF","NEIGHBOURHOOD SERVICES","HUMAN RESOURCES"
"http://statistics.data.gov.uk/id/local-authority/43UM","WOKING BOROUGH COUNCIL","06/07/2022","27/07/2022","0000479957/001","VENN GROUP LIMITED","40383900","484.20 ","REVENUES AND BENEFITS - BENEFIT SERVICES","TEMPORARY STAFF","A110","TEMPORARY STAFF","REVENUES AND BENEFITS","HUMAN RESOURCES"
"http://statistics.data.gov.uk/id/local-authority/43UM","WOKING BOROUGH COUNCIL","20/07/2022","27/07/2022","0000480096/001","BROOK STREET (UK) LTD","01049600","482.85 ","HOUSING SERVICES - HOUSING STANDARDS & LICENSING","TEMPORARY STAFF","A110","TEMPORARY STAFF","HOUSING SERVICES","HUMAN RESOURCES"
"http://statistics.data.gov.uk/id/local-authority/43UM","WOKING BOROUGH COUNCIL","24/06/2022","27/07/2022","0000480121/001","FAITH RECRUITMENT","01709500","405.46 ","CORPORATE STRATEGY - CUSTOMER SERVICES","TEMPORARY STAFF","A110","TEMPORARY STAFF","CORPORATE STRATEGY","HUMAN RESOURCES"
"http://statistics.data.gov.uk/id/local-authority/43UM","WOKING BOROUGH COUNCIL","13/02/2022","27/07/2022","0000480105/001","MORGAN HUNT UK LIMITED","01768500","312.50 ","REVENUES AND BENEFITS - COUNCIL TAX","TEMPORARY STAFF","A110","TEMPORARY STAFF","REVENUES AND BENEFITS","HUMAN RESOURCES"
"http://statistics.data.gov.uk/id/local-authority/43UM","WOKING BOROUGH COUNCIL","30/06/2022","27/07/2022","0000479980/103","SKANSKA RASHLEIGH WEATHERFOIL LTD","40413600","303.70 ","NEIGHBOURHOOD SERVICES - PARKING SERVICES","TEMPORARY STAFF","A110","TEMPORARY STAFF","NEIGHBOURHOOD SERVICES","FACILITIES & MANAGEMENT SERVICES"
"http://statistics.data.gov.uk/id/local-authority/43UM","WOKING BOROUGH COUNCIL","06/05/2022","27/07/2022","0000480124/001","FAITH RECRUITMENT","01709500","265.35 ","NEIGHBOURHOOD SERVICES - PARKING SERVICES","TEMPORARY STAFF","A110","TEMPORARY STAFF","NEIGHBOURHOOD SERVICES","HUMAN RESOURCES"
"http://statistics.data.gov.uk/id/local-authority/43UM","WOKING BOROUGH COUNCIL","22/04/2022","27/07/2022","0000480127/001","FAITH RECRUITMENT","01709500","265.35 ","NEIGHBOURHOOD SERVICES - PARKING SERVICES","TEMPORARY STAFF","A110","TEMPORARY STAFF","NEIGHBOURHOOD SERVICES","HUMAN RESOURCES"
"http://statistics.data.gov.uk/id/local-authority/43UM","WOKING BOROUGH COUNCIL","15/04/2022","27/07/2022","0000480128/001","FAITH RECRUITMENT","01709500","265.35 ","NEIGHBOURHOOD SERVICES - PARKING SERVICES","TEMPORARY STAFF","A110","TEMPORARY STAFF","NEIGHBOURHOOD SERVICES","HUMAN RESOURCES"
"http://statistics.data.gov.uk/id/local-authority/43UM","WOKING BOROUGH COUNCIL","22/04/2022","27/07/2022","0000480126/001","FAITH RECRUITMENT","01709500","248.10 ","NEIGHBOURHOOD SERVICES - PARKING SERVICES","TEMPORARY STAFF","A110","TEMPORARY STAFF","NEIGHBOURHOOD SERVICES","HUMAN RESOURCES"
"http://statistics.data.gov.uk/id/local-authority/43UM","WOKING BOROUGH COUNCIL","30/06/2022","27/07/2022","0000479980/108","SKANSKA RASHLEIGH WEATHERFOIL LTD","40413600","121.53 ","NEIGHBOURHOOD SERVICES - PARKING SERVICES","TEMPORARY STAFF","A110","TEMPORARY STAFF","NEIGHBOURHOOD SERVICES","FACILITIES & MANAGEMENT SERVICES"
"http://statistics.data.gov.uk/id/local-authority/43UM","WOKING BOROUGH COUNCIL","15/07/2022","27/07/2022","0000480153/001","FAITH RECRUITMENT","01709500","46.88 ","CORPORATE STRATEGY - CUSTOMER SERVICES","TEMPORARY STAFF","A110","TEMPORARY STAFF","CORPORATE STRATEGY","HUMAN RESOURCES"
"http://statistics.data.gov.uk/id/local-authority/43UM","WOKING BOROUGH COUNCIL","15/07/2022","27/07/2022","0000480151/001","FAITH RECRUITMENT","01709500","41.37 ","NEIGHBOURHOOD SERVICES - PARKING SERVICES","TEMPORARY STAFF","A110","TEMPORARY STAFF","NEIGHBOURHOOD SERVICES","HUMAN RESOURCES"
"http://statistics.data.gov.uk/id/local-authority/43UM","WOKING BOROUGH COUNCIL","15/07/2022","27/07/2022","0000480149/001","FAITH RECRUITMENT","01709500","41.37 ","PLANNING SERVICES - DEVELOPMENT CONTROL","TEMPORARY STAFF","A110","TEMPORARY STAFF","PLANNING SERVICES","HUMAN RESOURCES"
"http://statistics.data.gov.uk/id/local-authority/43UM","WOKING BOROUGH COUNCIL","17/06/2022","27/07/2022","0000480122/001","FAITH RECRUITMENT","01709500","13.27 ","NEIGHBOURHOOD SERVICES - PARKING SERVICES","TEMPORARY STAFF","A110","TEMPORARY STAFF","NEIGHBOURHOOD SERVICES","HUMAN RESOURCES"
"http://statistics.data.gov.uk/id/local-authority/43UM","WOKING BOROUGH COUNCIL","27/07/2022","03/08/2022","0000480316/001","OYSTER PARTNERSHIP","40443300","2,022.00 ","ASSET MANAGEMENT - BUILDING SERVICES","TEMPORARY STAFF","A110","TEMPORARY STAFF","ASSET MANAGEMENT","HUMAN RESOURCES"
"http://statistics.data.gov.uk/id/local-authority/43UM","WOKING BOROUGH COUNCIL","26/07/2022","03/08/2022","0000480378/001","JAMES POTTER","40849300","1,760.00 ","ASSET MANAGEMENT - BUILDING SERVICES","TEMPORARY STAFF","A110","TEMPORARY STAFF","ASSET MANAGEMENT","ENVIRONMENTAL SERVICES"
"http://statistics.data.gov.uk/id/local-authority/43UM","WOKING BOROUGH COUNCIL","01/08/2022","03/08/2022","0000480448/001","FLYING UMBRELLA","41022200","1,000.00 ","REVENUES AND BENEFITS - BENEFIT SERVICES","TEMPORARY STAFF","A110","TEMPORARY STAFF","REVENUES AND BENEFITS","HUMAN RESOURCES"
"http://statistics.data.gov.uk/id/local-authority/43UM","WOKING BOROUGH COUNCIL","27/07/2022","03/08/2022","0000480350/001","BROOK STREET (UK) LTD","01049600","804.75 ","HOUSING SERVICES - HOUSING STANDARDS & LICENSING","TEMPORARY STAFF","A110","TEMPORARY STAFF","HOUSING SERVICES","HUMAN RESOURCES"
"http://statistics.data.gov.uk/id/local-authority/43UM","WOKING BOROUGH COUNCIL","22/07/2022","03/08/2022","0000480345/001","FAITH RECRUITMENT","01709500","677.30 ","CORPORATE STRATEGY - CUSTOMER SERVICES","TEMPORARY STAFF","A110","TEMPORARY STAFF","CORPORATE STRATEGY","HUMAN RESOURCES"
"http://statistics.data.gov.uk/id/local-authority/43UM","WOKING BOROUGH COUNCIL","29/06/2022","03/08/2022","0000480197/001","VENN GROUP LIMITED","40383900","484.20 ","REVENUES AND BENEFITS - BENEFIT SERVICES","TEMPORARY STAFF","A110","TEMPORARY STAFF","REVENUES AND BENEFITS","HUMAN RESOURCES"
"http://statistics.data.gov.uk/id/local-authority/43UM","WOKING BOROUGH COUNCIL","13/07/2022","03/08/2022","0000480400/001","VENN GROUP LIMITED","40383900","484.20 ","REVENUES AND BENEFITS - BENEFIT SERVICES","TEMPORARY STAFF","A110","TEMPORARY STAFF","REVENUES AND BENEFITS","HUMAN RESOURCES"
"http://statistics.data.gov.uk/id/local-authority/43UM","WOKING BOROUGH COUNCIL","22/07/2022","03/08/2022","0000480337/001","FAITH RECRUITMENT","01709500","46.88 ","CORPORATE STRATEGY - CUSTOMER SERVICES","TEMPORARY STAFF","A110","TEMPORARY STAFF","CORPORATE STRATEGY","HUMAN RESOURCES"
"http://statistics.data.gov.uk/id/local-authority/43UM","WOKING BOROUGH COUNCIL","03/08/2022","10/08/2022","0000480549/001","MARKS CONSULTING PARTNERS LIMITED","40708400","2,625.00 ","ASSET MANAGEMENT - BUILDING SERVICES","TEMPORARY STAFF","A110","TEMPORARY STAFF","ASSET MANAGEMENT","CONSULTANCY"
"http://statistics.data.gov.uk/id/local-authority/43UM","WOKING BOROUGH COUNCIL","27/07/2022","10/08/2022","0000480311/001","VIVID RESOURCING","40463200","2,310.50 ","PLANNING SERVICES - DEVELOPMENT CONTROL","TEMPORARY STAFF","A110","TEMPORARY STAFF","PLANNING SERVICES","HUMAN RESOURCES"
"http://statistics.data.gov.uk/id/local-authority/43UM","WOKING BOROUGH COUNCIL","27/07/2022","10/08/2022","0000480317/001","OYSTER PARTNERSHIP","40443300","1,905.27 ","PLANNING SERVICES - DEVELOPMENT CONTROL","TEMPORARY STAFF","A110","TEMPORARY STAFF","PLANNING SERVICES","HUMAN RESOURCES"
"http://statistics.data.gov.uk/id/local-authority/43UM","WOKING BOROUGH COUNCIL","24/07/2022","10/08/2022","0000480476/001","UNITY RECRUITMENT LTD","40160500","1,876.88 ","NEIGHBOURHOOD SERVICES - PARKING SERVICES","TEMPORARY STAFF","A110","TEMPORARY STAFF","NEIGHBOURHOOD SERVICES","HUMAN RESOURCES"
"http://statistics.data.gov.uk/id/local-authority/43UM","WOKING BOROUGH COUNCIL","10/07/2022","10/08/2022","0000480285/001","UNITY RECRUITMENT LTD","40160500","1,732.51 ","NEIGHBOURHOOD SERVICES - PARKING SERVICES","TEMPORARY STAFF","A110","TEMPORARY STAFF","NEIGHBOURHOOD SERVICES","HUMAN RESOURCES"
"http://statistics.data.gov.uk/id/local-authority/43UM","WOKING BOROUGH COUNCIL","17/07/2022","10/08/2022","0000480286/001","UNITY RECRUITMENT LTD","40160500","1,694.01 ","NEIGHBOURHOOD SERVICES - PARKING SERVICES","TEMPORARY STAFF","A110","TEMPORARY STAFF","NEIGHBOURHOOD SERVICES","HUMAN RESOURCES"
"http://statistics.data.gov.uk/id/local-authority/43UM","WOKING BOROUGH COUNCIL","27/07/2022","10/08/2022","0000480315/001","OYSTER PARTNERSHIP","40443300","1,609.50 ","PLANNING SERVICES - DEVELOPMENT CONTROL","TEMPORARY STAFF","A110","TEMPORARY STAFF","PLANNING SERVICES","HUMAN RESOURCES"
"http://statistics.data.gov.uk/id/local-authority/43UM","WOKING BOROUGH COUNCIL","03/08/2022","10/08/2022","0000480506/001","OYSTER PARTNERSHIP","40443300","1,609.50 ","PLANNING SERVICES - DEVELOPMENT CONTROL","TEMPORARY STAFF","A110","TEMPORARY STAFF","PLANNING SERVICES","HUMAN RESOURCES"
"http://statistics.data.gov.uk/id/local-authority/43UM","WOKING BOROUGH COUNCIL","27/07/2022","10/08/2022","0000480312/001","VIVID RESOURCING","40463200","1,258.00 ","HOUSING SERVICES - HOUSING NEEDS & ALLOCATIONS","TEMPORARY STAFF","A110","TEMPORARY STAFF","HOUSING SERVICES","HUMAN RESOURCES"
"http://statistics.data.gov.uk/id/local-authority/43UM","WOKING BOROUGH COUNCIL","03/08/2022","10/08/2022","0000480573/001","VIVID RESOURCING","40463200","1,258.00 ","HOUSING SERVICES - HOUSING NEEDS & ALLOCATIONS","TEMPORARY STAFF","A110","TEMPORARY STAFF","HOUSING SERVICES","HUMAN RESOURCES"
"http://statistics.data.gov.uk/id/local-authority/43UM","WOKING BOROUGH COUNCIL","24/07/2022","10/08/2022","0000480383/001","MORGAN HUNT UK LIMITED","01768500","1,047.75 ","REVENUES AND BENEFITS - COUNCIL TAX","TEMPORARY STAFF","A110","TEMPORARY STAFF","REVENUES AND BENEFITS","HUMAN RESOURCES"
"http://statistics.data.gov.uk/id/local-authority/43UM","WOKING BOROUGH COUNCIL","01/08/2022","10/08/2022","0000480449/001","ABC UMBRELLA LTD","41031700","1,000.00 ","REVENUES AND BENEFITS - COUNCIL TAX","TEMPORARY STAFF","A110","TEMPORARY STAFF","REVENUES AND BENEFITS","HUMAN RESOURCES"
"http://statistics.data.gov.uk/id/local-authority/43UM","WOKING BOROUGH COUNCIL","05/08/2022","10/08/2022","0000480631/001","FLYING UMBRELLA","41022200","1,000.00 ","REVENUES AND BENEFITS - BENEFIT SERVICES","TEMPORARY STAFF","A110","TEMPORARY STAFF","REVENUES AND BENEFITS","HUMAN RESOURCES"
"http://statistics.data.gov.uk/id/local-authority/43UM","WOKING BOROUGH COUNCIL","05/08/2022","10/08/2022","0000480745/001","ABC UMBRELLA LTD","41031700","1,000.00 ","REVENUES AND BENEFITS - COUNCIL TAX","TEMPORARY STAFF","A110","TEMPORARY STAFF","REVENUES AND BENEFITS","HUMAN RESOURCES"
"http://statistics.data.gov.uk/id/local-authority/43UM","WOKING BOROUGH COUNCIL","31/07/2022","10/08/2022","0000480655/001","MORGAN HUNT UK LIMITED","01768500","952.50 ","REVENUES AND BENEFITS - COUNCIL TAX","TEMPORARY STAFF","A110","TEMPORARY STAFF","REVENUES AND BENEFITS","HUMAN RESOURCES"
"http://statistics.data.gov.uk/id/local-authority/43UM","WOKING BOROUGH COUNCIL","03/08/2022","10/08/2022","0000480586/001","BROOK STREET (UK) LTD","01049600","804.75 ","HOUSING SERVICES - HOUSING STANDARDS & LICENSING","TEMPORARY STAFF","A110","TEMPORARY STAFF","HOUSING SERVICES","HUMAN RESOURCES"
"http://statistics.data.gov.uk/id/local-authority/43UM","WOKING BOROUGH COUNCIL","22/07/2022","10/08/2022","0000480343/001","FAITH RECRUITMENT","01709500","530.70 ","NEIGHBOURHOOD SERVICES - PARKING SERVICES","TEMPORARY STAFF","A110","TEMPORARY STAFF","NEIGHBOURHOOD SERVICES","HUMAN RESOURCES"
"http://statistics.data.gov.uk/id/local-authority/43UM","WOKING BOROUGH COUNCIL","22/07/2022","10/08/2022","0000480341/001","FAITH RECRUITMENT","01709500","517.40 ","PLANNING SERVICES - DEVELOPMENT CONTROL","TEMPORARY STAFF","A110","TEMPORARY STAFF","PLANNING SERVICES","HUMAN RESOURCES"
"http://statistics.data.gov.uk/id/local-authority/43UM","WOKING BOROUGH COUNCIL","20/07/2022","10/08/2022","0000480478/001","VENN GROUP LIMITED","40383900","484.20 ","REVENUES AND BENEFITS - BENEFIT SERVICES","TEMPORARY STAFF","A110","TEMPORARY STAFF","REVENUES AND BENEFITS","HUMAN RESOURCES"
"http://statistics.data.gov.uk/id/local-authority/43UM","WOKING BOROUGH COUNCIL","27/07/2022","10/08/2022","0000480622/001","VENN GROUP LIMITED","40383900","419.64 ","REVENUES AND BENEFITS - BENEFIT SERVICES","TEMPORARY STAFF","A110","TEMPORARY STAFF","REVENUES AND BENEFITS","HUMAN RESOURCES"
"http://statistics.data.gov.uk/id/local-authority/43UM","WOKING BOROUGH COUNCIL","21/07/2022","10/08/2022","0000480635/103","SKANSKA RASHLEIGH WEATHERFOIL LTD","40413600","303.70 ","NEIGHBOURHOOD SERVICES - PARKING SERVICES","TEMPORARY STAFF","A110","TEMPORARY STAFF","NEIGHBOURHOOD SERVICES","FACILITIES & MANAGEMENT SERVICES"
"http://statistics.data.gov.uk/id/local-authority/43UM","WOKING BOROUGH COUNCIL","21/07/2022","10/08/2022","0000480635/108","SKANSKA RASHLEIGH WEATHERFOIL LTD","40413600","121.53 ","NEIGHBOURHOOD SERVICES - PARKING SERVICES","TEMPORARY STAFF","A110","TEMPORARY STAFF","NEIGHBOURHOOD SERVICES","FACILITIES & MANAGEMENT SERVICES"
"http://statistics.data.gov.uk/id/local-authority/43UM","WOKING BOROUGH COUNCIL","22/07/2022","10/08/2022","0000480344/001","FAITH RECRUITMENT","01709500","41.37 ","NEIGHBOURHOOD SERVICES - PARKING SERVICES","TEMPORARY STAFF","A110","TEMPORARY STAFF","NEIGHBOURHOOD SERVICES","HUMAN RESOURCES"
"http://statistics.data.gov.uk/id/local-authority/43UM","WOKING BOROUGH COUNCIL","22/07/2022","10/08/2022","0000480342/001","FAITH RECRUITMENT","01709500","41.37 ","PLANNING SERVICES - DEVELOPMENT CONTROL","TEMPORARY STAFF","A110","TEMPORARY STAFF","PLANNING SERVICES","HUMAN RESOURCES"
"http://statistics.data.gov.uk/id/local-authority/43UM","WOKING BOROUGH COUNCIL","10/08/2022","17/08/2022","0000480846/001","MARKS CONSULTING PARTNERS LIMITED","40708400","2,800.00 ","ASSET MANAGEMENT - BUILDING SERVICES","TEMPORARY STAFF","A110","TEMPORARY STAFF","ASSET MANAGEMENT","CONSULTANCY"
"http://statistics.data.gov.uk/id/local-authority/43UM","WOKING BOROUGH COUNCIL","10/08/2022","17/08/2022","0000480847/001","MARKS CONSULTING PARTNERS LIMITED","40708400","2,625.00 ","ASSET MANAGEMENT - BUILDING SERVICES","TEMPORARY STAFF","A110","TEMPORARY STAFF","ASSET MANAGEMENT","CONSULTANCY"
"http://statistics.data.gov.uk/id/local-authority/43UM","WOKING BOROUGH COUNCIL","10/08/2022","17/08/2022","0000480873/001","OYSTER PARTNERSHIP","40443300","2,022.00 ","ASSET MANAGEMENT - BUILDING SERVICES","TEMPORARY STAFF","A110","TEMPORARY STAFF","ASSET MANAGEMENT","HUMAN RESOURCES"
"http://statistics.data.gov.uk/id/local-authority/43UM","WOKING BOROUGH COUNCIL","10/08/2022","17/08/2022","0000480875/001","OYSTER PARTNERSHIP","40443300","1,866.47 ","PLANNING SERVICES - DEVELOPMENT CONTROL","TEMPORARY STAFF","A110","TEMPORARY STAFF","PLANNING SERVICES","HUMAN RESOURCES"
"http://statistics.data.gov.uk/id/local-authority/43UM","WOKING BOROUGH COUNCIL","10/08/2022","17/08/2022","0000480874/001","OYSTER PARTNERSHIP","40443300","1,792.65 ","PLANNING SERVICES - DEVELOPMENT CONTROL","TEMPORARY STAFF","A110","TEMPORARY STAFF","PLANNING SERVICES","HUMAN RESOURCES"
"http://statistics.data.gov.uk/id/local-authority/43UM","WOKING BOROUGH COUNCIL","10/08/2022","17/08/2022","0000480872/001","OYSTER PARTNERSHIP","40443300","1,609.50 ","PLANNING SERVICES - DEVELOPMENT CONTROL","TEMPORARY STAFF","A110","TEMPORARY STAFF","PLANNING SERVICES","HUMAN RESOURCES"
"http://statistics.data.gov.uk/id/local-authority/43UM","WOKING BOROUGH COUNCIL","10/08/2022","17/08/2022","0000480881/001","VIVID RESOURCING","40463200","1,258.00 ","HOUSING SERVICES - HOUSING NEEDS & ALLOCATIONS","TEMPORARY STAFF","A110","TEMPORARY STAFF","HOUSING SERVICES","HUMAN RESOURCES"
"http://statistics.data.gov.uk/id/local-authority/43UM","WOKING BOROUGH COUNCIL","07/08/2022","17/08/2022","0000480850/001","MORGAN HUNT UK LIMITED","01768500","1,143.00 ","REVENUES AND BENEFITS - COUNCIL TAX","TEMPORARY STAFF","A110","TEMPORARY STAFF","REVENUES AND BENEFITS","HUMAN RESOURCES"
"http://statistics.data.gov.uk/id/local-authority/43UM","WOKING BOROUGH COUNCIL","12/08/2022","17/08/2022","0000480985/001","FLYING UMBRELLA","41022200","1,000.00 ","REVENUES AND BENEFITS - BENEFIT SERVICES","TEMPORARY STAFF","A110","TEMPORARY STAFF","REVENUES AND BENEFITS","HUMAN RESOURCES"
"http://statistics.data.gov.uk/id/local-authority/43UM","WOKING BOROUGH COUNCIL","31/07/2022","17/08/2022","0000480678/001","UNITY RECRUITMENT LTD","40160500","866.26 ","NEIGHBOURHOOD SERVICES - PARKING SERVICES","TEMPORARY STAFF","A110","TEMPORARY STAFF","NEIGHBOURHOOD SERVICES","HUMAN RESOURCES"
"http://statistics.data.gov.uk/id/local-authority/43UM","WOKING BOROUGH COUNCIL","10/08/2022","17/08/2022","0000480889/001","BROOK STREET (UK) LTD","01049600","804.75 ","HOUSING SERVICES - HOUSING STANDARDS & LICENSING","TEMPORARY STAFF","A110","TEMPORARY STAFF","HOUSING SERVICES","HUMAN RESOURCES"
"http://statistics.data.gov.uk/id/local-authority/43UM","WOKING BOROUGH COUNCIL","29/07/2022","17/08/2022","0000480702/001","FAITH RECRUITMENT","01709500","677.30 ","CORPORATE STRATEGY - CUSTOMER SERVICES","TEMPORARY STAFF","A110","TEMPORARY STAFF","CORPORATE STRATEGY","HUMAN RESOURCES"
"http://statistics.data.gov.uk/id/local-authority/43UM","WOKING BOROUGH COUNCIL","29/07/2022","17/08/2022","0000480698/001","FAITH RECRUITMENT","01709500","654.53 ","NEIGHBOURHOOD SERVICES - PARKING SERVICES","TEMPORARY STAFF","A110","TEMPORARY STAFF","NEIGHBOURHOOD SERVICES","HUMAN RESOURCES"
"http://statistics.data.gov.uk/id/local-authority/43UM","WOKING BOROUGH COUNCIL","05/08/2022","17/08/2022","0000480944/001","FAITH RECRUITMENT","01709500","517.40 ","PLANNING SERVICES - DEVELOPMENT CONTROL","TEMPORARY STAFF","A110","TEMPORARY STAFF","PLANNING SERVICES","HUMAN RESOURCES"
"http://statistics.data.gov.uk/id/local-authority/43UM","WOKING BOROUGH COUNCIL","03/08/2022","17/08/2022","0000480791/001","VENN GROUP LIMITED","40383900","484.20 ","REVENUES AND BENEFITS - BENEFIT SERVICES","TEMPORARY STAFF","A110","TEMPORARY STAFF","REVENUES AND BENEFITS","HUMAN RESOURCES"
"http://statistics.data.gov.uk/id/local-authority/43UM","WOKING BOROUGH COUNCIL","29/07/2022","17/08/2022","0000480695/001","FAITH RECRUITMENT","01709500","413.92 ","PLANNING SERVICES - DEVELOPMENT CONTROL","TEMPORARY STAFF","A110","TEMPORARY STAFF","PLANNING SERVICES","HUMAN RESOURCES"
"http://statistics.data.gov.uk/id/local-authority/43UM","WOKING BOROUGH COUNCIL","29/07/2022","17/08/2022","0000480701/001","FAITH RECRUITMENT","01709500","46.88 ","CORPORATE STRATEGY - CUSTOMER SERVICES","TEMPORARY STAFF","A110","TEMPORARY STAFF","CORPORATE STRATEGY","HUMAN RESOURCES"
"http://statistics.data.gov.uk/id/local-authority/43UM","WOKING BOROUGH COUNCIL","05/08/2022","17/08/2022","0000480949/001","FAITH RECRUITMENT","01709500","46.88 ","CORPORATE STRATEGY - CUSTOMER SERVICES","TEMPORARY STAFF","A110","TEMPORARY STAFF","CORPORATE STRATEGY","HUMAN RESOURCES"
"http://statistics.data.gov.uk/id/local-authority/43UM","WOKING BOROUGH COUNCIL","29/07/2022","17/08/2022","0000480700/001","FAITH RECRUITMENT","01709500","41.37 ","NEIGHBOURHOOD SERVICES - PARKING SERVICES","TEMPORARY STAFF","A110","TEMPORARY STAFF","NEIGHBOURHOOD SERVICES","HUMAN RESOURCES"
"http://statistics.data.gov.uk/id/local-authority/43UM","WOKING BOROUGH COUNCIL","29/07/2022","17/08/2022","0000480697/001","FAITH RECRUITMENT","01709500","41.37 ","PLANNING SERVICES - DEVELOPMENT CONTROL","TEMPORARY STAFF","A110","TEMPORARY STAFF","PLANNING SERVICES","HUMAN RESOURCES"
"http://statistics.data.gov.uk/id/local-authority/43UM","WOKING BOROUGH COUNCIL","05/08/2022","17/08/2022","0000480945/001","FAITH RECRUITMENT","01709500","41.37 ","PLANNING SERVICES - DEVELOPMENT CONTROL","TEMPORARY STAFF","A110","TEMPORARY STAFF","PLANNING SERVICES","HUMAN RESOURCES"
"http://statistics.data.gov.uk/id/local-authority/43UM","WOKING BOROUGH COUNCIL","17/08/2022","24/08/2022","0000481087/001","MARKS CONSULTING PARTNERS LIMITED","40708400","2,800.00 ","ASSET MANAGEMENT - BUILDING SERVICES","TEMPORARY STAFF","A110","TEMPORARY STAFF","ASSET MANAGEMENT","CONSULTANCY"
"http://statistics.data.gov.uk/id/local-authority/43UM","WOKING BOROUGH COUNCIL","17/08/2022","24/08/2022","0000481096/001","OYSTER PARTNERSHIP","40443300","1,842.00 ","PLANNING SERVICES - DEVELOPMENT CONTROL","TEMPORARY STAFF","A110","TEMPORARY STAFF","PLANNING SERVICES","HUMAN RESOURCES"
"http://statistics.data.gov.uk/id/local-authority/43UM","WOKING BOROUGH COUNCIL","17/08/2022","24/08/2022","0000481097/001","OYSTER PARTNERSHIP","40443300","1,685.00 ","ASSET MANAGEMENT - BUILDING SERVICES","TEMPORARY STAFF","A110","TEMPORARY STAFF","ASSET MANAGEMENT","HUMAN RESOURCES"
"http://statistics.data.gov.uk/id/local-authority/43UM","WOKING BOROUGH COUNCIL","17/08/2022","24/08/2022","0000481094/001","OYSTER PARTNERSHIP","40443300","1,609.50 ","PLANNING SERVICES - DEVELOPMENT CONTROL","TEMPORARY STAFF","A110","TEMPORARY STAFF","PLANNING SERVICES","HUMAN RESOURCES"
"http://statistics.data.gov.uk/id/local-authority/43UM","WOKING BOROUGH COUNCIL","17/08/2022","24/08/2022","0000481086/001","MARKS CONSULTING PARTNERS LIMITED","40708400","1,575.00 ","ASSET MANAGEMENT - BUILDING SERVICES","TEMPORARY STAFF","A110","TEMPORARY STAFF","ASSET MANAGEMENT","CONSULTANCY"
"http://statistics.data.gov.uk/id/local-authority/43UM","WOKING BOROUGH COUNCIL","17/08/2022","24/08/2022","0000481104/001","VIVID RESOURCING","40463200","1,258.00 ","HOUSING SERVICES - HOUSING NEEDS & ALLOCATIONS","TEMPORARY STAFF","A110","TEMPORARY STAFF","HOUSING SERVICES","HUMAN RESOURCES"
"http://statistics.data.gov.uk/id/local-authority/43UM","WOKING BOROUGH COUNCIL","14/08/2022","24/08/2022","0000481112/001","MORGAN HUNT UK LIMITED","01768500","1,079.50 ","REVENUES AND BENEFITS - COUNCIL TAX","TEMPORARY STAFF","A110","TEMPORARY STAFF","REVENUES AND BENEFITS","HUMAN RESOURCES"
"http://statistics.data.gov.uk/id/local-authority/43UM","WOKING BOROUGH COUNCIL","15/08/2022","24/08/2022","0000481004/001","ABC UMBRELLA LTD","41031700","1,000.00 ","REVENUES AND BENEFITS - COUNCIL TAX","TEMPORARY STAFF","A110","TEMPORARY STAFF","REVENUES AND BENEFITS","HUMAN RESOURCES"
"http://statistics.data.gov.uk/id/local-authority/43UM","WOKING BOROUGH COUNCIL","19/08/2022","24/08/2022","0000481155/001","FLYING UMBRELLA","41022200","1,000.00 ","REVENUES AND BENEFITS - BENEFIT SERVICES","TEMPORARY STAFF","A110","TEMPORARY STAFF","REVENUES AND BENEFITS","HUMAN RESOURCES"
"http://statistics.data.gov.uk/id/local-authority/43UM","WOKING BOROUGH COUNCIL","12/08/2022","24/08/2022","0000481171/001","FAITH RECRUITMENT","01709500","607.60 ","CORPORATE STRATEGY - CUSTOMER SERVICES","TEMPORARY STAFF","A110","TEMPORARY STAFF","CORPORATE STRATEGY","HUMAN RESOURCES"
"http://statistics.data.gov.uk/id/local-authority/43UM","WOKING BOROUGH COUNCIL","07/08/2022","24/08/2022","0000480978/001","UNITY RECRUITMENT LTD","40160500","577.50 ","NEIGHBOURHOOD SERVICES - PARKING SERVICES","TEMPORARY STAFF","A110","TEMPORARY STAFF","NEIGHBOURHOOD SERVICES","HUMAN RESOURCES"
"http://statistics.data.gov.uk/id/local-authority/43UM","WOKING BOROUGH COUNCIL","12/08/2022","24/08/2022","0000481172/001","FAITH RECRUITMENT","01709500","555.52 ","CORPORATE STRATEGY - CUSTOMER SERVICES","TEMPORARY STAFF","A110","TEMPORARY STAFF","CORPORATE STRATEGY","HUMAN RESOURCES"
"http://statistics.data.gov.uk/id/local-authority/43UM","WOKING BOROUGH COUNCIL","12/08/2022","24/08/2022","0000481170/001","FAITH RECRUITMENT","01709500","546.84 ","CORPORATE STRATEGY - CUSTOMER SERVICES","TEMPORARY STAFF","A110","TEMPORARY STAFF","CORPORATE STRATEGY","HUMAN RESOURCES"
"http://statistics.data.gov.uk/id/local-authority/43UM","WOKING BOROUGH COUNCIL","05/08/2022","24/08/2022","0000480946/001","FAITH RECRUITMENT","01709500","530.70 ","NEIGHBOURHOOD SERVICES - PARKING SERVICES","TEMPORARY STAFF","A110","TEMPORARY STAFF","NEIGHBOURHOOD SERVICES","HUMAN RESOURCES"
"http://statistics.data.gov.uk/id/local-authority/43UM","WOKING BOROUGH COUNCIL","10/08/2022","24/08/2022","0000481095/001","VENN GROUP LIMITED","40383900","451.92 ","REVENUES AND BENEFITS - BENEFIT SERVICES","TEMPORARY STAFF","A110","TEMPORARY STAFF","REVENUES AND BENEFITS","HUMAN RESOURCES"
"http://statistics.data.gov.uk/id/local-authority/43UM","WOKING BOROUGH COUNCIL","31/03/2022","24/08/2022","0000481067/103","SKANSKA RASHLEIGH WEATHERFOIL LTD","40413600","303.70 ","NEIGHBOURHOOD SERVICES - PARKING SERVICES","TEMPORARY STAFF","A110","TEMPORARY STAFF","NEIGHBOURHOOD SERVICES","FACILITIES & MANAGEMENT SERVICES"
"http://statistics.data.gov.uk/id/local-authority/43UM","WOKING BOROUGH COUNCIL","12/08/2022","24/08/2022","0000481173/001","FAITH RECRUITMENT","01709500","271.84 ","CORPORATE STRATEGY - CUSTOMER SERVICES","TEMPORARY STAFF","A110","TEMPORARY STAFF","CORPORATE STRATEGY","HUMAN RESOURCES"
"http://statistics.data.gov.uk/id/local-authority/43UM","WOKING BOROUGH COUNCIL","31/03/2022","24/08/2022","0000481067/108","SKANSKA RASHLEIGH WEATHERFOIL LTD","40413600","121.53 ","NEIGHBOURHOOD SERVICES - PARKING SERVICES","TEMPORARY STAFF","A110","TEMPORARY STAFF","NEIGHBOURHOOD SERVICES","FACILITIES & MANAGEMENT SERVICES"
"http://statistics.data.gov.uk/id/local-authority/43UM","WOKING BOROUGH COUNCIL","05/08/2022","24/08/2022","0000480947/001","FAITH RECRUITMENT","01709500","41.37 ","NEIGHBOURHOOD SERVICES - PARKING SERVICES","TEMPORARY STAFF","A110","TEMPORARY STAFF","NEIGHBOURHOOD SERVICES","HUMAN RESOURCES"
"http://statistics.data.gov.uk/id/local-authority/43UM","WOKING BOROUGH COUNCIL","04/07/2022","31/08/2022","0000480810/001","PENNA PLC","40087400","7,830.00 ","FINANCIAL SERVICES - FINANCIAL SERVICES","TEMPORARY STAFF","A110","TEMPORARY STAFF","FINANCIAL SERVICES","HUMAN RESOURCES"
"http://statistics.data.gov.uk/id/local-authority/43UM","WOKING BOROUGH COUNCIL","24/08/2022","31/08/2022","0000481363/001","MARKS CONSULTING PARTNERS LIMITED","40708400","2,625.00 ","ASSET MANAGEMENT - BUILDING SERVICES","TEMPORARY STAFF","A110","TEMPORARY STAFF","ASSET MANAGEMENT","CONSULTANCY"
"http://statistics.data.gov.uk/id/local-authority/43UM","WOKING BOROUGH COUNCIL","24/08/2022","31/08/2022","0000481362/001","MARKS CONSULTING PARTNERS LIMITED","40708400","2,100.00 ","ASSET MANAGEMENT - BUILDING SERVICES","TEMPORARY STAFF","A110","TEMPORARY STAFF","ASSET MANAGEMENT","CONSULTANCY"
"http://statistics.data.gov.uk/id/local-authority/43UM","WOKING BOROUGH COUNCIL","24/08/2022","31/08/2022","0000481415/001","OYSTER PARTNERSHIP","40443300","1,887.56 ","PLANNING SERVICES - DEVELOPMENT CONTROL","TEMPORARY STAFF","A110","TEMPORARY STAFF","PLANNING SERVICES","HUMAN RESOURCES"
"http://statistics.data.gov.uk/id/local-authority/43UM","WOKING BOROUGH COUNCIL","24/08/2022","31/08/2022","0000481414/001","OYSTER PARTNERSHIP","40443300","1,609.50 ","PLANNING SERVICES - DEVELOPMENT CONTROL","TEMPORARY STAFF","A110","TEMPORARY STAFF","PLANNING SERVICES","HUMAN RESOURCES"
"http://statistics.data.gov.uk/id/local-authority/43UM","WOKING BOROUGH COUNCIL","17/08/2022","31/08/2022","0000481140/001","BROOK STREET (UK) LTD","01049600","804.75 ","HOUSING SERVICES - HOUSING STANDARDS & LICENSING","TEMPORARY STAFF","A110","TEMPORARY STAFF","HOUSING SERVICES","HUMAN RESOURCES"
"http://statistics.data.gov.uk/id/local-authority/43UM","WOKING BOROUGH COUNCIL","21/08/2022","31/08/2022","0000481350/001","MORGAN HUNT UK LIMITED","01768500","539.75 ","REVENUES AND BENEFITS - COUNCIL TAX","TEMPORARY STAFF","A110","TEMPORARY STAFF","REVENUES AND BENEFITS","HUMAN RESOURCES"
"http://statistics.data.gov.uk/id/local-authority/43UM","WOKING BOROUGH COUNCIL","17/08/2022","31/08/2022","0000481247/001","VENN GROUP LIMITED","40383900","451.92 ","REVENUES AND BENEFITS - BENEFIT SERVICES","TEMPORARY STAFF","A110","TEMPORARY STAFF","REVENUES AND BENEFITS","HUMAN RESOURCES"
"http://statistics.data.gov.uk/id/local-authority/43UM","WOKING BOROUGH COUNCIL","17/08/2022","31/08/2022","0000481230/001","PENNA PLC","40087400","102.15 ","FINANCIAL SERVICES - FINANCIAL SERVICES","TEMPORARY STAFF","A110","TEMPORARY STAFF","FINANCIAL SERVICES","HUMAN RESOURCES"
"http://statistics.data.gov.uk/id/local-authority/43UM","WOKING BOROUGH COUNCIL","31/08/2022","07/09/2022","0000481538/001","MARKS CONSULTING PARTNERS LIMITED","40708400","3,325.00 ","ASSET MANAGEMENT - BUILDING SERVICES","TEMPORARY STAFF","A110","TEMPORARY STAFF","ASSET MANAGEMENT","CONSULTANCY"
"http://statistics.data.gov.uk/id/local-authority/43UM","WOKING BOROUGH COUNCIL","31/08/2022","07/09/2022","0000481539/001","MARKS CONSULTING PARTNERS LIMITED","40708400","2,625.00 ","ASSET MANAGEMENT - BUILDING SERVICES","TEMPORARY STAFF","A110","TEMPORARY STAFF","ASSET MANAGEMENT","CONSULTANCY"
"http://statistics.data.gov.uk/id/local-authority/43UM","WOKING BOROUGH COUNCIL","24/08/2022","07/09/2022","0000481416/001","OYSTER PARTNERSHIP","40443300","2,022.00 ","ASSET MANAGEMENT - BUILDING SERVICES","TEMPORARY STAFF","A110","TEMPORARY STAFF","ASSET MANAGEMENT","HUMAN RESOURCES"
"http://statistics.data.gov.uk/id/local-authority/43UM","WOKING BOROUGH COUNCIL","31/08/2022","07/09/2022","0000481645/001","OYSTER PARTNERSHIP","40443300","1,842.00 ","PLANNING SERVICES - DEVELOPMENT CONTROL","TEMPORARY STAFF","A110","TEMPORARY STAFF","PLANNING SERVICES","HUMAN RESOURCES"
"http://statistics.data.gov.uk/id/local-authority/43UM","WOKING BOROUGH COUNCIL","31/08/2022","07/09/2022","0000481610/001","OYSTER PARTNERSHIP","40443300","1,609.50 ","PLANNING SERVICES - DEVELOPMENT CONTROL","TEMPORARY STAFF","A110","TEMPORARY STAFF","PLANNING SERVICES","HUMAN RESOURCES"
"http://statistics.data.gov.uk/id/local-authority/43UM","WOKING BOROUGH COUNCIL","24/08/2022","07/09/2022","0000481395/001","VIVID RESOURCING","40463200","1,258.00 ","HOUSING SERVICES - HOUSING NEEDS & ALLOCATIONS","TEMPORARY STAFF","A110","TEMPORARY STAFF","HOUSING SERVICES","HUMAN RESOURCES"
"http://statistics.data.gov.uk/id/local-authority/43UM","WOKING BOROUGH COUNCIL","28/08/2022","07/09/2022","0000481708/001","MORGAN HUNT UK LIMITED","01768500","1,174.75 ","REVENUES AND BENEFITS - COUNCIL TAX","TEMPORARY STAFF","A110","TEMPORARY STAFF","REVENUES AND BENEFITS","HUMAN RESOURCES"
"http://statistics.data.gov.uk/id/local-authority/43UM","WOKING BOROUGH COUNCIL","30/08/2022","07/09/2022","0000481493/001","ABC UMBRELLA LTD","41031700","1,000.00 ","REVENUES AND BENEFITS - COUNCIL TAX","TEMPORARY STAFF","A110","TEMPORARY STAFF","REVENUES AND BENEFITS","HUMAN RESOURCES"
"http://statistics.data.gov.uk/id/local-authority/43UM","WOKING BOROUGH COUNCIL","25/08/2022","07/09/2022","0000481418/001","FLYING UMBRELLA","41022200","1,000.00 ","REVENUES AND BENEFITS - BENEFIT SERVICES","TEMPORARY STAFF","A110","TEMPORARY STAFF","REVENUES AND BENEFITS","HUMAN RESOURCES"
"http://statistics.data.gov.uk/id/local-authority/43UM","WOKING BOROUGH COUNCIL","06/09/2022","07/09/2022","0000481715/001","FLYING UMBRELLA","41022200","1,000.00 ","REVENUES AND BENEFITS - BENEFIT SERVICES","TEMPORARY STAFF","A110","TEMPORARY STAFF","REVENUES AND BENEFITS","HUMAN RESOURCES"
"http://statistics.data.gov.uk/id/local-authority/43UM","WOKING BOROUGH COUNCIL","05/09/2022","07/09/2022","0000481606/001","ABC UMBRELLA LTD","41031700","893.75 ","REVENUES AND BENEFITS - COUNCIL TAX","TEMPORARY STAFF","A110","TEMPORARY STAFF","REVENUES AND BENEFITS","HUMAN RESOURCES"
"http://statistics.data.gov.uk/id/local-authority/43UM","WOKING BOROUGH COUNCIL","26/08/2022","07/09/2022","0000481683/001","FAITH RECRUITMENT","01709500","668.09 ","CORPORATE STRATEGY - CUSTOMER SERVICES","TEMPORARY STAFF","A110","TEMPORARY STAFF","CORPORATE STRATEGY","HUMAN RESOURCES"
"http://statistics.data.gov.uk/id/local-authority/43UM","WOKING BOROUGH COUNCIL","26/08/2022","07/09/2022","0000481687/001","FAITH RECRUITMENT","01709500","517.40 ","PLANNING SERVICES - DEVELOPMENT CONTROL","TEMPORARY STAFF","A110","TEMPORARY STAFF","PLANNING SERVICES","HUMAN RESOURCES"
"http://statistics.data.gov.uk/id/local-authority/43UM","WOKING BOROUGH COUNCIL","31/08/2022","07/09/2022","0000481653/001","VENN GROUP LIMITED","40383900","387.36 ","REVENUES AND BENEFITS - BENEFIT SERVICES","TEMPORARY STAFF","A110","TEMPORARY STAFF","REVENUES AND BENEFITS","HUMAN RESOURCES"
"http://statistics.data.gov.uk/id/local-authority/43UM","WOKING BOROUGH COUNCIL","24/08/2022","07/09/2022","0000481430/001","BROOK STREET (UK) LTD","01049600","171.68 ","HOUSING SERVICES - HOUSING STANDARDS & LICENSING","TEMPORARY STAFF","A110","TEMPORARY STAFF","HOUSING SERVICES","HUMAN RESOURCES"
"http://statistics.data.gov.uk/id/local-authority/43UM","WOKING BOROUGH COUNCIL","26/08/2022","07/09/2022","0000481684/001","FAITH RECRUITMENT","01709500","46.88 ","CORPORATE STRATEGY - CUSTOMER SERVICES","TEMPORARY STAFF","A110","TEMPORARY STAFF","CORPORATE STRATEGY","HUMAN RESOURCES"
"http://statistics.data.gov.uk/id/local-authority/43UM","WOKING BOROUGH COUNCIL","19/08/2022","07/09/2022","0000481461/001","FAITH RECRUITMENT","01709500","41.37 ","NEIGHBOURHOOD SERVICES - PARKING SERVICES","TEMPORARY STAFF","A110","TEMPORARY STAFF","NEIGHBOURHOOD SERVICES","HUMAN RESOURCES"
"http://statistics.data.gov.uk/id/local-authority/43UM","WOKING BOROUGH COUNCIL","19/08/2022","07/09/2022","0000481459/001","FAITH RECRUITMENT","01709500","41.37 ","PLANNING SERVICES - DEVELOPMENT CONTROL","TEMPORARY STAFF","A110","TEMPORARY STAFF","PLANNING SERVICES","HUMAN RESOURCES"
"http://statistics.data.gov.uk/id/local-authority/43UM","WOKING BOROUGH COUNCIL","19/08/2022","07/09/2022","0000481460/001","FAITH RECRUITMENT","01709500","41.37 ","PLANNING SERVICES - DEVELOPMENT CONTROL","TEMPORARY STAFF","A110","TEMPORARY STAFF","PLANNING SERVICES","HUMAN RESOURCES"
"http://statistics.data.gov.uk/id/local-authority/43UM","WOKING BOROUGH COUNCIL","26/08/2022","07/09/2022","0000481688/001","FAITH RECRUITMENT","01709500","41.37 ","PLANNING SERVICES - DEVELOPMENT CONTROL","TEMPORARY STAFF","A110","TEMPORARY STAFF","PLANNING SERVICES","HUMAN RESOURCES"
"http://statistics.data.gov.uk/id/local-authority/43UM","WOKING BOROUGH COUNCIL","28/08/2022","14/09/2022","0000481605/001","UNITY RECRUITMENT LTD","40160500","1,588.13 ","NEIGHBOURHOOD SERVICES - PARKING SERVICES","TEMPORARY STAFF","A110","TEMPORARY STAFF","NEIGHBOURHOOD SERVICES","HUMAN RESOURCES"
"http://statistics.data.gov.uk/id/local-authority/43UM","WOKING BOROUGH COUNCIL","07/09/2022","14/09/2022","0000481764/001","OYSTER PARTNERSHIP","40443300","1,571.21 ","PLANNING SERVICES - DEVELOPMENT CONTROL","TEMPORARY STAFF","A110","TEMPORARY STAFF","PLANNING SERVICES","HUMAN RESOURCES"
"http://statistics.data.gov.uk/id/local-authority/43UM","WOKING BOROUGH COUNCIL","07/09/2022","14/09/2022","0000481766/001","OYSTER PARTNERSHIP","40443300","1,562.52 ","PLANNING SERVICES - DEVELOPMENT CONTROL","TEMPORARY STAFF","A110","TEMPORARY STAFF","PLANNING SERVICES","HUMAN RESOURCES"
"http://statistics.data.gov.uk/id/local-authority/43UM","WOKING BOROUGH COUNCIL","14/08/2022","14/09/2022","0000481235/001","UNITY RECRUITMENT LTD","40160500","1,443.76 ","NEIGHBOURHOOD SERVICES - PARKING SERVICES","TEMPORARY STAFF","A110","TEMPORARY STAFF","NEIGHBOURHOOD SERVICES","HUMAN RESOURCES"
"http://statistics.data.gov.uk/id/local-authority/43UM","WOKING BOROUGH COUNCIL","07/09/2022","14/09/2022","0000481765/001","OYSTER PARTNERSHIP","40443300","1,438.05 ","PLANNING SERVICES - DEVELOPMENT CONTROL","TEMPORARY STAFF","A110","TEMPORARY STAFF","PLANNING SERVICES","HUMAN RESOURCES"
"http://statistics.data.gov.uk/id/local-authority/43UM","WOKING BOROUGH COUNCIL","06/09/2022","14/09/2022","0000481798/001","JAMES POTTER","40849300","1,375.00 ","ASSET MANAGEMENT - BUILDING SERVICES","TEMPORARY STAFF","A110","TEMPORARY STAFF","ASSET MANAGEMENT","ENVIRONMENTAL SERVICES"
"http://statistics.data.gov.uk/id/local-authority/43UM","WOKING BOROUGH COUNCIL","21/08/2022","14/09/2022","0000481639/001","UNITY RECRUITMENT LTD","40160500","1,251.26 ","NEIGHBOURHOOD SERVICES - PARKING SERVICES","TEMPORARY STAFF","A110","TEMPORARY STAFF","NEIGHBOURHOOD SERVICES","HUMAN RESOURCES"
"http://statistics.data.gov.uk/id/local-authority/43UM","WOKING BOROUGH COUNCIL","31/08/2022","14/09/2022","0000481644/001","OYSTER PARTNERSHIP","40443300","1,128.01 ","ASSET MANAGEMENT - BUILDING SERVICES","TEMPORARY STAFF","A110","TEMPORARY STAFF","ASSET MANAGEMENT","HUMAN RESOURCES"
"http://statistics.data.gov.uk/id/local-authority/43UM","WOKING BOROUGH COUNCIL","08/09/2022","14/09/2022","0000481792/001","FLYING UMBRELLA","41022200","987.50 ","REVENUES AND BENEFITS - BENEFIT SERVICES","TEMPORARY STAFF","A110","TEMPORARY STAFF","REVENUES AND BENEFITS","HUMAN RESOURCES"
"http://statistics.data.gov.uk/id/local-authority/43UM","WOKING BOROUGH COUNCIL","26/08/2022","14/09/2022","0000481689/001","FAITH RECRUITMENT","01709500","663.38 ","NEIGHBOURHOOD SERVICES - PARKING SERVICES","TEMPORARY STAFF","A110","TEMPORARY STAFF","NEIGHBOURHOOD SERVICES","HUMAN RESOURCES"
"http://statistics.data.gov.uk/id/local-authority/43UM","WOKING BOROUGH COUNCIL","07/09/2022","14/09/2022","0000481767/001","VIVID RESOURCING","40463200","503.20 ","HOUSING SERVICES - HOUSING NEEDS & ALLOCATIONS","TEMPORARY STAFF","A110","TEMPORARY STAFF","HOUSING SERVICES","HUMAN RESOURCES"
"http://statistics.data.gov.uk/id/local-authority/43UM","WOKING BOROUGH COUNCIL","24/08/2022","14/09/2022","0000481790/001","VENN GROUP LIMITED","40383900","451.92 ","REVENUES AND BENEFITS - BENEFIT SERVICES","TEMPORARY STAFF","A110","TEMPORARY STAFF","REVENUES AND BENEFITS","HUMAN RESOURCES"
"http://statistics.data.gov.uk/id/local-authority/43UM","WOKING BOROUGH COUNCIL","02/09/2022","14/09/2022","0000481856/001","FAITH RECRUITMENT","01709500","46.88 ","CORPORATE STRATEGY - CUSTOMER SERVICES","TEMPORARY STAFF","A110","TEMPORARY STAFF","CORPORATE STRATEGY","HUMAN RESOURCES"
"http://statistics.data.gov.uk/id/local-authority/43UM","WOKING BOROUGH COUNCIL","19/08/2022","14/09/2022","0000481462/001","FAITH RECRUITMENT","01709500","41.37 ","NEIGHBOURHOOD SERVICES - PARKING SERVICES","TEMPORARY STAFF","A110","TEMPORARY STAFF","NEIGHBOURHOOD SERVICES","HUMAN RESOURCES"
"http://statistics.data.gov.uk/id/local-authority/43UM","WOKING BOROUGH COUNCIL","26/09/2022","14/09/2022","0000481690/001","FAITH RECRUITMENT","01709500","41.37 ","NEIGHBOURHOOD SERVICES - PARKING SERVICES","TEMPORARY STAFF","A110","TEMPORARY STAFF","NEIGHBOURHOOD SERVICES","HUMAN RESOURCES"
"http://statistics.data.gov.uk/id/local-authority/43UM","WOKING BOROUGH COUNCIL","14/09/2022","21/09/2022","0000481989/001","OYSTER PARTNERSHIP","40443300","1,918.47 ","ASSET MANAGEMENT - BUILDING SERVICES","TEMPORARY STAFF","A110","TEMPORARY STAFF","ASSET MANAGEMENT","HUMAN RESOURCES"
"http://statistics.data.gov.uk/id/local-authority/43UM","WOKING BOROUGH COUNCIL","14/09/2022","21/09/2022","0000481990/001","OYSTER PARTNERSHIP","40443300","1,852.55 ","PLANNING SERVICES - DEVELOPMENT CONTROL","TEMPORARY STAFF","A110","TEMPORARY STAFF","PLANNING SERVICES","HUMAN RESOURCES"
"http://statistics.data.gov.uk/id/local-authority/43UM","WOKING BOROUGH COUNCIL","14/09/2022","21/09/2022","0000481988/001","OYSTER PARTNERSHIP","40443300","1,699.98 ","PLANNING SERVICES - DEVELOPMENT CONTROL","TEMPORARY STAFF","A110","TEMPORARY STAFF","PLANNING SERVICES","HUMAN RESOURCES"
"http://statistics.data.gov.uk/id/local-authority/43UM","WOKING BOROUGH COUNCIL","11/09/2022","21/09/2022","0000481986/001","MORGAN HUNT UK LIMITED","01768500","1,301.75 ","REVENUES AND BENEFITS - COUNCIL TAX","TEMPORARY STAFF","A110","TEMPORARY STAFF","REVENUES AND BENEFITS","HUMAN RESOURCES"
"http://statistics.data.gov.uk/id/local-authority/43UM","WOKING BOROUGH COUNCIL","14/09/2022","21/09/2022","0000481981/001","VIVID RESOURCING","40463200","1,258.00 ","HOUSING SERVICES - HOUSING NEEDS & ALLOCATIONS","TEMPORARY STAFF","A110","TEMPORARY STAFF","HOUSING SERVICES","HUMAN RESOURCES"
"http://statistics.data.gov.uk/id/local-authority/43UM","WOKING BOROUGH COUNCIL","16/09/2022","21/09/2022","0000482032/001","FLYING UMBRELLA","41022200","1,000.00 ","REVENUES AND BENEFITS - BENEFIT SERVICES","TEMPORARY STAFF","A110","TEMPORARY STAFF","REVENUES AND BENEFITS","HUMAN RESOURCES"
"http://statistics.data.gov.uk/id/local-authority/43UM","WOKING BOROUGH COUNCIL","09/09/2022","21/09/2022","0000482050/001","FAITH RECRUITMENT","01709500","517.40 ","PLANNING SERVICES - DEVELOPMENT CONTROL","TEMPORARY STAFF","A110","TEMPORARY STAFF","PLANNING SERVICES","HUMAN RESOURCES"
"http://statistics.data.gov.uk/id/local-authority/43UM","WOKING BOROUGH COUNCIL","02/09/2022","21/09/2022","0000481851/001","FAITH RECRUITMENT","01709500","374.12 ","PLANNING SERVICES - DEVELOPMENT CONTROL","TEMPORARY STAFF","A110","TEMPORARY STAFF","PLANNING SERVICES","HUMAN RESOURCES"
"http://statistics.data.gov.uk/id/local-authority/43UM","WOKING BOROUGH COUNCIL","06/09/2022","21/09/2022","0000481911/103","SKANSKA RASHLEIGH WEATHERFOIL LTD","40413600","303.70 ","NEIGHBOURHOOD SERVICES - PARKING SERVICES","TEMPORARY STAFF","A110","TEMPORARY STAFF","NEIGHBOURHOOD SERVICES","FACILITIES & MANAGEMENT SERVICES"
"http://statistics.data.gov.uk/id/local-authority/43UM","WOKING BOROUGH COUNCIL","06/09/2022","21/09/2022","0000481911/108","SKANSKA RASHLEIGH WEATHERFOIL LTD","40413600","121.53 ","NEIGHBOURHOOD SERVICES - PARKING SERVICES","TEMPORARY STAFF","A110","TEMPORARY STAFF","NEIGHBOURHOOD SERVICES","FACILITIES & MANAGEMENT SERVICES"
"http://statistics.data.gov.uk/id/local-authority/43UM","WOKING BOROUGH COUNCIL","02/09/2022","21/09/2022","0000481852/001","FAITH RECRUITMENT","01709500","41.37 ","PLANNING SERVICES - DEVELOPMENT CONTROL","TEMPORARY STAFF","A110","TEMPORARY STAFF","PLANNING SERVICES","HUMAN RESOURCES"
"http://statistics.data.gov.uk/id/local-authority/43UM","WOKING BOROUGH COUNCIL","09/09/2022","21/09/2022","0000482051/001","FAITH RECRUITMENT","01709500","41.37 ","PLANNING SERVICES - DEVELOPMENT CONTROL","TEMPORARY STAFF","A110","TEMPORARY STAFF","PLANNING SERVICES","HUMAN RESOURCES"
"http://statistics.data.gov.uk/id/local-authority/43UM","WOKING BOROUGH COUNCIL","21/09/2022","28/09/2022","0000482146/001","MARKS CONSULTING PARTNERS LIMITED","40708400","2,625.00 ","ASSET MANAGEMENT - BUILDING SERVICES","TEMPORARY STAFF","A110","TEMPORARY STAFF","ASSET MANAGEMENT","CONSULTANCY"
"http://statistics.data.gov.uk/id/local-authority/43UM","WOKING BOROUGH COUNCIL","14/09/2022","28/09/2022","0000482148/001","MARKS CONSULTING PARTNERS LIMITED","40708400","2,625.00 ","ASSET MANAGEMENT - BUILDING SERVICES","TEMPORARY STAFF","A110","TEMPORARY STAFF","ASSET MANAGEMENT","CONSULTANCY"
"http://statistics.data.gov.uk/id/local-authority/43UM","WOKING BOROUGH COUNCIL","14/09/2022","28/09/2022","0000482149/001","MARKS CONSULTING PARTNERS LIMITED","40708400","2,625.00 ","ASSET MANAGEMENT - BUILDING SERVICES","TEMPORARY STAFF","A110","TEMPORARY STAFF","ASSET MANAGEMENT","CONSULTANCY"
"http://statistics.data.gov.uk/id/local-authority/43UM","WOKING BOROUGH COUNCIL","07/09/2022","28/09/2022","0000482150/001","MARKS CONSULTING PARTNERS LIMITED","40708400","2,100.00 ","ASSET MANAGEMENT - BUILDING SERVICES","TEMPORARY STAFF","A110","TEMPORARY STAFF","ASSET MANAGEMENT","CONSULTANCY"
"http://statistics.data.gov.uk/id/local-authority/43UM","WOKING BOROUGH COUNCIL","21/09/2022","28/09/2022","0000482211/001","OYSTER PARTNERSHIP","40443300","2,022.00 ","ASSET MANAGEMENT - BUILDING SERVICES","TEMPORARY STAFF","A110","TEMPORARY STAFF","ASSET MANAGEMENT","HUMAN RESOURCES"
"http://statistics.data.gov.uk/id/local-authority/43UM","WOKING BOROUGH COUNCIL","07/09/2022","28/09/2022","0000482151/001","MARKS CONSULTING PARTNERS LIMITED","40708400","1,925.00 ","ASSET MANAGEMENT - BUILDING SERVICES","TEMPORARY STAFF","A110","TEMPORARY STAFF","ASSET MANAGEMENT","CONSULTANCY"
"http://statistics.data.gov.uk/id/local-authority/43UM","WOKING BOROUGH COUNCIL","21/09/2022","28/09/2022","0000482210/001","OYSTER PARTNERSHIP","40443300","1,884.18 ","PLANNING SERVICES - DEVELOPMENT CONTROL","TEMPORARY STAFF","A110","TEMPORARY STAFF","PLANNING SERVICES","HUMAN RESOURCES"
"http://statistics.data.gov.uk/id/local-authority/43UM","WOKING BOROUGH COUNCIL","21/09/2022","28/09/2022","0000482212/001","OYSTER PARTNERSHIP","40443300","1,732.61 ","PLANNING SERVICES - DEVELOPMENT CONTROL","TEMPORARY STAFF","A110","TEMPORARY STAFF","PLANNING SERVICES","HUMAN RESOURCES"
"http://statistics.data.gov.uk/id/local-authority/43UM","WOKING BOROUGH COUNCIL","04/09/2022","28/09/2022","0000481876/001","UNITY RECRUITMENT LTD","40160500","1,732.50 ","NEIGHBOURHOOD SERVICES - PARKING SERVICES","TEMPORARY STAFF","A110","TEMPORARY STAFF","NEIGHBOURHOOD SERVICES","HUMAN RESOURCES"
"http://statistics.data.gov.uk/id/local-authority/43UM","WOKING BOROUGH COUNCIL","21/09/2022","28/09/2022","0000482147/001","MARKS CONSULTING PARTNERS LIMITED","40708400","1,400.00 ","ASSET MANAGEMENT - BUILDING SERVICES","TEMPORARY STAFF","A110","TEMPORARY STAFF","ASSET MANAGEMENT","CONSULTANCY"
"http://statistics.data.gov.uk/id/local-authority/43UM","WOKING BOROUGH COUNCIL","11/09/2022","28/09/2022","0000482125/001","UNITY RECRUITMENT LTD","40160500","1,299.38 ","NEIGHBOURHOOD SERVICES - PARKING SERVICES","TEMPORARY STAFF","A110","TEMPORARY STAFF","NEIGHBOURHOOD SERVICES","HUMAN RESOURCES"
"http://statistics.data.gov.uk/id/local-authority/43UM","WOKING BOROUGH COUNCIL","18/09/2022","28/09/2022","0000482237/001","MORGAN HUNT UK LIMITED","01768500","1,174.75 ","REVENUES AND BENEFITS - COUNCIL TAX","TEMPORARY STAFF","A110","TEMPORARY STAFF","REVENUES AND BENEFITS","HUMAN RESOURCES"
"http://statistics.data.gov.uk/id/local-authority/43UM","WOKING BOROUGH COUNCIL","22/09/2022","28/09/2022","0000482310/001","HAYS","00228700","1,083.40 ","CORPORATE MANAGEMENT GROUP - HUMAN RESOURCES","TEMPORARY STAFF","A110","TEMPORARY STAFF","CORPORATE MANAGEMENT GROUP","HUMAN RESOURCES"
"http://statistics.data.gov.uk/id/local-authority/43UM","WOKING BOROUGH COUNCIL","16/09/2022","28/09/2022","0000482113/001","ABC UMBRELLA LTD","41031700","1,000.00 ","REVENUES AND BENEFITS - COUNCIL TAX","TEMPORARY STAFF","A110","TEMPORARY STAFF","REVENUES AND BENEFITS","HUMAN RESOURCES"
"http://statistics.data.gov.uk/id/local-authority/43UM","WOKING BOROUGH COUNCIL","13/09/2022","28/09/2022","0000482114/001","ABC UMBRELLA LTD","41031700","1,000.00 ","REVENUES AND BENEFITS - COUNCIL TAX","TEMPORARY STAFF","A110","TEMPORARY STAFF","REVENUES AND BENEFITS","HUMAN RESOURCES"
"http://statistics.data.gov.uk/id/local-authority/43UM","WOKING BOROUGH COUNCIL","23/09/2022","28/09/2022","0000482318/001","FLYING UMBRELLA","41022200","1,000.00 ","REVENUES AND BENEFITS - BENEFIT SERVICES","TEMPORARY STAFF","A110","TEMPORARY STAFF","REVENUES AND BENEFITS","HUMAN RESOURCES"
"http://statistics.data.gov.uk/id/local-authority/43UM","WOKING BOROUGH COUNCIL","09/09/2022","28/09/2022","0000482055/001","FAITH RECRUITMENT","01709500","668.09 ","CORPORATE STRATEGY - CUSTOMER SERVICES","TEMPORARY STAFF","A110","TEMPORARY STAFF","CORPORATE STRATEGY","HUMAN RESOURCES"
"http://statistics.data.gov.uk/id/local-authority/43UM","WOKING BOROUGH COUNCIL","16/09/2022","28/09/2022","0000482305/001","FAITH RECRUITMENT","01709500","539.08 ","CORPORATE STRATEGY - CUSTOMER SERVICES","TEMPORARY STAFF","A110","TEMPORARY STAFF","CORPORATE STRATEGY","HUMAN RESOURCES"
"http://statistics.data.gov.uk/id/local-authority/43UM","WOKING BOROUGH COUNCIL","16/09/2022","28/09/2022","0000482295/001","FAITH RECRUITMENT","01709500","517.40 ","PLANNING SERVICES - DEVELOPMENT CONTROL","TEMPORARY STAFF","A110","TEMPORARY STAFF","PLANNING SERVICES","HUMAN RESOURCES"
"http://statistics.data.gov.uk/id/local-authority/43UM","WOKING BOROUGH COUNCIL","07/09/2022","28/09/2022","0000482120/001","VENN GROUP LIMITED","40383900","451.92 ","REVENUES AND BENEFITS - BENEFIT SERVICES","TEMPORARY STAFF","A110","TEMPORARY STAFF","REVENUES AND BENEFITS","HUMAN RESOURCES"
"http://statistics.data.gov.uk/id/local-authority/43UM","WOKING BOROUGH COUNCIL","02/09/2022","28/09/2022","0000481853/001","FAITH RECRUITMENT","01709500","398.03 ","NEIGHBOURHOOD SERVICES - PARKING SERVICES","TEMPORARY STAFF","A110","TEMPORARY STAFF","NEIGHBOURHOOD SERVICES","HUMAN RESOURCES"
"http://statistics.data.gov.uk/id/local-authority/43UM","WOKING BOROUGH COUNCIL","22/09/2022","28/09/2022","0000482311/001","HAYS","00228700","332.24 ","CORPORATE MANAGEMENT GROUP - HUMAN RESOURCES","TEMPORARY STAFF","A110","TEMPORARY STAFF","CORPORATE MANAGEMENT GROUP","HUMAN RESOURCES"
"http://statistics.data.gov.uk/id/local-authority/43UM","WOKING BOROUGH COUNCIL","02/09/2022","28/09/2022","0000481854/001","FAITH RECRUITMENT","01709500","265.35 ","NEIGHBOURHOOD SERVICES - PARKING SERVICES","TEMPORARY STAFF","A110","TEMPORARY STAFF","NEIGHBOURHOOD SERVICES","HUMAN RESOURCES"
"http://statistics.data.gov.uk/id/local-authority/43UM","WOKING BOROUGH COUNCIL","02/09/2022","28/09/2022","0000481855/001","FAITH RECRUITMENT","01709500","41.37 ","NEIGHBOURHOOD SERVICES - PARKING SERVICES","TEMPORARY STAFF","A110","TEMPORARY STAFF","NEIGHBOURHOOD SERVICES","HUMAN RESOURCES"
"http://statistics.data.gov.uk/id/local-authority/43UM","WOKING BOROUGH COUNCIL","16/09/2022","28/09/2022","0000482297/001","FAITH RECRUITMENT","01709500","41.37 ","PLANNING SERVICES - DEVELOPMENT CONTROL","TEMPORARY STAFF","A110","TEMPORARY STAFF","PLANNING SERVICES","HUMAN RESOURCES"
"http://statistics.data.gov.uk/id/local-authority/43UM","WOKING BOROUGH COUNCIL","28/09/2022","05/10/2022","0000482444/001","MARKS CONSULTING PARTNERS LIMITED","40708400","1,575.00 ","ASSET MANAGEMENT - BUILDING SERVICES","TEMPORARY STAFF","A110","TEMPORARY STAFF","ASSET MANAGEMENT","CONSULTANCY"
"http://statistics.data.gov.uk/id/local-authority/43UM","WOKING BOROUGH COUNCIL","21/09/2022","05/10/2022","0000482247/001","VIVID RESOURCING","40463200","1,258.00 ","HOUSING SERVICES - HOUSING NEEDS & ALLOCATIONS","TEMPORARY STAFF","A110","TEMPORARY STAFF","HOUSING SERVICES","HUMAN RESOURCES"
"http://statistics.data.gov.uk/id/local-authority/43UM","WOKING BOROUGH COUNCIL","28/09/2022","05/10/2022","0000482511/001","VIVID RESOURCING","40463200","1,006.40 ","HOUSING SERVICES - HOUSING NEEDS & ALLOCATIONS","TEMPORARY STAFF","A110","TEMPORARY STAFF","HOUSING SERVICES","HUMAN RESOURCES"
"http://statistics.data.gov.uk/id/local-authority/43UM","WOKING BOROUGH COUNCIL","29/09/2022","05/10/2022","0000482490/001","FLYING UMBRELLA","41022200","1,000.00 ","REVENUES AND BENEFITS - BENEFIT SERVICES","TEMPORARY STAFF","A110","TEMPORARY STAFF","REVENUES AND BENEFITS","HUMAN RESOURCES"
"http://statistics.data.gov.uk/id/local-authority/43UM","WOKING BOROUGH COUNCIL","23/09/2022","05/10/2022","0000482340/001","ABC UMBRELLA LTD","41031700","987.50 ","REVENUES AND BENEFITS - COUNCIL TAX","TEMPORARY STAFF","A110","TEMPORARY STAFF","REVENUES AND BENEFITS","HUMAN RESOURCES"
"http://statistics.data.gov.uk/id/local-authority/43UM","WOKING BOROUGH COUNCIL","28/09/2022","05/10/2022","0000482634/001","HAYS","00228700","866.72 ","CORPORATE MANAGEMENT GROUP - HUMAN RESOURCES","TEMPORARY STAFF","A110","TEMPORARY STAFF","CORPORATE MANAGEMENT GROUP","HUMAN RESOURCES"
"http://statistics.data.gov.uk/id/local-authority/43UM","WOKING BOROUGH COUNCIL","09/09/2022","05/10/2022","0000482052/001","FAITH RECRUITMENT","01709500","663.38 ","NEIGHBOURHOOD SERVICES - PARKING SERVICES","TEMPORARY STAFF","A110","TEMPORARY STAFF","NEIGHBOURHOOD SERVICES","HUMAN RESOURCES"
"http://statistics.data.gov.uk/id/local-authority/43UM","WOKING BOROUGH COUNCIL","16/09/2022","05/10/2022","0000482298/001","FAITH RECRUITMENT","01709500","663.38 ","NEIGHBOURHOOD SERVICES - PARKING SERVICES","TEMPORARY STAFF","A110","TEMPORARY STAFF","NEIGHBOURHOOD SERVICES","HUMAN RESOURCES"
"http://statistics.data.gov.uk/id/local-authority/43UM","WOKING BOROUGH COUNCIL","23/09/2022","05/10/2022","0000482481/001","FAITH RECRUITMENT","01709500","539.08 ","CORPORATE STRATEGY - CUSTOMER SERVICES","TEMPORARY STAFF","A110","TEMPORARY STAFF","CORPORATE STRATEGY","HUMAN RESOURCES"
"http://statistics.data.gov.uk/id/local-authority/43UM","WOKING BOROUGH COUNCIL","23/09/2022","05/10/2022","0000482477/001","FAITH RECRUITMENT","01709500","398.00 ","PLANNING SERVICES - DEVELOPMENT CONTROL","TEMPORARY STAFF","A110","TEMPORARY STAFF","PLANNING SERVICES","HUMAN RESOURCES"
"http://statistics.data.gov.uk/id/local-authority/43UM","WOKING BOROUGH COUNCIL","14/09/2022","05/10/2022","0000482342/001","VENN GROUP LIMITED","40383900","387.36 ","REVENUES AND BENEFITS - BENEFIT SERVICES","TEMPORARY STAFF","A110","TEMPORARY STAFF","REVENUES AND BENEFITS","HUMAN RESOURCES"
"http://statistics.data.gov.uk/id/local-authority/43UM","WOKING BOROUGH COUNCIL","21/09/2022","05/10/2022","0000482485/001","VENN GROUP LIMITED","40383900","387.36 ","REVENUES AND BENEFITS - BENEFIT SERVICES","TEMPORARY STAFF","A110","TEMPORARY STAFF","REVENUES AND BENEFITS","HUMAN RESOURCES"
"http://statistics.data.gov.uk/id/local-authority/43UM","WOKING BOROUGH COUNCIL","21/09/2022","05/10/2022","0000482196/001","BROOK STREET (UK) LTD","01049600","160.95 ","HOUSING SERVICES - HOUSING STANDARDS & LICENSING","TEMPORARY STAFF","A110","TEMPORARY STAFF","HOUSING SERVICES","HUMAN RESOURCES"
"http://statistics.data.gov.uk/id/local-authority/43UM","WOKING BOROUGH COUNCIL","28/09/2022","05/10/2022","0000482488/001","BROOK STREET (UK) LTD","01049600","160.95 ","HOUSING SERVICES - HOUSING STANDARDS & LICENSING","TEMPORARY STAFF","A110","TEMPORARY STAFF","HOUSING SERVICES","HUMAN RESOURCES"
"http://statistics.data.gov.uk/id/local-authority/43UM","WOKING BOROUGH COUNCIL","14/09/2022","05/10/2022","0000482001/001","BROOK STREET (UK) LTD","01049600","150.22 ","HOUSING SERVICES - HOUSING STANDARDS & LICENSING","TEMPORARY STAFF","A110","TEMPORARY STAFF","HOUSING SERVICES","HUMAN RESOURCES"
"http://statistics.data.gov.uk/id/local-authority/43UM","WOKING BOROUGH COUNCIL","23/09/2022","05/10/2022","0000482482/001","FAITH RECRUITMENT","01709500","46.88 ","CORPORATE STRATEGY - CUSTOMER SERVICES","TEMPORARY STAFF","A110","TEMPORARY STAFF","CORPORATE STRATEGY","HUMAN RESOURCES"
"http://statistics.data.gov.uk/id/local-authority/43UM","WOKING BOROUGH COUNCIL","09/09/2022","05/10/2022","0000482053/001","FAITH RECRUITMENT","01709500","41.37 ","NEIGHBOURHOOD SERVICES - PARKING SERVICES","TEMPORARY STAFF","A110","TEMPORARY STAFF","NEIGHBOURHOOD SERVICES","HUMAN RESOURCES"
"http://statistics.data.gov.uk/id/local-authority/43UM","WOKING BOROUGH COUNCIL","16/09/2022","05/10/2022","0000482303/001","FAITH RECRUITMENT","01709500","41.37 ","NEIGHBOURHOOD SERVICES - PARKING SERVICES","TEMPORARY STAFF","A110","TEMPORARY STAFF","NEIGHBOURHOOD SERVICES","HUMAN RESOURCES"
"http://statistics.data.gov.uk/id/local-authority/43UM","WOKING BOROUGH COUNCIL","23/09/2022","05/10/2022","0000482476/001","FAITH RECRUITMENT","01709500","41.37 ","PLANNING SERVICES - DEVELOPMENT CONTROL","TEMPORARY STAFF","A110","TEMPORARY STAFF","PLANNING SERVICES","HUMAN RESOURCES"
"http://statistics.data.gov.uk/id/local-authority/43UM","WOKING BOROUGH COUNCIL","05/10/2022","12/10/2022","0000482814/001","MARKS CONSULTING PARTNERS LIMITED","40708400","4,725.00 ","ASSET MANAGEMENT - BUILDING SERVICES","TEMPORARY STAFF","A110","TEMPORARY STAFF","ASSET MANAGEMENT","CONSULTANCY"
"http://statistics.data.gov.uk/id/local-authority/43UM","WOKING BOROUGH COUNCIL","05/10/2022","12/10/2022","0000482813/001","MARKS CONSULTING PARTNERS LIMITED","40708400","2,625.00 ","ASSET MANAGEMENT - BUILDING SERVICES","TEMPORARY STAFF","A110","TEMPORARY STAFF","ASSET MANAGEMENT","CONSULTANCY"
"http://statistics.data.gov.uk/id/local-authority/43UM","WOKING BOROUGH COUNCIL","05/10/2022","12/10/2022","0000482830/001","OYSTER PARTNERSHIP","40443300","2,022.00 ","ASSET MANAGEMENT - BUILDING SERVICES","TEMPORARY STAFF","A110","TEMPORARY STAFF","ASSET MANAGEMENT","HUMAN RESOURCES"
"http://statistics.data.gov.uk/id/local-authority/43UM","WOKING BOROUGH COUNCIL","05/10/2022","12/10/2022","0000482829/001","OYSTER PARTNERSHIP","40443300","1,852.55 ","PLANNING SERVICES - DEVELOPMENT CONTROL","TEMPORARY STAFF","A110","TEMPORARY STAFF","PLANNING SERVICES","HUMAN RESOURCES"
"http://statistics.data.gov.uk/id/local-authority/43UM","WOKING BOROUGH COUNCIL","05/10/2022","12/10/2022","0000482796/001","OYSTER PARTNERSHIP","40443300","1,707.38 ","PLANNING SERVICES - DEVELOPMENT CONTROL","TEMPORARY STAFF","A110","TEMPORARY STAFF","PLANNING SERVICES","HUMAN RESOURCES"
"http://statistics.data.gov.uk/id/local-authority/43UM","WOKING BOROUGH COUNCIL","05/10/2022","12/10/2022","0000482833/001","HAYS","00228700","1,083.40 ","CORPORATE MANAGEMENT GROUP - HUMAN RESOURCES","TEMPORARY STAFF","A110","TEMPORARY STAFF","CORPORATE MANAGEMENT GROUP","HUMAN RESOURCES"
"http://statistics.data.gov.uk/id/local-authority/43UM","WOKING BOROUGH COUNCIL","25/09/2022","12/10/2022","0000482541/001","MORGAN HUNT UK LIMITED","01768500","1,016.00 ","REVENUES AND BENEFITS - COUNCIL TAX","TEMPORARY STAFF","A110","TEMPORARY STAFF","REVENUES AND BENEFITS","HUMAN RESOURCES"
"http://statistics.data.gov.uk/id/local-authority/43UM","WOKING BOROUGH COUNCIL","30/09/2022","12/10/2022","0000482817/001","FAITH RECRUITMENT","01709500","926.00 ","CORPORATE MANAGEMENT GROUP - HUMAN RESOURCES","TEMPORARY STAFF","A110","TEMPORARY STAFF","CORPORATE MANAGEMENT GROUP","HUMAN RESOURCES"
"http://statistics.data.gov.uk/id/local-authority/43UM","WOKING BOROUGH COUNCIL","30/09/2022","12/10/2022","0000482820/001","FAITH RECRUITMENT","01709500","908.64 ","CORPORATE MANAGEMENT GROUP - HUMAN RESOURCES","TEMPORARY STAFF","A110","TEMPORARY STAFF","CORPORATE MANAGEMENT GROUP","HUMAN RESOURCES"
"http://statistics.data.gov.uk/id/local-authority/43UM","WOKING BOROUGH COUNCIL","03/10/2022","12/10/2022","0000482680/001","ABC UMBRELLA LTD","41031700","887.50 ","REVENUES AND BENEFITS - BENEFIT SERVICES","TEMPORARY STAFF","A110","TEMPORARY STAFF","REVENUES AND BENEFITS","HUMAN RESOURCES"
"http://statistics.data.gov.uk/id/local-authority/43UM","WOKING BOROUGH COUNCIL","30/09/2022","12/10/2022","0000482819/001","FAITH RECRUITMENT","01709500","839.19 ","CORPORATE MANAGEMENT GROUP - HUMAN RESOURCES","TEMPORARY STAFF","A110","TEMPORARY STAFF","CORPORATE MANAGEMENT GROUP","HUMAN RESOURCES"
"http://statistics.data.gov.uk/id/local-authority/43UM","WOKING BOROUGH COUNCIL","30/09/2022","12/10/2022","0000482825/001","FAITH RECRUITMENT","01709500","501.48 ","PLANNING SERVICES - DEVELOPMENT CONTROL","TEMPORARY STAFF","A110","TEMPORARY STAFF","PLANNING SERVICES","HUMAN RESOURCES"
"http://statistics.data.gov.uk/id/local-authority/43UM","WOKING BOROUGH COUNCIL","30/09/2022","12/10/2022","0000482828/001","FAITH RECRUITMENT","01709500","41.37 ","PLANNING SERVICES - DEVELOPMENT CONTROL","TEMPORARY STAFF","A110","TEMPORARY STAFF","PLANNING SERVICES","HUMAN RESOURCES"
"http://statistics.data.gov.uk/id/local-authority/43UM","WOKING BOROUGH COUNCIL","25/09/2022","19/10/2022","0000482724/001","UNITY RECRUITMENT LTD","40160500","2,387.01 ","NEIGHBOURHOOD SERVICES - PARKING SERVICES","TEMPORARY STAFF","A110","TEMPORARY STAFF","NEIGHBOURHOOD SERVICES","HUMAN RESOURCES"
"http://statistics.data.gov.uk/id/local-authority/43UM","WOKING BOROUGH COUNCIL","18/09/2022","19/10/2022","0000482328/001","UNITY RECRUITMENT LTD","40160500","2,146.38 ","NEIGHBOURHOOD SERVICES - PARKING SERVICES","TEMPORARY STAFF","A110","TEMPORARY STAFF","NEIGHBOURHOOD SERVICES","HUMAN RESOURCES"
"http://statistics.data.gov.uk/id/local-authority/43UM","WOKING BOROUGH COUNCIL","12/10/2022","19/10/2022","0000483070/001","OYSTER PARTNERSHIP","40443300","1,863.09 ","PLANNING SERVICES - DEVELOPMENT CONTROL","TEMPORARY STAFF","A110","TEMPORARY STAFF","PLANNING SERVICES","HUMAN RESOURCES"
"http://statistics.data.gov.uk/id/local-authority/43UM","WOKING BOROUGH COUNCIL","12/10/2022","19/10/2022","0000483020/001","OYSTER PARTNERSHIP","40443300","1,721.73 ","PLANNING SERVICES - DEVELOPMENT CONTROL","TEMPORARY STAFF","A110","TEMPORARY STAFF","PLANNING SERVICES","HUMAN RESOURCES"
"http://statistics.data.gov.uk/id/local-authority/43UM","WOKING BOROUGH COUNCIL","02/10/2022","19/10/2022","0000482989/001","UNITY RECRUITMENT LTD","40160500","1,578.50 ","NEIGHBOURHOOD SERVICES - PARKING SERVICES","TEMPORARY STAFF","A110","TEMPORARY STAFF","NEIGHBOURHOOD SERVICES","HUMAN RESOURCES"
"http://statistics.data.gov.uk/id/local-authority/43UM","WOKING BOROUGH COUNCIL","12/10/2022","19/10/2022","0000483092/001","HAYS","00228700","1,083.40 ","CORPORATE MANAGEMENT GROUP - HUMAN RESOURCES","TEMPORARY STAFF","A110","TEMPORARY STAFF","CORPORATE MANAGEMENT GROUP","HUMAN RESOURCES"
"http://statistics.data.gov.uk/id/local-authority/43UM","WOKING BOROUGH COUNCIL","02/10/2022","19/10/2022","0000482897/001","MORGAN HUNT UK LIMITED","01768500","1,079.50 ","REVENUES AND BENEFITS - COUNCIL TAX","TEMPORARY STAFF","A110","TEMPORARY STAFF","REVENUES AND BENEFITS","HUMAN RESOURCES"
"http://statistics.data.gov.uk/id/local-authority/43UM","WOKING BOROUGH COUNCIL","10/10/2022","19/10/2022","0000482908/001","ABC UMBRELLA LTD","41031700","1,000.00 ","REVENUES AND BENEFITS - COUNCIL TAX","TEMPORARY STAFF","A110","TEMPORARY STAFF","REVENUES AND BENEFITS","HUMAN RESOURCES"
"http://statistics.data.gov.uk/id/local-authority/43UM","WOKING BOROUGH COUNCIL","07/10/2022","19/10/2022","0000482943/001","FLYING UMBRELLA","41022200","1,000.00 ","REVENUES AND BENEFITS - BENEFIT SERVICES","TEMPORARY STAFF","A110","TEMPORARY STAFF","REVENUES AND BENEFITS","HUMAN RESOURCES"
"http://statistics.data.gov.uk/id/local-authority/43UM","WOKING BOROUGH COUNCIL","14/10/2022","19/10/2022","0000483124/001","FLYING UMBRELLA","41022200","800.00 ","REVENUES AND BENEFITS - BENEFIT SERVICES","TEMPORARY STAFF","A110","TEMPORARY STAFF","REVENUES AND BENEFITS","HUMAN RESOURCES"
"http://statistics.data.gov.uk/id/local-authority/43UM","WOKING BOROUGH COUNCIL","30/09/2022","19/10/2022","0000482827/001","FAITH RECRUITMENT","01709500","663.38 ","NEIGHBOURHOOD SERVICES - PARKING SERVICES","TEMPORARY STAFF","A110","TEMPORARY STAFF","NEIGHBOURHOOD SERVICES","HUMAN RESOURCES"
"http://statistics.data.gov.uk/id/local-authority/43UM","WOKING BOROUGH COUNCIL","07/10/2022","19/10/2022","0000483024/001","FAITH RECRUITMENT","01709500","583.77 ","NEIGHBOURHOOD SERVICES - PARKING SERVICES","TEMPORARY STAFF","A110","TEMPORARY STAFF","NEIGHBOURHOOD SERVICES","HUMAN RESOURCES"
"http://statistics.data.gov.uk/id/local-authority/43UM","WOKING BOROUGH COUNCIL","23/09/2022","19/10/2022","0000482474/001","FAITH RECRUITMENT","01709500","530.70 ","NEIGHBOURHOOD SERVICES - PARKING SERVICES","TEMPORARY STAFF","A110","TEMPORARY STAFF","NEIGHBOURHOOD SERVICES","HUMAN RESOURCES"
"http://statistics.data.gov.uk/id/local-authority/43UM","WOKING BOROUGH COUNCIL","07/10/2022","19/10/2022","0000483066/001","FAITH RECRUITMENT","01709500","509.44 ","PLANNING SERVICES - DEVELOPMENT CONTROL","TEMPORARY STAFF","A110","TEMPORARY STAFF","PLANNING SERVICES","HUMAN RESOURCES"
"http://statistics.data.gov.uk/id/local-authority/43UM","WOKING BOROUGH COUNCIL","23/09/2022","19/10/2022","0000482475/001","FAITH RECRUITMENT","01709500","265.35 ","NEIGHBOURHOOD SERVICES - PARKING SERVICES","TEMPORARY STAFF","A110","TEMPORARY STAFF","NEIGHBOURHOOD SERVICES","HUMAN RESOURCES"
"http://statistics.data.gov.uk/id/local-authority/43UM","WOKING BOROUGH COUNCIL","05/10/2022","19/10/2022","0000482886/001","BROOK STREET (UK) LTD","01049600","160.95 ","HOUSING SERVICES - HOUSING STANDARDS & LICENSING","TEMPORARY STAFF","A110","TEMPORARY STAFF","HOUSING SERVICES","HUMAN RESOURCES"
"http://statistics.data.gov.uk/id/local-authority/43UM","WOKING BOROUGH COUNCIL","12/10/2022","19/10/2022","0000483089/001","BROOK STREET (UK) LTD","01049600","160.95 ","HOUSING SERVICES - HOUSING STANDARDS & LICENSING","TEMPORARY STAFF","A110","TEMPORARY STAFF","HOUSING SERVICES","HUMAN RESOURCES"
"http://statistics.data.gov.uk/id/local-authority/43UM","WOKING BOROUGH COUNCIL","23/09/2022","19/10/2022","0000482483/001","FAITH RECRUITMENT","01709500","41.37 ","NEIGHBOURHOOD SERVICES - PARKING SERVICES","TEMPORARY STAFF","A110","TEMPORARY STAFF","NEIGHBOURHOOD SERVICES","HUMAN RESOURCES"
"http://statistics.data.gov.uk/id/local-authority/43UM","WOKING BOROUGH COUNCIL","30/09/2022","19/10/2022","0000482824/001","FAITH RECRUITMENT","01709500","41.37 ","NEIGHBOURHOOD SERVICES - PARKING SERVICES","TEMPORARY STAFF","A110","TEMPORARY STAFF","NEIGHBOURHOOD SERVICES","HUMAN RESOURCES"
"http://statistics.data.gov.uk/id/local-authority/43UM","WOKING BOROUGH COUNCIL","07/10/2022","19/10/2022","0000483023/001","FAITH RECRUITMENT","01709500","41.37 ","NEIGHBOURHOOD SERVICES - PARKING SERVICES","TEMPORARY STAFF","A110","TEMPORARY STAFF","NEIGHBOURHOOD SERVICES","HUMAN RESOURCES"
"http://statistics.data.gov.uk/id/local-authority/43UM","WOKING BOROUGH COUNCIL","07/10/2022","19/10/2022","0000483062/001","FAITH RECRUITMENT","01709500","41.37 ","PLANNING SERVICES - DEVELOPMENT CONTROL","TEMPORARY STAFF","A110","TEMPORARY STAFF","PLANNING SERVICES","HUMAN RESOURCES"
"http://statistics.data.gov.uk/id/local-authority/43UM","WOKING BOROUGH COUNCIL","30/09/2022","19/10/2022","0000482826/001","FAITH RECRUITMENT","01709500","39.81 ","NEIGHBOURHOOD SERVICES - PARKING SERVICES","TEMPORARY STAFF","A110","TEMPORARY STAFF","NEIGHBOURHOOD SERVICES","HUMAN RESOURCES"
"http://statistics.data.gov.uk/id/local-authority/43UM","WOKING BOROUGH COUNCIL","12/10/2022","26/10/2022","0000483068/001","VIVID RESOURCING","40463200","1,258.00 ","HOUSING SERVICES - HOUSING NEEDS & ALLOCATIONS","TEMPORARY STAFF","A110","TEMPORARY STAFF","HOUSING SERVICES","HUMAN RESOURCES"
"http://statistics.data.gov.uk/id/local-authority/43UM","WOKING BOROUGH COUNCIL","19/10/2022","26/10/2022","0000483252/001","VIVID RESOURCING","40463200","1,258.00 ","HOUSING SERVICES - HOUSING NEEDS & ALLOCATIONS","TEMPORARY STAFF","A110","TEMPORARY STAFF","HOUSING SERVICES","HUMAN RESOURCES"
"http://statistics.data.gov.uk/id/local-authority/43UM","WOKING BOROUGH COUNCIL","16/10/2022","26/10/2022","0000483310/001","MORGAN HUNT UK LIMITED","01768500","1,143.00 ","REVENUES AND BENEFITS - COUNCIL TAX","TEMPORARY STAFF","A110","TEMPORARY STAFF","REVENUES AND BENEFITS","HUMAN RESOURCES"
"http://statistics.data.gov.uk/id/local-authority/43UM","WOKING BOROUGH COUNCIL","09/10/2022","26/10/2022","0000483083/001","MORGAN HUNT UK LIMITED","01768500","1,111.25 ","REVENUES AND BENEFITS - COUNCIL TAX","TEMPORARY STAFF","A110","TEMPORARY STAFF","REVENUES AND BENEFITS","HUMAN RESOURCES"
"http://statistics.data.gov.uk/id/local-authority/43UM","WOKING BOROUGH COUNCIL","19/10/2022","26/10/2022","0000483306/001","HAYS","00228700","1,083.40 ","CORPORATE MANAGEMENT GROUP - HUMAN RESOURCES","TEMPORARY STAFF","A110","TEMPORARY STAFF","CORPORATE MANAGEMENT GROUP","HUMAN RESOURCES"
"http://statistics.data.gov.uk/id/local-authority/43UM","WOKING BOROUGH COUNCIL","21/10/2022","26/10/2022","0000483324/001","FLYING UMBRELLA","41022200","1,000.00 ","REVENUES AND BENEFITS - BENEFIT SERVICES","TEMPORARY STAFF","A110","TEMPORARY STAFF","REVENUES AND BENEFITS","HUMAN RESOURCES"
"http://statistics.data.gov.uk/id/local-authority/43UM","WOKING BOROUGH COUNCIL","17/10/2022","26/10/2022","0000483185/001","ABC UMBRELLA LTD","41031700","987.50 ","REVENUES AND BENEFITS - COUNCIL TAX","TEMPORARY STAFF","A110","TEMPORARY STAFF","REVENUES AND BENEFITS","HUMAN RESOURCES"
"http://statistics.data.gov.uk/id/local-authority/43UM","WOKING BOROUGH COUNCIL","07/10/2022","26/10/2022","0000483064/001","FAITH RECRUITMENT","01709500","677.30 ","CORPORATE STRATEGY - CUSTOMER SERVICES","TEMPORARY STAFF","A110","TEMPORARY STAFF","CORPORATE STRATEGY","HUMAN RESOURCES"
"http://statistics.data.gov.uk/id/local-authority/43UM","WOKING BOROUGH COUNCIL","19/08/2022","26/10/2022","0000481463/001","FAITH RECRUITMENT","01709500","668.09 ","CORPORATE STRATEGY - CUSTOMER SERVICES","TEMPORARY STAFF","A110","TEMPORARY STAFF","CORPORATE STRATEGY","HUMAN RESOURCES"
"http://statistics.data.gov.uk/id/local-authority/43UM","WOKING BOROUGH COUNCIL","30/09/2022","26/10/2022","0000482823/001","FAITH RECRUITMENT","01709500","668.09 ","CORPORATE STRATEGY - CUSTOMER SERVICES","TEMPORARY STAFF","A110","TEMPORARY STAFF","CORPORATE STRATEGY","HUMAN RESOURCES"
"http://statistics.data.gov.uk/id/local-authority/43UM","WOKING BOROUGH COUNCIL","14/10/2022","26/10/2022","0000483263/001","FAITH RECRUITMENT","01709500","668.09 ","CORPORATE STRATEGY - CUSTOMER SERVICES","TEMPORARY STAFF","A110","TEMPORARY STAFF","CORPORATE STRATEGY","HUMAN RESOURCES"
"http://statistics.data.gov.uk/id/local-authority/43UM","WOKING BOROUGH COUNCIL","30/09/2022","26/10/2022","0000482818/001","FAITH RECRUITMENT","01709500","624.96 ","CORPORATE STRATEGY - CUSTOMER SERVICES","TEMPORARY STAFF","A110","TEMPORARY STAFF","CORPORATE STRATEGY","HUMAN RESOURCES"
"http://statistics.data.gov.uk/id/local-authority/43UM","WOKING BOROUGH COUNCIL","14/10/2022","26/10/2022","0000483276/001","FAITH RECRUITMENT","01709500","624.96 ","CORPORATE STRATEGY - CUSTOMER SERVICES","TEMPORARY STAFF","A110","TEMPORARY STAFF","CORPORATE STRATEGY","HUMAN RESOURCES"
"http://statistics.data.gov.uk/id/local-authority/43UM","WOKING BOROUGH COUNCIL","09/09/2022","26/10/2022","0000482054/001","FAITH RECRUITMENT","01709500","539.08 ","CORPORATE STRATEGY - CUSTOMER SERVICES","TEMPORARY STAFF","A110","TEMPORARY STAFF","CORPORATE STRATEGY","HUMAN RESOURCES"
"http://statistics.data.gov.uk/id/local-authority/43UM","WOKING BOROUGH COUNCIL","14/10/2022","26/10/2022","0000483259/001","FAITH RECRUITMENT","01709500","517.40 ","PLANNING SERVICES - DEVELOPMENT CONTROL","TEMPORARY STAFF","A110","TEMPORARY STAFF","PLANNING SERVICES","HUMAN RESOURCES"
"http://statistics.data.gov.uk/id/local-authority/43UM","WOKING BOROUGH COUNCIL","19/10/2022","26/10/2022","0000483307/001","BROOK STREET (UK) LTD","01049600","160.95 ","HOUSING SERVICES - HOUSING STANDARDS & LICENSING","TEMPORARY STAFF","A110","TEMPORARY STAFF","HOUSING SERVICES","HUMAN RESOURCES"
"http://statistics.data.gov.uk/id/local-authority/43UM","WOKING BOROUGH COUNCIL","19/08/2022","26/10/2022","0000481464/001","FAITH RECRUITMENT","01709500","46.88 ","CORPORATE STRATEGY - CUSTOMER SERVICES","TEMPORARY STAFF","A110","TEMPORARY STAFF","CORPORATE STRATEGY","HUMAN RESOURCES"
"http://statistics.data.gov.uk/id/local-authority/43UM","WOKING BOROUGH COUNCIL","19/08/2022","26/10/2022","0000481465/001","FAITH RECRUITMENT","01709500","46.88 ","CORPORATE STRATEGY - CUSTOMER SERVICES","TEMPORARY STAFF","A110","TEMPORARY STAFF","CORPORATE STRATEGY","HUMAN RESOURCES"
"http://statistics.data.gov.uk/id/local-authority/43UM","WOKING BOROUGH COUNCIL","09/09/2022","26/10/2022","0000482056/001","FAITH RECRUITMENT","01709500","46.88 ","CORPORATE STRATEGY - CUSTOMER SERVICES","TEMPORARY STAFF","A110","TEMPORARY STAFF","CORPORATE STRATEGY","HUMAN RESOURCES"
"http://statistics.data.gov.uk/id/local-authority/43UM","WOKING BOROUGH COUNCIL","16/09/2022","26/10/2022","0000482307/001","FAITH RECRUITMENT","01709500","46.88 ","CORPORATE STRATEGY - CUSTOMER SERVICES","TEMPORARY STAFF","A110","TEMPORARY STAFF","CORPORATE STRATEGY","HUMAN RESOURCES"
"http://statistics.data.gov.uk/id/local-authority/43UM","WOKING BOROUGH COUNCIL","30/09/2022","26/10/2022","0000482821/001","FAITH RECRUITMENT","01709500","46.88 ","CORPORATE STRATEGY - CUSTOMER SERVICES","TEMPORARY STAFF","A110","TEMPORARY STAFF","CORPORATE STRATEGY","HUMAN RESOURCES"
"http://statistics.data.gov.uk/id/local-authority/43UM","WOKING BOROUGH COUNCIL","07/10/2022","26/10/2022","0000483065/001","FAITH RECRUITMENT","01709500","46.88 ","CORPORATE STRATEGY - CUSTOMER SERVICES","TEMPORARY STAFF","A110","TEMPORARY STAFF","CORPORATE STRATEGY","HUMAN RESOURCES"
"http://statistics.data.gov.uk/id/local-authority/43UM","WOKING BOROUGH COUNCIL","14/10/2022","26/10/2022","0000483272/001","FAITH RECRUITMENT","01709500","46.88 ","CORPORATE STRATEGY - CUSTOMER SERVICES","TEMPORARY STAFF","A110","TEMPORARY STAFF","CORPORATE STRATEGY","HUMAN RESOURCES"
"http://statistics.data.gov.uk/id/local-authority/43UM","WOKING BOROUGH COUNCIL","14/10/2022","26/10/2022","0000483260/001","FAITH RECRUITMENT","01709500","41.37 ","PLANNING SERVICES - DEVELOPMENT CONTROL","TEMPORARY STAFF","A110","TEMPORARY STAFF","PLANNING SERVICES","HUMAN RESOURCES"
"http://statistics.data.gov.uk/id/local-authority/43UM","WOKING BOROUGH COUNCIL","12/10/2022","02/11/2022","0000483098/001","MARKS CONSULTING PARTNERS LIMITED","40708400","2,975.00 ","ASSET MANAGEMENT - BUILDING SERVICES","TEMPORARY STAFF","A110","TEMPORARY STAFF","ASSET MANAGEMENT","CONSULTANCY"
"http://statistics.data.gov.uk/id/local-authority/43UM","WOKING BOROUGH COUNCIL","26/10/2022","02/11/2022","0000483472/001","MARKS CONSULTING PARTNERS LIMITED","40708400","2,800.00 ","ASSET MANAGEMENT - BUILDING SERVICES","TEMPORARY STAFF","A110","TEMPORARY STAFF","ASSET MANAGEMENT","CONSULTANCY"
"http://statistics.data.gov.uk/id/local-authority/43UM","WOKING BOROUGH COUNCIL","19/10/2022","02/11/2022","0000483313/001","MARKS CONSULTING PARTNERS LIMITED","40708400","2,625.00 ","ASSET MANAGEMENT - BUILDING SERVICES","TEMPORARY STAFF","A110","TEMPORARY STAFF","ASSET MANAGEMENT","CONSULTANCY"
"http://statistics.data.gov.uk/id/local-authority/43UM","WOKING BOROUGH COUNCIL","19/10/2022","02/11/2022","0000483314/001","MARKS CONSULTING PARTNERS LIMITED","40708400","2,625.00 ","ASSET MANAGEMENT - BUILDING SERVICES","TEMPORARY STAFF","A110","TEMPORARY STAFF","ASSET MANAGEMENT","CONSULTANCY"
"http://statistics.data.gov.uk/id/local-authority/43UM","WOKING BOROUGH COUNCIL","12/10/2022","02/11/2022","0000483097/001","MARKS CONSULTING PARTNERS LIMITED","40708400","2,100.00 ","ASSET MANAGEMENT - BUILDING SERVICES","TEMPORARY STAFF","A110","TEMPORARY STAFF","ASSET MANAGEMENT","CONSULTANCY"
"http://statistics.data.gov.uk/id/local-authority/43UM","WOKING BOROUGH COUNCIL","26/10/2022","02/11/2022","0000483471/001","MARKS CONSULTING PARTNERS LIMITED","40708400","2,100.00 ","ASSET MANAGEMENT - BUILDING SERVICES","TEMPORARY STAFF","A110","TEMPORARY STAFF","ASSET MANAGEMENT","CONSULTANCY"
"http://statistics.data.gov.uk/id/local-authority/43UM","WOKING BOROUGH COUNCIL","12/10/2022","02/11/2022","0000483069/001","OYSTER PARTNERSHIP","40443300","2,022.00 ","ASSET MANAGEMENT - BUILDING SERVICES","TEMPORARY STAFF","A110","TEMPORARY STAFF","ASSET MANAGEMENT","HUMAN RESOURCES"
"http://statistics.data.gov.uk/id/local-authority/43UM","WOKING BOROUGH COUNCIL","19/10/2022","02/11/2022","0000483286/001","OYSTER PARTNERSHIP","40443300","2,022.00 ","ASSET MANAGEMENT - BUILDING SERVICES","TEMPORARY STAFF","A110","TEMPORARY STAFF","ASSET MANAGEMENT","HUMAN RESOURCES"
"http://statistics.data.gov.uk/id/local-authority/43UM","WOKING BOROUGH COUNCIL","28/09/2022","02/11/2022","0000483450/001","OYSTER PARTNERSHIP","40443300","2,022.00 ","ASSET MANAGEMENT - BUILDING SERVICES","TEMPORARY STAFF","A110","TEMPORARY STAFF","ASSET MANAGEMENT","HUMAN RESOURCES"
"http://statistics.data.gov.uk/id/local-authority/43UM","WOKING BOROUGH COUNCIL","26/10/2022","02/11/2022","0000483478/001","OYSTER PARTNERSHIP","40443300","2,022.00 ","ASSET MANAGEMENT - BUILDING SERVICES","TEMPORARY STAFF","A110","TEMPORARY STAFF","ASSET MANAGEMENT","HUMAN RESOURCES"
"http://statistics.data.gov.uk/id/local-authority/43UM","WOKING BOROUGH COUNCIL","19/10/2022","02/11/2022","0000483287/001","OYSTER PARTNERSHIP","40443300","1,869.84 ","PLANNING SERVICES - DEVELOPMENT CONTROL","TEMPORARY STAFF","A110","TEMPORARY STAFF","PLANNING SERVICES","HUMAN RESOURCES"
"http://statistics.data.gov.uk/id/local-authority/43UM","WOKING BOROUGH COUNCIL","26/10/2022","02/11/2022","0000483473/001","OYSTER PARTNERSHIP","40443300","1,845.38 ","PLANNING SERVICES - DEVELOPMENT CONTROL","TEMPORARY STAFF","A110","TEMPORARY STAFF","PLANNING SERVICES","HUMAN RESOURCES"
"http://statistics.data.gov.uk/id/local-authority/43UM","WOKING BOROUGH COUNCIL","26/10/2022","02/11/2022","0000483496/001","OYSTER PARTNERSHIP","40443300","1,729.13 ","PLANNING SERVICES - DEVELOPMENT CONTROL","TEMPORARY STAFF","A110","TEMPORARY STAFF","PLANNING SERVICES","HUMAN RESOURCES"
"http://statistics.data.gov.uk/id/local-authority/43UM","WOKING BOROUGH COUNCIL","19/10/2022","02/11/2022","0000483284/001","OYSTER PARTNERSHIP","40443300","1,703.90 ","PLANNING SERVICES - DEVELOPMENT CONTROL","TEMPORARY STAFF","A110","TEMPORARY STAFF","PLANNING SERVICES","HUMAN RESOURCES"
"http://statistics.data.gov.uk/id/local-authority/43UM","WOKING BOROUGH COUNCIL","28/09/2022","02/11/2022","0000483451/001","OYSTER PARTNERSHIP","40443300","1,576.88 ","PLANNING SERVICES - DEVELOPMENT CONTROL","TEMPORARY STAFF","A110","TEMPORARY STAFF","PLANNING SERVICES","HUMAN RESOURCES"
"http://statistics.data.gov.uk/id/local-authority/43UM","WOKING BOROUGH COUNCIL","28/09/2022","02/11/2022","0000483452/001","OYSTER PARTNERSHIP","40443300","1,553.49 ","PLANNING SERVICES - DEVELOPMENT CONTROL","TEMPORARY STAFF","A110","TEMPORARY STAFF","PLANNING SERVICES","HUMAN RESOURCES"
"http://statistics.data.gov.uk/id/local-authority/43UM","WOKING BOROUGH COUNCIL","09/10/2022","02/11/2022","0000483161/001","UNITY RECRUITMENT LTD","40160500","1,488.03 ","NEIGHBOURHOOD SERVICES - PARKING SERVICES","TEMPORARY STAFF","A110","TEMPORARY STAFF","NEIGHBOURHOOD SERVICES","HUMAN RESOURCES"
"http://statistics.data.gov.uk/id/local-authority/43UM","WOKING BOROUGH COUNCIL","16/10/2022","02/11/2022","0000483322/001","UNITY RECRUITMENT LTD","40160500","1,299.38 ","NEIGHBOURHOOD SERVICES - PARKING SERVICES","TEMPORARY STAFF","A110","TEMPORARY STAFF","NEIGHBOURHOOD SERVICES","HUMAN RESOURCES"
"http://statistics.data.gov.uk/id/local-authority/43UM","WOKING BOROUGH COUNCIL","05/10/2022","02/11/2022","0000482893/001","VIVID RESOURCING","40463200","1,258.00 ","HOUSING SERVICES - HOUSING NEEDS & ALLOCATIONS","TEMPORARY STAFF","A110","TEMPORARY STAFF","HOUSING SERVICES","HUMAN RESOURCES"
"http://statistics.data.gov.uk/id/local-authority/43UM","WOKING BOROUGH COUNCIL","26/10/2022","02/11/2022","0000483466/001","VIVID RESOURCING","40463200","1,258.00 ","HOUSING SERVICES - HOUSING NEEDS & ALLOCATIONS","TEMPORARY STAFF","A110","TEMPORARY STAFF","HOUSING SERVICES","HUMAN RESOURCES"
"http://statistics.data.gov.uk/id/local-authority/43UM","WOKING BOROUGH COUNCIL","23/10/2022","02/11/2022","0000483476/001","MORGAN HUNT UK LIMITED","01768500","1,206.50 ","REVENUES AND BENEFITS - COUNCIL TAX","TEMPORARY STAFF","A110","TEMPORARY STAFF","REVENUES AND BENEFITS","HUMAN RESOURCES"
"http://statistics.data.gov.uk/id/local-authority/43UM","WOKING BOROUGH COUNCIL","26/10/2022","02/11/2022","0000483497/001","HAYS","00228700","1,083.40 ","CORPORATE MANAGEMENT GROUP - HUMAN RESOURCES","TEMPORARY STAFF","A110","TEMPORARY STAFF","CORPORATE MANAGEMENT GROUP","HUMAN RESOURCES"
"http://statistics.data.gov.uk/id/local-authority/43UM","WOKING BOROUGH COUNCIL","28/10/2022","02/11/2022","0000483541/001","FLYING UMBRELLA","41022200","1,000.00 ","REVENUES AND BENEFITS - BENEFIT SERVICES","TEMPORARY STAFF","A110","TEMPORARY STAFF","REVENUES AND BENEFITS","HUMAN RESOURCES"
"http://statistics.data.gov.uk/id/local-authority/43UM","WOKING BOROUGH COUNCIL","31/10/2022","02/11/2022","0000483660/001","ABC UMBRELLA LTD","41031700","962.50 ","REVENUES AND BENEFITS - COUNCIL TAX","TEMPORARY STAFF","A110","TEMPORARY STAFF","REVENUES AND BENEFITS","HUMAN RESOURCES"
"http://statistics.data.gov.uk/id/local-authority/43UM","WOKING BOROUGH COUNCIL","24/10/2022","02/11/2022","0000483362/001","ABC UMBRELLA LTD","41031700","950.00 ","REVENUES AND BENEFITS - COUNCIL TAX","TEMPORARY STAFF","A110","TEMPORARY STAFF","REVENUES AND BENEFITS","HUMAN RESOURCES"
"http://statistics.data.gov.uk/id/local-authority/43UM","WOKING BOROUGH COUNCIL","21/10/2022","02/11/2022","0000483649/001","FAITH RECRUITMENT","01709500","920.21 ","CORPORATE MANAGEMENT GROUP - HUMAN RESOURCES","TEMPORARY STAFF","A110","TEMPORARY STAFF","CORPORATE MANAGEMENT GROUP","HUMAN RESOURCES"
"http://statistics.data.gov.uk/id/local-authority/43UM","WOKING BOROUGH COUNCIL","21/10/2022","02/11/2022","0000483650/001","FAITH RECRUITMENT","01709500","856.55 ","CORPORATE MANAGEMENT GROUP - HUMAN RESOURCES","TEMPORARY STAFF","A110","TEMPORARY STAFF","CORPORATE MANAGEMENT GROUP","HUMAN RESOURCES"
"http://statistics.data.gov.uk/id/local-authority/43UM","WOKING BOROUGH COUNCIL","21/10/2022","02/11/2022","0000483651/001","FAITH RECRUITMENT","01709500","642.41 ","CORPORATE MANAGEMENT GROUP - HUMAN RESOURCES","TEMPORARY STAFF","A110","TEMPORARY STAFF","CORPORATE MANAGEMENT GROUP","HUMAN RESOURCES"
"http://statistics.data.gov.uk/id/local-authority/43UM","WOKING BOROUGH COUNCIL","14/10/2022","02/11/2022","0000483262/001","FAITH RECRUITMENT","01709500","601.46 ","NEIGHBOURHOOD SERVICES - PARKING SERVICES","TEMPORARY STAFF","A110","TEMPORARY STAFF","NEIGHBOURHOOD SERVICES","HUMAN RESOURCES"
"http://statistics.data.gov.uk/id/local-authority/43UM","WOKING BOROUGH COUNCIL","21/10/2022","02/11/2022","0000483640/001","FAITH RECRUITMENT","01709500","517.40 ","PLANNING SERVICES - DEVELOPMENT CONTROL","TEMPORARY STAFF","A110","TEMPORARY STAFF","PLANNING SERVICES","HUMAN RESOURCES"
"http://statistics.data.gov.uk/id/local-authority/43UM","WOKING BOROUGH COUNCIL","12/10/2022","02/11/2022","0000483364/001","VENN GROUP LIMITED","40383900","387.36 ","REVENUES AND BENEFITS - BENEFIT SERVICES","TEMPORARY STAFF","A110","TEMPORARY STAFF","REVENUES AND BENEFITS","HUMAN RESOURCES"
"http://statistics.data.gov.uk/id/local-authority/43UM","WOKING BOROUGH COUNCIL","19/10/2022","02/11/2022","0000483481/001","VENN GROUP LIMITED","40383900","387.36 ","REVENUES AND BENEFITS - BENEFIT SERVICES","TEMPORARY STAFF","A110","TEMPORARY STAFF","REVENUES AND BENEFITS","HUMAN RESOURCES"
"http://statistics.data.gov.uk/id/local-authority/43UM","WOKING BOROUGH COUNCIL","04/10/2022","02/11/2022","0000483491/103","SKANSKA RASHLEIGH WEATHERFOIL LTD","40413600","303.70 ","NEIGHBOURHOOD SERVICES - PARKING SERVICES","TEMPORARY STAFF","A110","TEMPORARY STAFF","NEIGHBOURHOOD SERVICES","FACILITIES & MANAGEMENT SERVICES"
"http://statistics.data.gov.uk/id/local-authority/43UM","WOKING BOROUGH COUNCIL","04/10/2022","02/11/2022","0000483491/108","SKANSKA RASHLEIGH WEATHERFOIL LTD","40413600","121.53 ","NEIGHBOURHOOD SERVICES - PARKING SERVICES","TEMPORARY STAFF","A110","TEMPORARY STAFF","NEIGHBOURHOOD SERVICES","FACILITIES & MANAGEMENT SERVICES"
"http://statistics.data.gov.uk/id/local-authority/43UM","WOKING BOROUGH COUNCIL","21/10/2022","02/11/2022","0000483644/001","FAITH RECRUITMENT","01709500","46.88 ","CORPORATE STRATEGY - CUSTOMER SERVICES","TEMPORARY STAFF","A110","TEMPORARY STAFF","CORPORATE STRATEGY","HUMAN RESOURCES"
"http://statistics.data.gov.uk/id/local-authority/43UM","WOKING BOROUGH COUNCIL","14/10/2022","02/11/2022","0000483261/001","FAITH RECRUITMENT","01709500","41.37 ","NEIGHBOURHOOD SERVICES - PARKING SERVICES","TEMPORARY STAFF","A110","TEMPORARY STAFF","NEIGHBOURHOOD SERVICES","HUMAN RESOURCES"
"http://statistics.data.gov.uk/id/local-authority/43UM","WOKING BOROUGH COUNCIL","21/10/2022","02/11/2022","0000483642/001","FAITH RECRUITMENT","01709500","41.37 ","PLANNING SERVICES - DEVELOPMENT CONTROL","TEMPORARY STAFF","A110","TEMPORARY STAFF","PLANNING SERVICES","HUMAN RESOURCES"
"http://statistics.data.gov.uk/id/local-authority/43UM","WOKING BOROUGH COUNCIL","31/10/2022","09/11/2022","0000483849/001","MOYALLEN DEVELOPMENTS LIMITED","40267000","10,077.00 ","ASSET MANAGEMENT - BUILDING SERVICES","TEMPORARY STAFF","A110","TEMPORARY STAFF","ASSET MANAGEMENT","CONSULTANCY"
"http://statistics.data.gov.uk/id/local-authority/43UM","WOKING BOROUGH COUNCIL","23/10/2022","09/11/2022","0000483689/001","UNITY RECRUITMENT LTD","40160500","2,772.01 ","NEIGHBOURHOOD SERVICES - PARKING SERVICES","TEMPORARY STAFF","A110","TEMPORARY STAFF","NEIGHBOURHOOD SERVICES","HUMAN RESOURCES"
"http://statistics.data.gov.uk/id/local-authority/43UM","WOKING BOROUGH COUNCIL","02/11/2022","09/11/2022","0000483839/001","MARKS CONSULTING PARTNERS LIMITED","40708400","2,100.00 ","ASSET MANAGEMENT - BUILDING SERVICES","TEMPORARY STAFF","A110","TEMPORARY STAFF","ASSET MANAGEMENT","CONSULTANCY"
"http://statistics.data.gov.uk/id/local-authority/43UM","WOKING BOROUGH COUNCIL","04/10/2022","09/11/2022","0000483786/001","JAMES POTTER","40849300","2,062.50 ","ASSET MANAGEMENT - BUILDING SERVICES","TEMPORARY STAFF","A110","TEMPORARY STAFF","ASSET MANAGEMENT","ENVIRONMENTAL SERVICES"
"http://statistics.data.gov.uk/id/local-authority/43UM","WOKING BOROUGH COUNCIL","02/11/2022","09/11/2022","0000483820/001","OYSTER PARTNERSHIP","40443300","1,859.29 ","PLANNING SERVICES - DEVELOPMENT CONTROL","TEMPORARY STAFF","A110","TEMPORARY STAFF","PLANNING SERVICES","HUMAN RESOURCES"
"http://statistics.data.gov.uk/id/local-authority/43UM","WOKING BOROUGH COUNCIL","02/11/2022","09/11/2022","0000483816/001","OYSTER PARTNERSHIP","40443300","1,729.13 ","PLANNING SERVICES - DEVELOPMENT CONTROL","TEMPORARY STAFF","A110","TEMPORARY STAFF","PLANNING SERVICES","HUMAN RESOURCES"
"http://statistics.data.gov.uk/id/local-authority/43UM","WOKING BOROUGH COUNCIL","02/11/2022","09/11/2022","0000483787/001","JAMES POTTER","40849300","1,595.00 ","ASSET MANAGEMENT - BUILDING SERVICES","TEMPORARY STAFF","A110","TEMPORARY STAFF","ASSET MANAGEMENT","ENVIRONMENTAL SERVICES"
"http://statistics.data.gov.uk/id/local-authority/43UM","WOKING BOROUGH COUNCIL","02/11/2022","09/11/2022","0000483840/001","MARKS CONSULTING PARTNERS LIMITED","40708400","1,575.00 ","ASSET MANAGEMENT - BUILDING SERVICES","TEMPORARY STAFF","A110","TEMPORARY STAFF","ASSET MANAGEMENT","CONSULTANCY"
"http://statistics.data.gov.uk/id/local-authority/43UM","WOKING BOROUGH COUNCIL","31/10/2022","09/11/2022","0000483848/001","MOYALLEN DEVELOPMENTS LIMITED","40267000","1,500.00 ","ASSET MANAGEMENT - BUILDING SERVICES","TEMPORARY STAFF","A110","TEMPORARY STAFF","ASSET MANAGEMENT","CONSULTANCY"
"http://statistics.data.gov.uk/id/local-authority/43UM","WOKING BOROUGH COUNCIL","30/10/2022","09/11/2022","0000483924/001","UNITY RECRUITMENT LTD","40160500","1,443.76 ","NEIGHBOURHOOD SERVICES - PARKING SERVICES","TEMPORARY STAFF","A110","TEMPORARY STAFF","NEIGHBOURHOOD SERVICES","HUMAN RESOURCES"
"http://statistics.data.gov.uk/id/local-authority/43UM","WOKING BOROUGH COUNCIL","02/11/2022","09/11/2022","0000483826/001","VIVID RESOURCING","40463200","1,258.00 ","HOUSING SERVICES - HOUSING NEEDS & ALLOCATIONS","TEMPORARY STAFF","A110","TEMPORARY STAFF","HOUSING SERVICES","HUMAN RESOURCES"
"http://statistics.data.gov.uk/id/local-authority/43UM","WOKING BOROUGH COUNCIL","02/11/2022","09/11/2022","0000483892/001","HAYS","00228700","1,083.40 ","CORPORATE MANAGEMENT GROUP - HUMAN RESOURCES","TEMPORARY STAFF","A110","TEMPORARY STAFF","CORPORATE MANAGEMENT GROUP","HUMAN RESOURCES"
"http://statistics.data.gov.uk/id/local-authority/43UM","WOKING BOROUGH COUNCIL","30/10/2022","09/11/2022","0000483974/001","MORGAN HUNT UK LIMITED","01768500","1,016.00 ","REVENUES AND BENEFITS - COUNCIL TAX","TEMPORARY STAFF","A110","TEMPORARY STAFF","REVENUES AND BENEFITS","HUMAN RESOURCES"
"http://statistics.data.gov.uk/id/local-authority/43UM","WOKING BOROUGH COUNCIL","04/11/2022","09/11/2022","0000483907/001","FLYING UMBRELLA","41022200","1,000.00 ","REVENUES AND BENEFITS - BENEFIT SERVICES","TEMPORARY STAFF","A110","TEMPORARY STAFF","REVENUES AND BENEFITS","HUMAN RESOURCES"
"http://statistics.data.gov.uk/id/local-authority/43UM","WOKING BOROUGH COUNCIL","07/11/2022","09/11/2022","0000483950/001","ABC UMBRELLA LTD","41031700","1,000.00 ","REVENUES AND BENEFITS - COUNCIL TAX","TEMPORARY STAFF","A110","TEMPORARY STAFF","REVENUES AND BENEFITS","HUMAN RESOURCES"
"http://statistics.data.gov.uk/id/local-authority/43UM","WOKING BOROUGH COUNCIL","26/10/2022","09/11/2022","0000483477/001","OYSTER PARTNERSHIP","40443300","959.00 ","INDEPENDENT LIVING SERVICES - CARELINE","TEMPORARY STAFF","A110","TEMPORARY STAFF","INDEPENDENT LIVING SERVICES","HUMAN RESOURCES"
"http://statistics.data.gov.uk/id/local-authority/43UM","WOKING BOROUGH COUNCIL","28/10/2022","09/11/2022","0000483856/001","FAITH RECRUITMENT","01709500","920.21 ","CORPORATE MANAGEMENT GROUP - HUMAN RESOURCES","TEMPORARY STAFF","A110","TEMPORARY STAFF","CORPORATE MANAGEMENT GROUP","HUMAN RESOURCES"
"http://statistics.data.gov.uk/id/local-authority/43UM","WOKING BOROUGH COUNCIL","28/10/2022","09/11/2022","0000483861/001","FAITH RECRUITMENT","01709500","856.55 ","CORPORATE MANAGEMENT GROUP - HUMAN RESOURCES","TEMPORARY STAFF","A110","TEMPORARY STAFF","CORPORATE MANAGEMENT GROUP","HUMAN RESOURCES"
"http://statistics.data.gov.uk/id/local-authority/43UM","WOKING BOROUGH COUNCIL","28/10/2022","09/11/2022","0000483862/001","FAITH RECRUITMENT","01709500","856.55 ","CORPORATE MANAGEMENT GROUP - HUMAN RESOURCES","TEMPORARY STAFF","A110","TEMPORARY STAFF","CORPORATE MANAGEMENT GROUP","HUMAN RESOURCES"
"http://statistics.data.gov.uk/id/local-authority/43UM","WOKING BOROUGH COUNCIL","21/10/2022","09/11/2022","0000483648/001","FAITH RECRUITMENT","01709500","668.09 ","CORPORATE STRATEGY - CUSTOMER SERVICES","TEMPORARY STAFF","A110","TEMPORARY STAFF","CORPORATE STRATEGY","HUMAN RESOURCES"
"http://statistics.data.gov.uk/id/local-authority/43UM","WOKING BOROUGH COUNCIL","28/10/2022","09/11/2022","0000483854/001","FAITH RECRUITMENT","01709500","668.09 ","CORPORATE STRATEGY - CUSTOMER SERVICES","TEMPORARY STAFF","A110","TEMPORARY STAFF","CORPORATE STRATEGY","HUMAN RESOURCES"
"http://statistics.data.gov.uk/id/local-authority/43UM","WOKING BOROUGH COUNCIL","28/10/2022","09/11/2022","0000483855/001","FAITH RECRUITMENT","01709500","642.41 ","CORPORATE MANAGEMENT GROUP - HUMAN RESOURCES","TEMPORARY STAFF","A110","TEMPORARY STAFF","CORPORATE MANAGEMENT GROUP","HUMAN RESOURCES"
"http://statistics.data.gov.uk/id/local-authority/43UM","WOKING BOROUGH COUNCIL","26/10/2022","09/11/2022","0000483878/001","VENN GROUP LIMITED","40383900","387.36 ","REVENUES AND BENEFITS - BENEFIT SERVICES","TEMPORARY STAFF","A110","TEMPORARY STAFF","REVENUES AND BENEFITS","HUMAN RESOURCES"
"http://statistics.data.gov.uk/id/local-authority/43UM","WOKING BOROUGH COUNCIL","28/10/2022","09/11/2022","0000483864/001","FAITH RECRUITMENT","01709500","46.88 ","CORPORATE STRATEGY - CUSTOMER SERVICES","TEMPORARY STAFF","A110","TEMPORARY STAFF","CORPORATE STRATEGY","HUMAN RESOURCES"
"http://statistics.data.gov.uk/id/local-authority/43UM","WOKING BOROUGH COUNCIL","28/10/2022","09/11/2022","0000483871/001","FAITH RECRUITMENT","01709500","41.37 ","PLANNING SERVICES - DEVELOPMENT CONTROL","TEMPORARY STAFF","A110","TEMPORARY STAFF","PLANNING SERVICES","HUMAN RESOURCES"
"http://statistics.data.gov.uk/id/local-authority/43UM","WOKING BOROUGH COUNCIL","28/10/2022","09/11/2022","0000483851/001","FAITH RECRUITMENT","01709500","-642.41 ","CORPORATE MANAGEMENT GROUP - HUMAN RESOURCES","TEMPORARY STAFF","A110","TEMPORARY STAFF","CORPORATE MANAGEMENT GROUP","HUMAN RESOURCES"
"http://statistics.data.gov.uk/id/local-authority/43UM","WOKING BOROUGH COUNCIL","09/11/2022","16/11/2022","0000484056/001","MARKS CONSULTING PARTNERS LIMITED","40708400","2,625.00 ","ASSET MANAGEMENT - BUILDING SERVICES","TEMPORARY STAFF","A110","TEMPORARY STAFF","ASSET MANAGEMENT","CONSULTANCY"
"http://statistics.data.gov.uk/id/local-authority/43UM","WOKING BOROUGH COUNCIL","09/11/2022","16/11/2022","0000484055/001","MARKS CONSULTING PARTNERS LIMITED","40708400","2,100.00 ","ASSET MANAGEMENT - BUILDING SERVICES","TEMPORARY STAFF","A110","TEMPORARY STAFF","ASSET MANAGEMENT","CONSULTANCY"
"http://statistics.data.gov.uk/id/local-authority/43UM","WOKING BOROUGH COUNCIL","09/11/2022","16/11/2022","0000484061/001","OYSTER PARTNERSHIP","40443300","2,022.00 ","ASSET MANAGEMENT - BUILDING SERVICES","TEMPORARY STAFF","A110","TEMPORARY STAFF","ASSET MANAGEMENT","HUMAN RESOURCES"
"http://statistics.data.gov.uk/id/local-authority/43UM","WOKING BOROUGH COUNCIL","09/11/2022","16/11/2022","0000484062/001","OYSTER PARTNERSHIP","40443300","1,855.92 ","PLANNING SERVICES - DEVELOPMENT CONTROL","TEMPORARY STAFF","A110","TEMPORARY STAFF","PLANNING SERVICES","HUMAN RESOURCES"
"http://statistics.data.gov.uk/id/local-authority/43UM","WOKING BOROUGH COUNCIL","02/11/2022","16/11/2022","0000483819/001","OYSTER PARTNERSHIP","40443300","1,756.71 ","ASSET MANAGEMENT - BUILDING SERVICES","TEMPORARY STAFF","A110","TEMPORARY STAFF","ASSET MANAGEMENT","HUMAN RESOURCES"
"http://statistics.data.gov.uk/id/local-authority/43UM","WOKING BOROUGH COUNCIL","09/11/2022","16/11/2022","0000484059/001","OYSTER PARTNERSHIP","40443300","1,674.75 ","PLANNING SERVICES - DEVELOPMENT CONTROL","TEMPORARY STAFF","A110","TEMPORARY STAFF","PLANNING SERVICES","HUMAN RESOURCES"
"http://statistics.data.gov.uk/id/local-authority/43UM","WOKING BOROUGH COUNCIL","09/11/2022","16/11/2022","0000484064/001","VIVID RESOURCING","40463200","1,258.00 ","HOUSING SERVICES - HOUSING NEEDS & ALLOCATIONS","TEMPORARY STAFF","A110","TEMPORARY STAFF","HOUSING SERVICES","HUMAN RESOURCES"
"http://statistics.data.gov.uk/id/local-authority/43UM","WOKING BOROUGH COUNCIL","11/11/2022","16/11/2022","0000484246/001","HAYS","00228700","1,083.40 ","CORPORATE MANAGEMENT GROUP - HUMAN RESOURCES","TEMPORARY STAFF","A110","TEMPORARY STAFF","CORPORATE MANAGEMENT GROUP","HUMAN RESOURCES"
"http://statistics.data.gov.uk/id/local-authority/43UM","WOKING BOROUGH COUNCIL","11/11/2022","16/11/2022","0000484210/001","FLYING UMBRELLA","41022200","1,000.00 ","REVENUES AND BENEFITS - BENEFIT SERVICES","TEMPORARY STAFF","A110","TEMPORARY STAFF","REVENUES AND BENEFITS","HUMAN RESOURCES"
"http://statistics.data.gov.uk/id/local-authority/43UM","WOKING BOROUGH COUNCIL","14/11/2022","16/11/2022","0000484236/001","ABC UMBRELLA LTD","41031700","1,000.00 ","REVENUES AND BENEFITS - COUNCIL TAX","TEMPORARY STAFF","A110","TEMPORARY STAFF","REVENUES AND BENEFITS","HUMAN RESOURCES"
"http://statistics.data.gov.uk/id/local-authority/43UM","WOKING BOROUGH COUNCIL","04/11/2022","16/11/2022","0000484072/001","FAITH RECRUITMENT","01709500","668.09 ","CORPORATE STRATEGY - CUSTOMER SERVICES","TEMPORARY STAFF","A110","TEMPORARY STAFF","CORPORATE STRATEGY","HUMAN RESOURCES"
"http://statistics.data.gov.uk/id/local-authority/43UM","WOKING BOROUGH COUNCIL","21/10/2022","16/11/2022","0000483643/001","FAITH RECRUITMENT","01709500","663.38 ","NEIGHBOURHOOD SERVICES - PARKING SERVICES","TEMPORARY STAFF","A110","TEMPORARY STAFF","NEIGHBOURHOOD SERVICES","HUMAN RESOURCES"
